Workbook

Sheet Notes
A1: Notes
A2: Number | B2: Definition
A3: 1 | B3: The data was pulled as of end of day November 2, 2020
A4: 2 | B4: Data is operational in nature and subject to change. It represents the current state of CERB (EI-ERB and CRA-CERB) systems at the time the data was pulled from the operational systems.
A5: 3 | B5: As per the Government of Canada’s Privacy Implementation Notice, this data has been rounded up to ensure a minimum cell size of 20 or more to reduce risk of re-identification. All other counts have been rounded using the round half up rule to the nearest 10s digit.
A8: Data Item | B8: Definition
A9: Period | B9: Represents the CERB Period Number during which a CERB payment was made to a beneficiary. (See "original release data" tab for exact dates)
A10: Forwarding Station Area (FSA) | B10: Reprents the Forwarding Station Area (FSA) as defined by Canada Post/Statistics Canada. The address of the beneficiary's last received CERB application was used to determine their postal code which in turn is used to determine the FSA.
A11: Beneficiary Count | B11: The number of unique people who received at least 1 CERB payment during the CERB Period.
A12: Population | B12: The number of people recorded in the 2016 census as being age 15 or over in an FSA.

Sheet Static data
A1: Key | B1: FSA | C1: Period 1 | D1: Period 1% | E1: Period 2 | F1: Period 2% | G1: Period 3 | H1: Period 3% | I1: Period 4 | J1: Period 4% | K1: Period 5 | L1: Period 5% | M1: Period 6 | N1: Period 6% | O1: Period 7 | P1: Period 7% | Q1: Grand Total | R1: Population, 2016 | S1: Total private dwellings, 2016 | T1: Private dwellings occupied by usual residents, 2016 | U1: Province | V1: W2 vs W1 | W1: W3 vs W2 | X1: W4 vs W3 | Y1: x
A2: 1 | B2: A0A | C2: 6240 | D2: =C2/R2 -> 13.39% | E2: 4850 | F2: =E2/R2 -> 10.41% | G2: 4190 | H2: =G2/R2 -> 8.99% | I2: 3730 | J2: =I2/R2 -> 8.01% | K2: 3220 | L2: =K2/R2 -> 6.91% | M2: 3440 | N2: =M2/R2 -> 7.38% | O2: 3100 | P2: =O2/R2 -> 6.65% | Q2: 28770 | R2: 46587 | S2: 26155 | T2: 19426 | U2: Newfoundland and Labrador | V2: Smaller | W2: Smaller | X2: Smaller
A3: 2 | B3: A0B | C3: 2240 | D3: 11.32% | E3: 1660 | F3: 8.39% | G3: 1470 | H3: 7.43% | I3: 1260 | J3: 6.37% | K3: 1150 | L3: 5.81% | M3: 1160 | N3: 5.86% | O3: 1070 | P3: 5.41% | Q3: 10010 | R3: 19792 | S3: 13658 | T3: 8792 | U3: Newfoundland and Labrador | V3: Smaller | W3: Smaller | X3: Smaller
A4: 3 | B4: A0C | C4: 1320 | D4: 10.49% | E4: 1120 | F4: 8.90% | G4: 930 | H4: 7.39% | I4: 860 | J4: 6.83% | K4: 750 | L4: 5.96% | M4: 880 | N4: 6.99% | O4: 780 | P4: 6.20% | Q4: 6640 | R4: 12587 | S4: 8010 | T4: 5606 | U4: Newfoundland and Labrador | V4: Smaller | W4: Smaller | X4: Smaller
A5: 4 | B5: A0E | C5: 2500 | D5: 11.21% | E5: 1890 | F5: 8.48% | G5: 1510 | H5: 6.77% | I5: 1410 | J5: 6.32% | K5: 1300 | L5: 5.83% | M5: 1330 | N5: 5.97% | O5: 1300 | P5: 5.83% | Q5: 11240 | R5: 22294 | S5: 12293 | T5: 9603 | U5: Newfoundland and Labrador | V5: Smaller | W5: Smaller | X5: Smaller
A6: 5 | B6: A0G | C6: 3590 | D6: 10.18% | E6: 2800 | F6: 7.94% | G6: 2390 | H6: 6.78% | I6: 2190 | J6: 6.21% | K6: 2100 | L6: 5.95% | M6: 2150 | N6: 6.10% | O6: 2210 | P6: 6.27% | Q6: 17430 | R6: 35266 | S6: 21750 | T6: 15200 | U6: Newfoundland and Labrador | V6: Smaller | W6: Smaller | X6: Smaller
A7: 6 | B7: A0H | C7: 1830 | D7: 10.28% | E7: 1420 | F7: 7.98% | G7: 1230 | H7: 6.91% | I7: 1180 | J7: 6.63% | K7: 1120 | L7: 6.29% | M7: 1160 | N7: 6.52% | O7: 1080 | P7: 6.07% | Q7: 9020 | R7: 17804 | S7: 9928 | T7: 7651 | U7: Newfoundland and Labrador | V7: Smaller | W7: Smaller | X7: Smaller
A8: 7 | B8: A0J | C8: 880 | D8: 11.17% | E8: 640 | F8: 8.12% | G8: 520 | H8: 6.60% | I8: 460 | J8: 5.84% | K8: 380 | L8: 4.82% | M8: 450 | N8: 5.71% | O8: 380 | P8: 4.82% | Q8: 3710 | R8: 7880 | S8: 4813 | T8: 3426 | U8: Newfoundland and Labrador | V8: Smaller | W8: Smaller | X8: Smaller
A9: 8 | B9: A0K | C9: 2270 | D9: 8.71% | E9: 2160 | F9: 8.29% | G9: 1770 | H9: 6.79% | I9: 1630 | J9: 6.26% | K9: 1530 | L9: 5.87% | M9: 1580 | N9: 6.06% | O9: 1560 | P9: 5.99% | Q9: 12500 | R9: 26058 | S9: 15159 | T9: 11090 | U9: Newfoundland and Labrador | V9: Smaller | W9: Smaller | X9: Smaller
A10: 9 | B10: A0L | C10: 910 | D10: 11.91% | E10: 650 | F10: 8.50% | G10: 530 | H10: 6.93% | I10: 470 | J10: 6.15% | K10: 390 | L10: 5.10% | M10: 440 | N10: 5.76% | O10: 380 | P10: 4.97% | Q10: 3770 | R10: 7643 | S10: 3769 | T10: 3178 | U10: Newfoundland and Labrador | V10: Smaller | W10: Smaller | X10: Smaller
A11: 10 | B11: A0M | C11: 510 | D11: 8.23% | E11: 380 | F11: 6.13% | G11: 290 | H11: 4.68% | I11: 270 | J11: 4.35% | K11: 260 | L11: 4.19% | M11: 270 | N11: 4.35% | O11: 250 | P11: 4.03% | Q11: 2230 | R11: 6200 | S11: 3247 | T11: 2769 | U11: Newfoundland and Labrador | V11: Smaller | W11: Smaller | X11: Smaller
A12: 11 | B12: A0N | C12: 1560 | D12: 11.29% | E12: 1290 | F12: 9.34% | G12: 1070 | H12: 7.75% | I12: 1000 | J12: 7.24% | K12: 990 | L12: 7.17% | M12: 970 | N12: 7.02% | O12: 920 | P12: 6.66% | Q12: 7800 | R12: 13815 | S12: 8027 | T12: 6370 | U12: Newfoundland and Labrador | V12: Smaller | W12: Smaller | X12: Smaller
A13: 12 | B13: A0P | C13: 2430 | D13: 17.71% | E13: 1950 | F13: 14.21% | G13: 1780 | H13: 12.97% | I13: 1800 | J13: 13.12% | K13: 1650 | L13: 12.03% | M13: 1630 | N13: 11.88% | O13: 1490 | P13: 10.86% | Q13: 12730 | R13: 13721 | S13: 5123 | T13: 4677 | U13: Newfoundland and Labrador | V13: Smaller | W13: Smaller | X13: Bigger
A14: 13 | B14: A0R | C14: 230 | D14: 9.04% | E14: 150 | F14: 5.90% | G14: 120 | H14: 4.72% | I14: 90 | J14: 3.54% | K14: 80 | L14: 3.15% | M14: 70 | N14: 2.75% | O14: 70 | P14: 2.75% | Q14: 810 | R14: 2543 | S14: 1293 | T14: 966 | U14: Newfoundland and Labrador | V14: Smaller | W14: Smaller | X14: Smaller
A15: 14 | B15: A1A | C15: 4040 | D15: 13.30% | E15: 2750 | F15: 9.05% | G15: 2390 | H15: 7.87% | I15: 2010 | J15: 6.62% | K15: 1620 | L15: 5.33% | M15: 1540 | N15: 5.07% | O15: 1360 | P15: 4.48% | Q15: 15710 | R15: 30382 | S15: 13545 | T15: 12663 | U15: Newfoundland and Labrador | V15: Smaller | W15: Smaller | X15: Smaller
A16: 15 | B16: A1B | C16: 3910 | D16: 19.68% | E16: 2690 | F16: 13.54% | G16: 2330 | H16: 11.73% | I16: 2010 | J16: 10.12% | K16: 1630 | L16: 8.20% | M16: 1550 | N16: 7.80% | O16: 1380 | P16: 6.95% | Q16: 15500 | R16: 19867 | S16: 10051 | T16: 8653 | U16: Newfoundland and Labrador | V16: Smaller | W16: Smaller | X16: Smaller
A17: 16 | B17: A1C | C17: 2930 | D17: 23.05% | E17: 2130 | F17: 16.76% | G17: 1910 | H17: 15.03% | I17: 1680 | J17: 13.22% | K17: 1330 | L17: 10.46% | M17: 1290 | N17: 10.15% | O17: 1150 | P17: 9.05% | Q17: 12420 | R17: 12712 | S17: 7438 | T17: 6453 | U17: Newfoundland and Labrador | V17: Smaller | W17: Smaller | X17: Smaller
A18: 17 | B18: A1E | C18: 4790 | D18: 17.67% | E18: 3310 | F18: 12.21% | G18: 2920 | H18: 10.77% | I18: 2590 | J18: 9.55% | K18: 2110 | L18: 7.78% | M18: 2000 | N18: 7.38% | O18: 1830 | P18: 6.75% | Q18: 19550 | R18: 27115 | S18: 13704 | T18: 12553 | U18: Newfoundland and Labrador | V18: Smaller | W18: Smaller | X18: Smaller
A19: 18 | B19: A1G | C19: 990 | D19: 17.14% | E19: 620 | F19: 10.73% | G19: 530 | H19: 9.17% | I19: 510 | J19: 8.83% | K19: 390 | L19: 6.75% | M19: 370 | N19: 6.40% | O19: 340 | P19: 5.89% | Q19: 3750 | R19: 5777 | S19: 2646 | T19: 2483 | U19: Newfoundland and Labrador | V19: Smaller | W19: Smaller | X19: Smaller
A20: 19 | B20: A1H | C20: 680 | D20: 12.38% | E20: 460 | F20: 8.37% | G20: 390 | H20: 7.10% | I20: 330 | J20: 6.01% | K20: 260 | L20: 4.73% | M20: 250 | N20: 4.55% | O20: 220 | P20: 4.01% | Q20: 2590 | R20: 5493 | S20: 2102 | T20: 1984 | U20: Newfoundland and Labrador | V20: Smaller | W20: Smaller | X20: Smaller
A21: 20 | B21: A1K | C21: 1770 | D21: 14.45% | E21: 1190 | F21: 9.71% | G21: 980 | H21: 8.00% | I21: 890 | J21: 7.26% | K21: 670 | L21: 5.47% | M21: 610 | N21: 4.98% | O21: 580 | P21: 4.73% | Q21: 6690 | R21: 12253 | S21: 4646 | T21: 4438 | U21: Newfoundland and Labrador | V21: Smaller | W21: Smaller | X21: Smaller
A22: 21 | B22: A1L | C22: 3050 | D22: 14.27% | E22: 1960 | F22: 9.17% | G22: 1640 | H22: 7.67% | I22: 1430 | J22: 6.69% | K22: 1130 | L22: 5.29% | M22: 1040 | N22: 4.87% | O22: 900 | P22: 4.21% | Q22: 11150 | R22: 21376 | S22: 8659 | T22: 8035 | U22: Newfoundland and Labrador | V22: Smaller | W22: Smaller | X22: Smaller
A23: 22 | B23: A1M | C23: 1190 | D23: 14.77% | E23: 810 | F23: 10.05% | G23: 690 | H23: 8.56% | I23: 650 | J23: 8.07% | K23: 480 | L23: 5.96% | M23: 470 | N23: 5.83% | O23: 390 | P23: 4.84% | Q23: 4680 | R23: 8058 | S23: 3181 | T23: 2996 | U23: Newfoundland and Labrador | V23: Smaller | W23: Smaller | X23: Smaller
A24: 23 | B24: A1N | C24: 3490 | D24: 15.20% | E24: 2220 | F24: 9.67% | G24: 1930 | H24: 8.41% | I24: 1750 | J24: 7.62% | K24: 1360 | L24: 5.92% | M24: 1270 | N24: 5.53% | O24: 1210 | P24: 5.27% | Q24: 13230 | R24: 22957 | S24: 10381 | T24: 9605 | U24: Newfoundland and Labrador | V24: Smaller | W24: Smaller | X24: Smaller
A25: 24 | B25: A1S | C25: 1110 | D25: 18.07% | E25: 730 | F25: 11.89% | G25: 630 | H25: 10.26% | I25: 590 | J25: 9.61% | K25: 460 | L25: 7.49% | M25: 450 | N25: 7.33% | O25: 400 | P25: 6.51% | Q25: 4370 | R25: 6142 | S25: 2374 | T25: 2304 | U25: Newfoundland and Labrador | V25: Smaller | W25: Smaller | X25: Smaller
A26: 25 | B26: A1V | C26: 1570 | D26: 13.42% | E26: 970 | F26: 8.29% | G26: 820 | H26: 7.01% | I26: 700 | J26: 5.98% | K26: 600 | L26: 5.13% | M26: 570 | N26: 4.87% | O26: 510 | P26: 4.36% | Q26: 5740 | R26: 11698 | S26: 5172 | T26: 4892 | U26: Newfoundland and Labrador | V26: Smaller | W26: Smaller | X26: Smaller
A27: 26 | B27: A1W | C27: 1600 | D27: 14.27% | E27: 1070 | F27: 9.55% | G27: 860 | H27: 7.67% | I27: 790 | J27: 7.05% | K27: 620 | L27: 5.53% | M27: 580 | N27: 5.17% | O27: 500 | P27: 4.46% | Q27: 6020 | R27: 11209 | S27: 4549 | T27: 4269 | U27: Newfoundland and Labrador | V27: Smaller | W27: Smaller | X27: Smaller
A28: 27 | B28: A1X | C28: 2240 | D28: 14.93% | E28: 1510 | F28: 10.06% | G28: 1290 | H28: 8.60% | I28: 1140 | J28: 7.60% | K28: 920 | L28: 6.13% | M28: 890 | N28: 5.93% | O28: 800 | P28: 5.33% | Q28: 8790 | R28: 15003 | S28: 6007 | T28: 5668 | U28: Newfoundland and Labrador | V28: Smaller | W28: Smaller | X28: Smaller
A29: 28 | B29: A1Y | C29: 760 | D29: 13.41% | E29: 530 | F29: 9.35% | G29: 470 | H29: 8.29% | I29: 410 | J29: 7.23% | K29: 360 | L29: 6.35% | M29: 400 | N29: 7.06% | O29: 350 | P29: 6.17% | Q29: 3280 | R29: 5669 | S29: 2627 | T29: 2321 | U29: Newfoundland and Labrador | V29: Smaller | W29: Smaller | X29: Smaller
A30: 29 | B30: A2A | C30: 1270 | D30: 13.22% | E30: 850 | F30: 8.84% | G30: 710 | H30: 7.39% | I30: 610 | J30: 6.35% | K30: 530 | L30: 5.52% | M30: 510 | N30: 5.31% | O30: 510 | P30: 5.31% | Q30: 4990 | R30: 9610 | S30: 4345 | T30: 4118 | U30: Newfoundland and Labrador | V30: Smaller | W30: Smaller | X30: Smaller
A31: 30 | B31: A2B | C31: 740 | D31: 15.07% | E31: 520 | F31: 10.59% | G31: 450 | H31: 9.17% | I31: 390 | J31: 7.94% | K31: 360 | L31: 7.33% | M31: 360 | N31: 7.33% | O31: 320 | P31: 6.52% | Q31: 3140 | R31: 4909 | S31: 2740 | T31: 2127 | U31: Newfoundland and Labrador | V31: Smaller | W31: Smaller | X31: Smaller
A32: 31 | B32: A2H | C32: 3500 | D32: 13.41% | E32: 2310 | F32: 8.85% | G32: 1960 | H32: 7.51% | I32: 1740 | J32: 6.67% | K32: 1470 | L32: 5.63% | M32: 1400 | N32: 5.37% | O32: 1330 | P32: 5.10% | Q32: 13710 | R32: 26092 | S32: 12628 | T32: 11227 | U32: Newfoundland and Labrador | V32: Smaller | W32: Smaller | X32: Smaller
A33: 32 | B33: A2N | C33: 1180 | D33: 13.25% | E33: 880 | F33: 9.88% | G33: 760 | H33: 8.54% | I33: 700 | J33: 7.86% | K33: 580 | L33: 6.51% | M33: 570 | N33: 6.40% | O33: 540 | P33: 6.06% | Q33: 5210 | R33: 8904 | S33: 4348 | T33: 4048 | U33: Newfoundland and Labrador | V33: Smaller | W33: Smaller | X33: Smaller
A34: 33 | B34: A2V | C34: 670 | D34: 9.19% | E34: 430 | F34: 5.90% | G34: 320 | H34: 4.39% | I34: 270 | J34: 3.70% | K34: 200 | L34: 2.74% | M34: 200 | N34: 2.74% | O34: 170 | P34: 2.33% | Q34: 2260 | R34: 7288 | S34: 3500 | T34: 2933 | U34: Newfoundland and Labrador | V34: Smaller | W34: Smaller | X34: Smaller
A35: 34 | B35: A5A | C35: 1180 | D35: 14.55% | E35: 760 | F35: 9.37% | G35: 640 | H35: 7.89% | I35: 570 | J35: 7.03% | K35: 470 | L35: 5.79% | M35: 460 | N35: 5.67% | O35: 420 | P35: 5.18% | Q35: 4500 | R35: 8111 | S35: 3830 | T35: 3284 | U35: Newfoundland and Labrador | V35: Smaller | W35: Smaller | X35: Smaller
A36: 35 | B36: A8A | C36: 970 | D36: 14.06% | E36: 620 | F36: 8.98% | G36: 550 | H36: 7.97% | I36: 490 | J36: 7.10% | K36: 420 | L36: 6.09% | M36: 430 | N36: 6.23% | O36: 390 | P36: 5.65% | Q36: 3870 | R36: 6901 | S36: 4041 | T36: 2865 | U36: Newfoundland and Labrador | V36: Smaller | W36: Smaller | X36: Smaller
A37: 36 | B37: B0C | C37: 230 | D37: 8.68% | E37: 230 | F37: 8.68% | G37: 190 | H37: 7.17% | I37: 200 | J37: 7.55% | K37: 270 | L37: 10.19% | M37: 310 | N37: 11.70% | O37: 240 | P37: 9.06% | Q37: 1670 | R37: 2649 | S37: 1689 | T37: 1161 | U37: Nova Scotia | V37: Smaller | W37: Smaller | X37: Bigger
A38: 37 | B38: B0E | C38: 2930 | D38: 11.32% | E38: 2270 | F38: 8.77% | G38: 1890 | H38: 7.30% | I38: 1780 | J38: 6.88% | K38: 1770 | L38: 6.84% | M38: 1820 | N38: 7.03% | O38: 1580 | P38: 6.10% | Q38: 14040 | R38: 25881 | S38: 14997 | T38: 11258 | U38: Nova Scotia | V38: Smaller | W38: Smaller | X38: Smaller
A39: 38 | B39: B0H | C39: 1260 | D39: 12.66% | E39: 890 | F39: 8.94% | G39: 750 | H39: 7.54% | I39: 680 | J39: 6.83% | K39: 700 | L39: 7.03% | M39: 610 | N39: 6.13% | O39: 520 | P39: 5.22% | Q39: 5410 | R39: 9953 | S39: 5827 | T39: 4388 | U39: Nova Scotia | V39: Smaller | W39: Smaller | X39: Smaller
A40: 39 | B40: B0J | C40: 5430 | D40: 13.82% | E40: 3970 | F40: 10.10% | G40: 3420 | H40: 8.70% | I40: 3030 | J40: 7.71% | K40: 2460 | L40: 6.26% | M40: 2260 | N40: 5.75% | O40: 2030 | P40: 5.17% | Q40: 22600 | R40: 39302 | S40: 23591 | T40: 17707 | U40: Nova Scotia | V40: Smaller | W40: Smaller | X40: Smaller
A41: 40 | B41: B0K | C41: 5300 | D41: 14.77% | E41: 3750 | F41: 10.45% | G41: 3070 | H41: 8.55% | I41: 2720 | J41: 7.58% | K41: 2300 | L41: 6.41% | M41: 2210 | N41: 6.16% | O41: 2020 | P41: 5.63% | Q41: 21370 | R41: 35895 | S41: 20689 | T41: 15775 | U41: Nova Scotia | V41: Smaller | W41: Smaller | X41: Smaller
A42: 41 | B42: B0L | C42: 310 | D42: 13.11% | E42: 220 | F42: 9.31% | G42: 200 | H42: 8.46% | I42: 190 | J42: 8.04% | K42: 150 | L42: 6.35% | M42: 140 | N42: 5.92% | O42: 130 | P42: 5.50% | Q42: 1340 | R42: 2364 | S42: 1657 | T42: 1056 | U42: Nova Scotia | V42: Smaller | W42: Smaller | X42: Smaller
A43: 42 | B43: B0M | C43: 2260 | D43: 13.30% | E43: 1600 | F43: 9.41% | G43: 1400 | H43: 8.24% | I43: 1240 | J43: 7.30% | K43: 1060 | L43: 6.24% | M43: 960 | N43: 5.65% | O43: 900 | P43: 5.30% | Q43: 9420 | R43: 16997 | S43: 9995 | T43: 7548 | U43: Nova Scotia | V43: Smaller | W43: Smaller | X43: Smaller
A44: 43 | B44: B0N | C44: 5750 | D44: 14.54% | E44: 3830 | F44: 9.68% | G44: 3290 | H44: 8.32% | I44: 2980 | J44: 7.53% | K44: 2520 | L44: 6.37% | M44: 2350 | N44: 5.94% | O44: 2130 | P44: 5.38% | Q44: 22850 | R44: 39559 | S44: 19157 | T44: 16644 | U44: Nova Scotia | V44: Smaller | W44: Smaller | X44: Smaller
A45: 44 | B45: B0P | C45: 5080 | D45: 12.57% | E45: 3500 | F45: 8.66% | G45: 3040 | H45: 7.52% | I45: 2650 | J45: 6.56% | K45: 2140 | L45: 5.29% | M45: 1960 | N45: 4.85% | O45: 1730 | P45: 4.28% | Q45: 20100 | R45: 40417 | S45: 18766 | T45: 16913 | U45: Nova Scotia | V45: Smaller | W45: Smaller | X45: Smaller
A46: 45 | B46: B0R | C46: 800 | D46: 13.84% | E46: 560 | F46: 9.69% | G46: 440 | H46: 7.61% | I46: 400 | J46: 6.92% | K46: 320 | L46: 5.54% | M46: 310 | N46: 5.36% | O46: 260 | P46: 4.50% | Q46: 3090 | R46: 5779 | S46: 3771 | T46: 2656 | U46: Nova Scotia | V46: Smaller | W46: Smaller | X46: Smaller
A47: 46 | B47: B0S | C47: 2420 | D47: 14.06% | E47: 1800 | F47: 10.46% | G47: 1650 | H47: 9.59% | I47: 1420 | J47: 8.25% | K47: 1160 | L47: 6.74% | M47: 1120 | N47: 6.51% | O47: 970 | P47: 5.64% | Q47: 10540 | R47: 17212 | S47: 9892 | T47: 7954 | U47: Nova Scotia | V47: Smaller | W47: Smaller | X47: Smaller
A48: 47 | B48: B0T | C48: 2050 | D48: 14.03% | E48: 1540 | F48: 10.54% | G48: 1350 | H48: 9.24% | I48: 1180 | J48: 8.08% | K48: 1000 | L48: 6.85% | M48: 940 | N48: 6.44% | O48: 850 | P48: 5.82% | Q48: 8910 | R48: 14607 | S48: 9029 | T48: 6737 | U48: Nova Scotia | V48: Smaller | W48: Smaller | X48: Smaller
A49: 48 | B49: B0V | C49: 1000 | D49: 17.21% | E49: 770 | F49: 13.26% | G49: 770 | H49: 13.26% | I49: 670 | J49: 11.53% | K49: 560 | L49: 9.64% | M49: 530 | N49: 9.12% | O49: 470 | P49: 8.09% | Q49: 4770 | R49: 5809 | S49: 3253 | T49: 2758 | U49: Nova Scotia | V49: Smaller | W49: Smaller | X49: Smaller
A50: 49 | B50: B0W | C50: 3720 | D50: 13.80% | E50: 2510 | F50: 9.31% | G50: 2810 | H50: 10.43% | I50: 2120 | J50: 7.87% | K50: 1710 | L50: 6.34% | M50: 1620 | N50: 6.01% | O50: 1470 | P50: 5.45% | Q50: 15960 | R50: 26951 | S50: 14465 | T50: 12029 | U50: Nova Scotia | V50: Smaller | W50: Bigger | X50: Smaller | Y50: x
A51: 50 | B51: B1A | C51: 2460 | D51: 15.44% | E51: 1800 | F51: 11.29% | G51: 1590 | H51: 9.98% | I51: 1480 | J51: 9.29% | K51: 1340 | L51: 8.41% | M51: 1370 | N51: 8.60% | O51: 1260 | P51: 7.91% | Q51: 11300 | R51: 15937 | S51: 7593 | T51: 7051 | U51: Nova Scotia | V51: Smaller | W51: Smaller | X51: Smaller
A52: 51 | B52: B1B | C52: 160 | D52: 13.38% | E52: 110 | F52: 9.20% | G52: 100 | H52: 8.36% | I52: 90 | J52: 7.53% | K52: 100 | L52: 8.36% | M52: 100 | N52: 8.36% | O52: 80 | P52: 6.69% | Q52: 740 | R52: 1196 | S52: 643 | T52: 550 | U52: Nova Scotia | V52: Smaller | W52: Smaller | X52: Smaller
A53: 52 | B53: B1C | C53: 180 | D53: 10.88% | E53: 140 | F53: 8.46% | G53: 120 | H53: 7.26% | I53: 120 | J53: 7.26% | K53: 150 | L53: 9.07% | M53: 160 | N53: 9.67% | O53: 160 | P53: 9.67% | Q53: 1030 | R53: 1654 | S53: 859 | T53: 738 | U53: Nova Scotia | V53: Smaller | W53: Smaller | X53: Smaller
A54: 53 | B54: B1E | C54: 260 | D54: 16.62% | E54: 200 | F54: 12.79% | G54: 170 | H54: 10.87% | I54: 170 | J54: 10.87% | K54: 150 | L54: 9.59% | M54: 150 | N54: 9.59% | O54: 140 | P54: 8.95% | Q54: 1240 | R54: 1564 | S54: 729 | T54: 682 | U54: Nova Scotia | V54: Smaller | W54: Smaller | X54: Smaller
A55: 54 | B55: B1G | C55: 320 | D55: 17.14% | E55: 230 | F55: 12.32% | G55: 200 | H55: 10.71% | I55: 190 | J55: 10.18% | K55: 170 | L55: 9.11% | M55: 160 | N55: 8.57% | O55: 150 | P55: 8.03% | Q55: 1420 | R55: 1867 | S55: 898 | T55: 843 | U55: Nova Scotia | V55: Smaller | W55: Smaller | X55: Smaller
A56: 55 | B56: B1H | C56: 1650 | D56: 17.11% | E56: 1190 | F56: 12.34% | G56: 1060 | H56: 10.99% | I56: 1010 | J56: 10.48% | K56: 890 | L56: 9.23% | M56: 880 | N56: 9.13% | O56: 830 | P56: 8.61% | Q56: 7510 | R56: 9642 | S56: 4539 | T56: 4296 | U56: Nova Scotia | V56: Smaller | W56: Smaller | X56: Smaller
A57: 56 | B57: B1J | C57: 140 | D57: 14.45% | E57: 100 | F57: 10.32% | G57: 90 | H57: 9.29% | I57: 80 | J57: 8.26% | K57: 70 | L57: 7.22% | M57: 70 | N57: 7.22% | O57: 60 | P57: 6.19% | Q57: 610 | R57: 969 | S57: 707 | T57: 479 | U57: Nova Scotia | V57: Smaller | W57: Smaller | X57: Smaller
A58: 57 | B58: B1K | C58: 450 | D58: 14.76% | E58: 330 | F58: 10.82% | G58: 290 | H58: 9.51% | I58: 270 | J58: 8.86% | K58: 250 | L58: 8.20% | M58: 230 | N58: 7.54% | O58: 220 | P58: 7.22% | Q58: 2040 | R58: 3049 | S58: 1951 | T58: 1321 | U58: Nova Scotia | V58: Smaller | W58: Smaller | X58: Smaller
A59: 58 | B59: B1L | C59: 670 | D59: 13.66% | E59: 420 | F59: 8.56% | G59: 360 | H59: 7.34% | I59: 370 | J59: 7.54% | K59: 280 | L59: 5.71% | M59: 270 | N59: 5.50% | O59: 240 | P59: 4.89% | Q59: 2610 | R59: 4905 | S59: 2086 | T59: 2007 | U59: Nova Scotia | V59: Smaller | W59: Smaller | X59: Bigger
A60: 59 | B60: B1M | C60: 200 | D60: 17.70% | E60: 130 | F60: 11.50% | G60: 110 | H60: 9.73% | I60: 90 | J60: 7.96% | K60: 80 | L60: 7.08% | M60: 70 | N60: 6.19% | O60: 70 | P60: 6.19% | Q60: 750 | R60: 1130 | S60: 534 | T60: 476 | U60: Nova Scotia | V60: Smaller | W60: Smaller | X60: Smaller
A61: 60 | B61: B1N | C61: 1210 | D61: 21.21% | E61: 810 | F61: 14.20% | G61: 730 | H61: 12.80% | I61: 670 | J61: 11.74% | K61: 540 | L61: 9.47% | M61: 560 | N61: 9.82% | O61: 510 | P61: 8.94% | Q61: 5030 | R61: 5705 | S61: 2640 | T61: 2465 | U61: Nova Scotia | V61: Smaller | W61: Smaller | X61: Smaller
A62: 61 | B62: B1P | C62: 3260 | D62: 22.80% | E62: 2230 | F62: 15.60% | G62: 1860 | H62: 13.01% | I62: 1610 | J62: 11.26% | K62: 1350 | L62: 9.44% | M62: 1300 | N62: 9.09% | O62: 1210 | P62: 8.46% | Q62: 12820 | R62: 14296 | S62: 7456 | T62: 6820 | U62: Nova Scotia | V62: Smaller | W62: Smaller | X62: Smaller
A63: 62 | B63: B1R | C63: 580 | D63: 13.43% | E63: 360 | F63: 8.34% | G63: 320 | H63: 7.41% | I63: 300 | J63: 6.95% | K63: 250 | L63: 5.79% | M63: 240 | N63: 5.56% | O63: 210 | P63: 4.86% | Q63: 2260 | R63: 4318 | S63: 1850 | T63: 1799 | U63: Nova Scotia | V63: Smaller | W63: Smaller | X63: Smaller
A64: 63 | B64: B1S | C64: 1240 | D64: 14.51% | E64: 940 | F64: 11.00% | G64: 810 | H64: 9.48% | I64: 700 | J64: 8.19% | K64: 630 | L64: 7.37% | M64: 600 | N64: 7.02% | O64: 520 | P64: 6.08% | Q64: 5440 | R64: 8548 | S64: 3832 | T64: 3541 | U64: Nova Scotia | V64: Smaller | W64: Smaller | X64: Smaller
A65: 64 | B65: B1T | C65: 30 | D65: 8.47% | E65: 30 | F65: 8.47% | G65: 30 | H65: 8.47% | I65: 30 | J65: 8.47% | K65: 20 | L65: 5.65% | M65: 20 | N65: 5.65% | O65: 20 | P65: 5.65% | Q65: 180 | R65: 354 | S65: 315 | T65: 175 | U65: Nova Scotia | V65: Smaller | W65: Smaller | X65: Smaller
A66: 65 | B66: B1V | C66: 1040 | D66: =C66/R66 -> 16.48% | E66: 760 | F66: =E66/R66 -> 12.04% | G66: 670 | H66: =G66/R66 -> 10.62% | I66: 630 | J66: =I66/R66 -> 9.98% | K66: 610 | L66: =K66/R66 -> 9.67% | M66: 580 | N66: =M66/R66 -> 9.19% | O66: 520 | P66: =O66/R66 -> 8.24% | Q66: 4810 | R66: 6311 | S66: 2942 | T66: 2770 | U66: Nova Scotia | V66: Smaller | W66: Smaller | X66: Smaller
A67: 66 | B67: B1W | C67: 840 | D67: 24.55% | E67: 800 | F67: 23.38% | G67: 800 | H67: 23.38% | I67: 810 | J67: 23.67% | K67: 810 | L67: 23.67% | M67: 790 | N67: 23.09% | O67: 710 | P67: 20.75% | Q67: 5560 | R67: 3422 | S67: 1114 | T67: 1059 | U67: Nova Scotia | V67: Smaller | W67: Smaller | X67: Bigger
A68: 67 | B68: B1X | C68: 120 | D68: 14.23% | E68: 90 | F68: 10.68% | G68: 90 | H68: 10.68% | I68: 80 | J68: 9.49% | K68: 80 | L68: 9.49% | M68: 70 | N68: 8.30% | O68: 60 | P68: 7.12% | Q68: 590 | R68: 843 | S68: 593 | T68: 366 | U68: Nova Scotia | V68: Smaller | W68: Smaller | X68: Smaller
A69: 68 | B69: B1Y | C69: 820 | D69: 13.93% | E69: 610 | F69: 10.37% | G69: 540 | H69: 9.18% | I69: 500 | J69: 8.50% | K69: 510 | L69: 8.67% | M69: 470 | N69: 7.99% | O69: 430 | P69: 7.31% | Q69: 3880 | R69: 5885 | S69: 2836 | T69: 2535 | U69: Nova Scotia | V69: Smaller | W69: Smaller | X69: Smaller
A70: 69 | B70: B2A | C70: 1150 | D70: 14.34% | E70: 840 | F70: 10.48% | G70: 770 | H70: 9.60% | I70: 690 | J70: 8.61% | K70: 630 | L70: 7.86% | M70: 600 | N70: 7.48% | O70: 570 | P70: 7.11% | Q70: 5250 | R70: 8017 | S70: 3713 | T70: 3497 | U70: Nova Scotia | V70: Smaller | W70: Smaller | X70: Smaller
A71: 70 | B71: B2C | C71: 40 | D71: 13.79% | E71: 30 | F71: 10.34% | G71: 30 | H71: 10.34% | I71: 30 | J71: 10.34% | K71: 20 | L71: 6.90% | M71: 20 | N71: 6.90% | O71: 20 | P71: 6.90% | Q71: 190 | R71: 290 | S71: 231 | T71: 139 | U71: Nova Scotia | V71: Smaller | W71: Smaller | X71: Smaller
A72: 71 | B72: B2E | C72: 20 | D72: 48.78% | E72: 20 | F72: 48.78% | G72: 20 | H72: 48.78% | I72: 20 | J72: 48.78% | K72: 20 | L72: 48.78% | M72: 20 | N72: 48.78% | O72: 20 | P72: 48.78% | Q72: 140 | R72: 41 | S72: 139 | T72: 26 | U72: Nova Scotia | V72: Smaller | W72: Smaller | X72: Smaller
A73: 72 | B73: B2G | C73: 1970 | D73: 13.72% | E73: 1400 | F73: 9.75% | G73: 1120 | H73: 7.80% | I73: 930 | J73: 6.48% | K73: 820 | L73: 5.71% | M73: 750 | N73: 5.22% | O73: 590 | P73: 4.11% | Q73: 7580 | R73: 14361 | S73: 7542 | T73: 6097 | U73: Nova Scotia | V73: Smaller | W73: Smaller | X73: Smaller
A74: 73 | B74: B2H | C74: 2140 | D74: 14.78% | E74: 1470 | F74: 10.15% | G74: 1240 | H74: 8.57% | I74: 1080 | J74: 7.46% | K74: 900 | L74: 6.22% | M74: 850 | N74: 5.87% | O74: 730 | P74: 5.04% | Q74: 8410 | R74: 14477 | S74: 7277 | T74: 6540 | U74: Nova Scotia | V74: Smaller | W74: Smaller | X74: Smaller
A75: 74 | B75: B2J | C75: 20 | D75: 29.41% | E75: 20 | F75: 29.41% | G75: 20 | H75: 29.41% | I75: 20 | J75: 29.41% | K75: 20 | L75: 29.41% | M75: 20 | N75: 29.41% | O75: 20 | P75: 29.41% | Q75: 140 | R75: 68 | S75: 116 | T75: 35 | U75: Nova Scotia | V75: Smaller | W75: Smaller | X75: Smaller
A76: 75 | B76: B2N | C76: 3350 | D76: 16.88% | E76: 2250 | F76: 11.34% | G76: 1990 | H76: 10.03% | I76: 1770 | J76: 8.92% | K76: 1500 | L76: 7.56% | M76: 1440 | N76: 7.26% | O76: 1300 | P76: 6.55% | Q76: 13600 | R76: 19842 | S76: 10195 | T76: 9436 | U76: Nova Scotia | V76: Smaller | W76: Smaller | X76: Smaller
A77: 76 | B77: B2R | C77: 370 | D77: 15.05% | E77: 250 | F77: 10.17% | G77: 220 | H77: 8.95% | I77: 180 | J77: 7.32% | K77: 160 | L77: 6.51% | M77: 150 | N77: 6.10% | O77: 110 | P77: 4.47% | Q77: 1440 | R77: 2459 | S77: 1030 | T77: 981 | U77: Nova Scotia | V77: Smaller | W77: Smaller | X77: Smaller
A78: 77 | B78: B2S | C78: 1250 | D78: 16.48% | E78: 680 | F78: 8.97% | G78: 560 | H78: 7.38% | I78: 520 | J78: 6.86% | K78: 400 | L78: 5.27% | M78: 380 | N78: 5.01% | O78: 360 | P78: 4.75% | Q78: 4150 | R78: 7583 | S78: 3018 | T78: 2919 | U78: Nova Scotia | V78: Smaller | W78: Smaller | X78: Smaller
A79: 78 | B79: B2T | C79: 2440 | D79: 14.37% | E79: 1540 | F79: 9.07% | G79: 1280 | H79: 7.54% | I79: 1080 | J79: 6.36% | K79: 840 | L79: 4.95% | M79: 780 | N79: 4.59% | O79: 630 | P79: 3.71% | Q79: 8590 | R79: 16980 | S79: 6446 | T79: 6208 | U79: Nova Scotia | V79: Smaller | W79: Smaller | X79: Smaller
A80: 79 | B80: B2V | C80: 1640 | D80: 13.41% | E80: 1050 | F80: 8.59% | G80: 900 | H80: 7.36% | I80: 770 | J80: 6.30% | K80: 590 | L80: 4.82% | M80: 560 | N80: 4.58% | O80: 460 | P80: 3.76% | Q80: 5970 | R80: 12230 | S80: 4725 | T80: 4643 | U80: Nova Scotia | V80: Smaller | W80: Smaller | X80: Smaller
A81: 80 | B81: B2W | C81: 4750 | D81: 14.60% | E81: 3160 | F81: 9.71% | G81: 2720 | H81: 8.36% | I81: 2360 | J81: 7.25% | K81: 1940 | L81: 5.96% | M81: 1800 | N81: 5.53% | O81: 1600 | P81: 4.92% | Q81: 18330 | R81: 32537 | S81: 13419 | T81: 13095 | U81: Nova Scotia | V81: Smaller | W81: Smaller | X81: Smaller
A82: 81 | B82: B2X | C82: 2160 | D82: 18.57% | E82: 1450 | F82: 12.47% | G82: 1250 | H82: 10.75% | I82: 1070 | J82: 9.20% | K82: 930 | L82: 8.00% | M82: 880 | N82: 7.57% | O82: 760 | P82: 6.54% | Q82: 8500 | R82: 11629 | S82: 4983 | T82: 4725 | U82: Nova Scotia | V82: Smaller | W82: Smaller | X82: Smaller
A83: 82 | B83: B2Y | C83: 2690 | D83: 18.43% | E83: 1820 | F83: 12.47% | G83: 1610 | H83: 11.03% | I83: 1370 | J83: 9.39% | K83: 1170 | L83: 8.02% | M83: 1090 | N83: 7.47% | O83: 940 | P83: 6.44% | Q83: 10690 | R83: 14595 | S83: 7961 | T83: 7340 | U83: Nova Scotia | V83: Smaller | W83: Smaller | X83: Smaller
A84: 83 | B84: B2Z | C84: 1630 | D84: 19.74% | E84: 1180 | F84: 14.29% | G84: 1030 | H84: 12.47% | I84: 900 | J84: 10.90% | K84: 750 | L84: 9.08% | M84: 710 | N84: 8.60% | O84: 650 | P84: 7.87% | Q84: 6850 | R84: 8258 | S84: 3291 | T84: 3158 | U84: Nova Scotia | V84: Smaller | W84: Smaller | X84: Smaller
A85: 84 | B85: B3A | C85: 4590 | D85: 22.80% | E85: 3130 | F85: 15.55% | G85: 2710 | H85: 13.46% | I85: 2370 | J85: 11.77% | K85: 2070 | L85: 10.28% | M85: 1980 | N85: 9.84% | O85: 1760 | P85: 8.74% | Q85: 18610 | R85: 20131 | S85: 11840 | T85: 10808 | U85: Nova Scotia | V85: Smaller | W85: Smaller | X85: Smaller
A86: 85 | B86: B3B | C86: 290 | D86: 20.17% | E86: 200 | F86: 13.91% | G86: 180 | H86: 12.52% | I86: 160 | J86: 11.13% | K86: 130 | L86: 9.04% | M86: 120 | N86: 8.34% | O86: 110 | P86: 7.65% | Q86: 1190 | R86: 1438 | S86: 584 | T86: 524 | U86: Nova Scotia | V86: Smaller | W86: Smaller | X86: Smaller
A87: 86 | B87: B3E | C87: 1110 | D87: 16.37% | E87: 710 | F87: 10.47% | G87: 610 | H87: 8.99% | I87: 510 | J87: 7.52% | K87: 420 | L87: 6.19% | M87: 400 | N87: 5.90% | O87: 330 | P87: 4.87% | Q87: 4090 | R87: 6782 | S87: 2749 | T87: 2637 | U87: Nova Scotia | V87: Smaller | W87: Smaller | X87: Smaller
A88: 87 | B88: B3G | C88: 1600 | D88: 15.10% | E88: 1010 | F88: 9.53% | G88: 880 | H88: 8.31% | I88: 770 | J88: 7.27% | K88: 650 | L88: 6.14% | M88: 560 | N88: 5.29% | O88: 510 | P88: 4.81% | Q88: 5980 | R88: 10593 | S88: 4263 | T88: 4142 | U88: Nova Scotia | V88: Smaller | W88: Smaller | X88: Smaller
A89: 88 | B89: B3H | C89: 2790 | D89: 14.83% | E89: 1900 | F89: 10.10% | G89: 1600 | H89: 8.50% | I89: 1330 | J89: 7.07% | K89: 1120 | L89: 5.95% | M89: 1030 | N89: 5.47% | O89: 860 | P89: 4.57% | Q89: 10630 | R89: 18814 | S89: 11098 | T89: 9135 | U89: Nova Scotia | V89: Smaller | W89: Smaller | X89: Smaller
A90: 89 | B90: B3J | C90: 1440 | D90: 24.40% | E90: 910 | F90: 15.42% | G90: 770 | H90: 13.05% | I90: 670 | J90: 11.35% | K90: 560 | L90: 9.49% | M90: 520 | N90: 8.81% | O90: 450 | P90: 7.63% | Q90: 5320 | R90: 5901 | S90: 4326 | T90: 3464 | U90: Nova Scotia | V90: Smaller | W90: Smaller | X90: Smaller
A91: 90 | B91: B3K | C91: 4560 | D91: 22.15% | E91: 3080 | F91: 14.96% | G91: 2780 | H91: 13.50% | I91: 2400 | J91: 11.66% | K91: 2010 | L91: 9.76% | M91: 1880 | N91: 9.13% | O91: 1660 | P91: 8.06% | Q91: 18370 | R91: 20591 | S91: 11773 | T91: 10448 | U91: Nova Scotia | V91: Smaller | W91: Smaller | X91: Smaller
A92: 91 | B92: B3L | C92: 3150 | D92: 17.97% | E92: 2110 | F92: 12.03% | G92: 1830 | H92: 10.44% | I92: 1600 | J92: 9.13% | K92: 1340 | L92: 7.64% | M92: 1280 | N92: 7.30% | O92: 1090 | P92: 6.22% | Q92: 12400 | R92: 17534 | S92: 8922 | T92: 8188 | U92: Nova Scotia | V92: Smaller | W92: Smaller | X92: Smaller
A93: 92 | B93: B3M | C93: 6080 | D93: 18.88% | E93: 4070 | F93: 12.64% | G93: 3550 | H93: 11.02% | I93: 3060 | J93: 9.50% | K93: 2610 | L93: 8.10% | M93: 2450 | N93: 7.61% | O93: 2060 | P93: 6.40% | Q93: 23880 | R93: 32204 | S93: 16023 | T93: 15123 | U93: Nova Scotia | V93: Smaller | W93: Smaller | X93: Smaller
A94: 93 | B94: B3N | C94: 2540 | D94: 18.67% | E94: 1700 | F94: 12.50% | G94: 1470 | H94: 10.81% | I94: 1250 | J94: 9.19% | K94: 1050 | L94: 7.72% | M94: 990 | N94: 7.28% | O94: 880 | P94: 6.47% | Q94: 9880 | R94: 13604 | S94: 6983 | T94: 6495 | U94: Nova Scotia | V94: Smaller | W94: Smaller | X94: Smaller
A95: 94 | B95: B3P | C95: 1660 | D95: 17.76% | E95: 1190 | F95: 12.73% | G95: 1030 | H95: 11.02% | I95: 850 | J95: 9.09% | K95: 710 | L95: 7.60% | M95: 650 | N95: 6.95% | O95: 570 | P95: 6.10% | Q95: 6660 | R95: 9347 | S95: 4237 | T95: 3990 | U95: Nova Scotia | V95: Smaller | W95: Smaller | X95: Smaller
A96: 95 | B96: B3R | C96: 1930 | D96: 22.75% | E96: 1380 | F96: 16.27% | G96: 1240 | H96: 14.62% | I96: 1090 | J96: 12.85% | K96: 940 | L96: 11.08% | M96: 910 | N96: 10.73% | O96: 830 | P96: 9.78% | Q96: 8320 | R96: 8484 | S96: 4109 | T96: 3860 | U96: Nova Scotia | V96: Smaller | W96: Smaller | X96: Smaller
A97: 96 | B97: B3S | C97: 2110 | D97: 16.36% | E97: 1470 | F97: 11.40% | G97: 1290 | H97: 10.00% | I97: 1090 | J97: 8.45% | K97: 900 | L97: 6.98% | M97: 850 | N97: 6.59% | O97: 710 | P97: 5.51% | Q97: 8420 | R97: 12895 | S97: 5872 | T97: 5734 | U97: Nova Scotia | V97: Smaller | W97: Smaller | X97: Smaller
A98: 97 | B98: B3T | C98: 2540 | D98: 15.04% | E98: 1650 | F98: 9.77% | G98: 1390 | H98: 8.23% | I98: 1230 | J98: 7.29% | K98: 990 | L98: 5.86% | M98: 900 | N98: 5.33% | O98: 780 | P98: 4.62% | Q98: 9480 | R98: 16884 | S98: 6648 | T98: 6360 | U98: Nova Scotia | V98: Smaller | W98: Smaller | X98: Smaller
A99: 98 | B99: B3V | C99: 950 | D99: 15.84% | E99: 660 | F99: 11.00% | G99: 580 | H99: 9.67% | I99: 490 | J99: 8.17% | K99: 390 | L99: 6.50% | M99: 370 | N99: 6.17% | O99: 310 | P99: 5.17% | Q99: 3750 | R99: 5999 | S99: 2542 | T99: 2393 | U99: Nova Scotia | V99: Smaller | W99: Smaller | X99: Smaller
A100: 99 | B100: B3Z | C100: 2240 | D100: 13.25% | E100: 1630 | F100: 9.64% | G100: 1420 | H100: 8.40% | I100: 1180 | J100: 6.98% | K100: 940 | L100: 5.56% | M100: 850 | N100: 5.03% | O100: 700 | P100: 4.14% | Q100: 8960 | R100: 16905 | S100: 6839 | T100: 6263 | U100: Nova Scotia | V100: Smaller | W100: Smaller | X100: Smaller
A101: 100 | B101: B4A | C101: 2740 | D101: 15.31% | E101: 1960 | F101: 10.95% | G101: 1700 | H101: 9.50% | I101: 1410 | J101: 7.88% | K101: 1140 | L101: 6.37% | M101: 1080 | N101: 6.03% | O101: 950 | P101: 5.31% | Q101: 10980 | R101: 17900 | S101: 7586 | T101: 7199 | U101: Nova Scotia | V101: Smaller | W101: Smaller | X101: Smaller
A102: 101 | B102: B4B | C102: 2160 | D102: 16.58% | E102: 1560 | F102: 11.97% | G102: 1300 | H102: 9.98% | I102: 1070 | J102: 8.21% | K102: 840 | L102: 6.45% | M102: 800 | N102: 6.14% | O102: 680 | P102: 5.22% | Q102: 8410 | R102: 13028 | S102: 4485 | T102: 4347 | U102: Nova Scotia | V102: Smaller | W102: Smaller | X102: Smaller
A103: 102 | B103: B4C | C103: 2900 | D103: 15.94% | E103: 1810 | F103: 9.95% | G103: 1590 | H103: 8.74% | I103: 1460 | J103: 8.02% | K103: 1190 | L103: 6.54% | M103: 1120 | N103: 6.16% | O103: 990 | P103: 5.44% | Q103: 11060 | R103: 18195 | S103: 7512 | T103: 7307 | U103: Nova Scotia | V103: Smaller | W103: Smaller | X103: Smaller
A104: 103 | B104: B4E | C104: 2860 | D104: 15.66% | E104: 1850 | F104: 10.13% | G104: 1580 | H104: 8.65% | I104: 1380 | J104: 7.56% | K104: 1110 | L104: 6.08% | M104: 1000 | N104: 5.48% | O104: 870 | P104: 4.76% | Q104: 10650 | R104: 18259 | S104: 7090 | T104: 6920 | U104: Nova Scotia | V104: Smaller | W104: Smaller | X104: Smaller
A105: 104 | B105: B4G | C105: 720 | D105: 14.24% | E105: 440 | F105: 8.70% | G105: 390 | H105: 7.72% | I105: 330 | J105: 6.53% | K105: 260 | L105: 5.14% | M105: 240 | N105: 4.75% | O105: 210 | P105: 4.15% | Q105: 2590 | R105: 5055 | S105: 1851 | T105: 1803 | U105: Nova Scotia | V105: Smaller | W105: Smaller | X105: Smaller
A106: 105 | B106: B4H | C106: 1880 | D106: 14.01% | E106: 1320 | F106: 9.83% | G106: 1170 | H106: 8.72% | I106: 1050 | J106: 7.82% | K106: 870 | L106: 6.48% | M106: 830 | N106: 6.18% | O106: 760 | P106: 5.66% | Q106: 7880 | R106: 13422 | S106: 7122 | T106: 6096 | U106: Nova Scotia | V106: Smaller | W106: Smaller | X106: Smaller
A107: 106 | B107: B4N | C107: 2620 | D107: 15.07% | E107: 1790 | F107: 10.30% | G107: 1490 | H107: 8.57% | I107: 1300 | J107: 7.48% | K107: 1070 | L107: 6.16% | M107: 1010 | N107: 5.81% | O107: 880 | P107: 5.06% | Q107: 10160 | R107: 17382 | S107: 8158 | T107: 7706 | U107: Nova Scotia | V107: Smaller | W107: Smaller | X107: Smaller
A108: 107 | B108: B4P | C108: 1160 | D108: 14.90% | E108: 810 | F108: 10.41% | G108: 700 | H108: 8.99% | I108: 590 | J108: 7.58% | K108: 490 | L108: 6.29% | M108: 440 | N108: 5.65% | O108: 380 | P108: 4.88% | Q108: 4570 | R108: 7784 | S108: 4290 | T108: 3482 | U108: Nova Scotia | V108: Smaller | W108: Smaller | X108: Smaller
A109: 108 | B109: B4R | C109: 340 | D109: 11.39% | E109: 220 | F109: 7.37% | G109: 180 | H109: 6.03% | I109: 150 | J109: 5.03% | K109: 110 | L109: 3.69% | M109: 100 | N109: 3.35% | O109: 80 | P109: 2.68% | Q109: 1180 | R109: 2985 | S109: 1199 | T109: 1175 | U109: Nova Scotia | V109: Smaller | W109: Smaller | X109: Smaller
A110: 109 | B110: B4V | C110: 2840 | D110: 14.08% | E110: 1980 | F110: 9.82% | G110: 1570 | H110: 7.78% | I110: 1320 | J110: 6.55% | K110: 1060 | L110: 5.26% | M110: 980 | N110: 4.86% | O110: 900 | P110: 4.46% | Q110: 10650 | R110: 20167 | S110: 9999 | T110: 9002 | U110: Nova Scotia | V110: Smaller | W110: Smaller | X110: Smaller
A111: 110 | B111: B5A | C111: 2380 | D111: 15.38% | E111: 1600 | F111: 10.34% | G111: 1610 | H111: 10.40% | I111: 1280 | J111: 8.27% | K111: 1050 | L111: 6.78% | M111: 1010 | N111: 6.52% | O111: 900 | P111: 5.81% | Q111: 9830 | R111: 15479 | S111: 7929 | T111: 6969 | U111: Nova Scotia | V111: Smaller | W111: Bigger | X111: Smaller | Y111: x
A112: 111 | B112: B6L | C112: 1880 | D112: 14.45% | E112: 1150 | F112: 8.84% | G112: 1020 | H112: 7.84% | I112: 890 | J112: 6.84% | K112: 690 | L112: 5.30% | M112: 660 | N112: 5.07% | O112: 600 | P112: 4.61% | Q112: 6890 | R112: 13007 | S112: 5380 | T112: 5144 | U112: Nova Scotia | V112: Smaller | W112: Smaller | X112: Smaller
A113: 112 | B113: B9A | C113: 680 | D113: 15.14% | E113: 480 | F113: 10.69% | G113: 400 | H113: 8.90% | I113: 340 | J113: 7.57% | K113: 320 | L113: 7.12% | M113: 300 | N113: 6.68% | O113: 280 | P113: 6.23% | Q113: 2800 | R113: 4492 | S113: 2178 | T113: 1880 | U113: Nova Scotia | V113: Smaller | W113: Smaller | X113: Smaller
A114: 113 | B114: C0A | C114: 5990 | D114: 13.58% | E114: 4230 | F114: 9.59% | G114: 3410 | H114: 7.73% | I114: 3000 | J114: 6.80% | K114: 2720 | L114: 6.17% | M114: 2540 | N114: 5.76% | O114: 2580 | P114: 5.85% | Q114: 24470 | R114: 44095 | S114: 23867 | T114: 17692 | U114: Prince Edward Island | V114: Smaller | W114: Smaller | X114: Smaller
A115: 114 | B115: C0B | C115: 3310 | D115: 11.58% | E115: 2440 | F115: 8.54% | G115: 1950 | H115: 6.82% | I115: 1880 | J115: 6.58% | K115: 1810 | L115: 6.33% | M115: 1670 | N115: 5.84% | O115: 1800 | P115: 6.30% | Q115: 14860 | R115: 28575 | S115: 14826 | T115: 11570 | U115: Prince Edward Island | V115: Smaller | W115: Smaller | X115: Smaller
A116: 115 | B116: C1A | C116: 4660 | D116: 18.76% | E116: 3180 | F116: 12.80% | G116: 2710 | H116: 10.91% | I116: 2220 | J116: 8.94% | K116: 1880 | L116: 7.57% | M116: 1780 | N116: 7.17% | O116: 1640 | P116: 6.60% | Q116: 18070 | R116: 24839 | S116: 12631 | T116: 11691 | U116: Prince Edward Island | V116: Smaller | W116: Smaller | X116: Smaller
A117: 116 | B117: C1B | C117: 1900 | D117: 14.39% | E117: 1250 | F117: 9.47% | G117: 1050 | H117: 7.95% | I117: 910 | J117: 6.89% | K117: 710 | L117: 5.38% | M117: 680 | N117: 5.15% | O117: 640 | P117: 4.85% | Q117: 7140 | R117: 13203 | S117: 5549 | T117: 5128 | U117: Prince Edward Island | V117: Smaller | W117: Smaller | X117: Smaller
A118: 117 | B118: C1C | C118: 810 | D118: 18.99% | E118: 480 | F118: 11.25% | G118: 420 | H118: 9.85% | I118: 350 | J118: 8.20% | K118: 280 | L118: 6.56% | M118: 260 | N118: 6.09% | O118: 250 | P118: 5.86% | Q118: 2850 | R118: 4266 | S118: 1888 | T118: 1804 | U118: Prince Edward Island | V118: Smaller | W118: Smaller | X118: Smaller
A119: 118 | B119: C1E | C119: 1740 | D119: 15.18% | E119: 1210 | F119: 10.55% | G119: 990 | H119: 8.63% | I119: 840 | J119: 7.33% | K119: 640 | L119: 5.58% | M119: 620 | N119: 5.41% | O119: 590 | P119: 5.15% | Q119: 6630 | R119: 11466 | S119: 4617 | T119: 4362 | U119: Prince Edward Island | V119: Smaller | W119: Smaller | X119: Smaller
A120: 119 | B120: C1N | C120: 2470 | D120: 15.00% | E120: 1670 | F120: 10.14% | G120: 1370 | H120: 8.32% | I120: 1260 | J120: 7.65% | K120: 1110 | L120: 6.74% | M120: 1060 | N120: 6.44% | O120: 1110 | P120: 6.74% | Q120: 10050 | R120: 16463 | S120: 7741 | T120: 7225 | U120: Prince Edward Island | V120: Smaller | W120: Smaller | X120: Smaller
A121: 120 | B121: E1A | C121: 6940 | D121: 16.14% | E121: 4250 | F121: 9.88% | G121: 3520 | H121: 8.18% | I121: 2980 | J121: 6.93% | K121: 2430 | L121: 5.65% | M121: 2310 | N121: 5.37% | O121: 2180 | P121: 5.07% | Q121: 24610 | R121: 43012 | S121: 19597 | T121: 18190 | U121: New Brunswick | V121: Smaller | W121: Smaller | X121: Smaller
A122: 121 | B122: E1B | C122: 2940 | D122: 14.95% | E122: 1720 | F122: 8.75% | G122: 1400 | H122: 7.12% | I122: 1230 | J122: 6.25% | K122: 970 | L122: 4.93% | M122: 960 | N122: 4.88% | O122: 880 | P122: 4.47% | Q122: 10100 | R122: 19667 | S122: 8537 | T122: 8224 | U122: New Brunswick | V122: Smaller | W122: Smaller | X122: Smaller
A123: 122 | B123: E1C | C123: 5020 | D123: 21.19% | E123: 3200 | F123: 13.51% | G123: 2700 | H123: 11.40% | I123: 2360 | J123: 9.96% | K123: 2020 | L123: 8.53% | M123: 1960 | N123: 8.27% | O123: 1770 | P123: 7.47% | Q123: 19030 | R123: 23686 | S123: 13424 | T123: 11680 | U123: New Brunswick | V123: Smaller | W123: Smaller | X123: Smaller
A124: 123 | B124: E1E | C124: 1780 | D124: 16.17% | E124: 1130 | F124: 10.27% | G124: 950 | H124: 8.63% | I124: 850 | J124: 7.72% | K124: 700 | L124: 6.36% | M124: 650 | N124: 5.91% | O124: 610 | P124: 5.54% | Q124: 6670 | R124: 11006 | S124: 5316 | T124: 4970 | U124: New Brunswick | V124: Smaller | W124: Smaller | X124: Smaller
A125: 124 | B125: E1G | C125: 3590 | D125: 15.92% | E125: 2170 | F125: 9.62% | G125: 1730 | H125: 7.67% | I125: 1470 | J125: 6.52% | K125: 1150 | L125: 5.10% | M125: 1100 | N125: 4.88% | O125: 1020 | P125: 4.52% | Q125: 12230 | R125: 22554 | S125: 8799 | T125: 8482 | U125: New Brunswick | V125: Smaller | W125: Smaller | X125: Smaller
A126: 125 | B126: E1H | C126: 1110 | D126: 14.96% | E126: 670 | F126: 9.03% | G126: 500 | H126: 6.74% | I126: 420 | J126: 5.66% | K126: 350 | L126: 4.72% | M126: 340 | N126: 4.58% | O126: 340 | P126: 4.58% | Q126: 3730 | R126: 7421 | S126: 3344 | T126: 3203 | U126: New Brunswick | V126: Smaller | W126: Smaller | X126: Smaller
A127: 126 | B127: E1J | C127: 510 | D127: 14.84% | E127: 300 | F127: 8.73% | G127: 240 | H127: 6.98% | I127: 200 | J127: 5.82% | K127: 180 | L127: 5.24% | M127: 170 | N127: 4.95% | O127: 160 | P127: 4.66% | Q127: 1760 | R127: 3436 | S127: 1384 | T127: 1339 | U127: New Brunswick | V127: Smaller | W127: Smaller | X127: Smaller
A128: 127 | B128: E1N | C128: 1410 | D128: 12.43% | E128: 930 | F128: 8.20% | G128: 760 | H128: 6.70% | I128: 680 | J128: 5.99% | K128: 570 | L128: 5.02% | M128: 580 | N128: 5.11% | O128: 590 | P128: 5.20% | Q128: 5520 | R128: 11344 | S128: 5478 | T128: 4858 | U128: New Brunswick | V128: Smaller | W128: Smaller | X128: Smaller
A129: 128 | B129: E1V | C129: 2000 | D129: 14.77% | E129: 1360 | F129: 10.04% | G129: 1140 | H129: 8.42% | I129: 1020 | J129: 7.53% | K129: 840 | L129: 6.20% | M129: 850 | N129: 6.28% | O129: 870 | P129: 6.42% | Q129: 8080 | R129: 13544 | S129: 6364 | T129: 5909 | U129: New Brunswick | V129: Smaller | W129: Smaller | X129: Smaller
A130: 129 | B130: E1W | C130: 830 | D130: =C130/R130 -> 11.97% | E130: 580 | F130: =E130/R130 -> 8.36% | G130: 480 | H130: =G130/R130 -> 6.92% | I130: 430 | J130: =I130/R130 -> 6.20% | K130: 450 | L130: =K130/R130 -> 6.49% | M130: 400 | N130: =M130/R130 -> 5.77% | O130: 390 | P130: =O130/R130 -> 5.62% | Q130: 3560 | R130: 6935 | S130: 3550 | T130: 3197 | U130: New Brunswick | V130: Smaller | W130: Smaller | X130: Smaller
A131: 130 | B131: E1X | C131: 1760 | D131: 12.54% | E131: 1220 | F131: 8.69% | G131: 1010 | H131: 7.19% | I131: 930 | J131: 6.62% | K131: 880 | L131: 6.27% | M131: 870 | N131: 6.20% | O131: 800 | P131: 5.70% | Q131: 7470 | R131: 14040 | S131: 6509 | T131: 5927 | U131: New Brunswick | V131: Smaller | W131: Smaller | X131: Smaller
A132: 131 | B132: E2A | C132: 2320 | D132: 13.48% | E132: 1470 | F132: 8.54% | G132: 1230 | H132: 7.15% | I132: 1070 | J132: 6.22% | K132: 920 | L132: 5.35% | M132: 900 | N132: 5.23% | O132: 880 | P132: 5.11% | Q132: 8790 | R132: 17205 | S132: 8966 | T132: 7913 | U132: New Brunswick | V132: Smaller | W132: Smaller | X132: Smaller
A133: 132 | B133: E2E | C133: 2260 | D133: 11.57% | E133: 1560 | F133: 7.99% | G133: 1240 | H133: 6.35% | I133: 1090 | J133: 5.58% | K133: 840 | L133: 4.30% | M133: 800 | N133: 4.10% | O133: 730 | P133: 3.74% | Q133: 8520 | R133: 19526 | S133: 7421 | T133: 7198 | U133: New Brunswick | V133: Smaller | W133: Smaller | X133: Smaller
A134: 133 | B134: E2G | C134: 640 | D134: 12.60% | E134: 410 | F134: 8.07% | G134: 330 | H134: 6.50% | I134: 290 | J134: 5.71% | K134: 220 | L134: 4.33% | M134: 200 | N134: 3.94% | O134: 180 | P134: 3.54% | Q134: 2270 | R134: 5079 | S134: 1943 | T134: 1888 | U134: New Brunswick | V134: Smaller | W134: Smaller | X134: Smaller
A135: 134 | B135: E2H | C135: 660 | D135: 14.04% | E135: 440 | F135: 9.36% | G135: 370 | H135: 7.87% | I135: 350 | J135: 7.45% | K135: 280 | L135: 5.96% | M135: 280 | N135: 5.96% | O135: 280 | P135: 5.96% | Q135: 2660 | R135: 4700 | S135: 2004 | T135: 1884 | U135: New Brunswick | V135: Smaller | W135: Smaller | X135: Smaller
A136: 135 | B136: E2J | C136: 2700 | D136: 17.07% | E136: 1660 | F136: 10.50% | G136: 1410 | H136: 8.92% | I136: 1290 | J136: 8.16% | K136: 1070 | L136: 6.77% | M136: 1040 | N136: 6.58% | O136: 950 | P136: 6.01% | Q136: 10120 | R136: 15813 | S136: 7512 | T136: 6919 | U136: New Brunswick | V136: Smaller | W136: Smaller | X136: Smaller
A137: 136 | B137: E2K | C137: 2930 | D137: 16.75% | E137: 2100 | F137: 12.00% | G137: 1860 | H137: 10.63% | I137: 1690 | J137: 9.66% | K137: 1420 | L137: 8.12% | M137: 1370 | N137: 7.83% | O137: 1250 | P137: 7.14% | Q137: 12620 | R137: 17495 | S137: 8939 | T137: 7847 | U137: New Brunswick | V137: Smaller | W137: Smaller | X137: Smaller
A138: 137 | B138: E2L | C138: 1860 | D138: 24.58% | E138: 1250 | F138: 16.52% | G138: 1130 | H138: 14.94% | I138: 980 | J138: 12.95% | K138: 850 | L138: 11.23% | M138: 830 | N138: 10.97% | O138: 770 | P138: 10.18% | Q138: 7670 | R138: 7566 | S138: 5203 | T138: 4212 | U138: New Brunswick | V138: Smaller | W138: Smaller | X138: Smaller
A139: 138 | B139: E2M | C139: 2670 | D139: 14.27% | E139: 1720 | F139: 9.19% | G139: 1450 | H139: 7.75% | I139: 1260 | J139: 6.73% | K139: 1070 | L139: 5.72% | M139: 1020 | N139: 5.45% | O139: 960 | P139: 5.13% | Q139: 10150 | R139: 18715 | S139: 8739 | T139: 8039 | U139: New Brunswick | V139: Smaller | W139: Smaller | X139: Smaller
A140: 139 | B140: E2N | C140: 680 | D140: 15.91% | E140: 430 | F140: 10.06% | G140: 350 | H140: 8.19% | I140: 310 | J140: 7.25% | K140: 260 | L140: 6.08% | M140: 240 | N140: 5.61% | O140: 200 | P140: 4.68% | Q140: 2470 | R140: 4275 | S140: 1771 | T140: 1678 | U140: New Brunswick | V140: Smaller | W140: Smaller | X140: Smaller
A141: 140 | B141: E2P | C141: 230 | D141: 16.53% | E141: 110 | F141: 7.91% | G141: 100 | H141: 7.19% | I141: 100 | J141: 7.19% | K141: 80 | L141: 5.75% | M141: 80 | N141: 5.75% | O141: 70 | P141: 5.03% | Q141: 770 | R141: 1391 | S141: 575 | T141: 556 | U141: New Brunswick | V141: Smaller | W141: Smaller | X141: Smaller
A142: 141 | B142: E2S | C142: 1030 | D142: 15.10% | E142: 600 | F142: 8.80% | G142: 500 | H142: 7.33% | I142: 480 | J142: 7.04% | K142: 380 | L142: 5.57% | M142: 360 | N142: 5.28% | O142: 320 | P142: 4.69% | Q142: 3670 | R142: 6822 | S142: 2757 | T142: 2613 | U142: New Brunswick | V142: Smaller | W142: Smaller | X142: Smaller
A143: 142 | B143: E2V | C143: 1550 | D143: 10.58% | E143: 1000 | F143: 6.83% | G143: 850 | H143: 5.80% | I143: 790 | J143: 5.39% | K143: 630 | L143: 4.30% | M143: 620 | N143: 4.23% | O143: 570 | P143: 3.89% | Q143: 6010 | R143: 14649 | S143: 6034 | T143: 5530 | U143: New Brunswick | V143: Smaller | W143: Smaller | X143: Smaller
A144: 143 | B144: E3A | C144: 4370 | D144: 15.51% | E144: 2820 | F144: 10.01% | G144: 2370 | H144: 8.41% | I144: 2070 | J144: 7.35% | K144: 1780 | L144: 6.32% | M144: 1700 | N144: 6.04% | O144: 1520 | P144: 5.40% | Q144: 16630 | R144: 28167 | S144: 12655 | T144: 11979 | U144: New Brunswick | V144: Smaller | W144: Smaller | X144: Smaller
A145: 144 | B145: E3B | C145: 5830 | D145: 15.78% | E145: 3470 | F145: 9.39% | G145: 2840 | H145: 7.69% | I145: 2390 | J145: 6.47% | K145: 1970 | L145: 5.33% | M145: 1900 | N145: 5.14% | O145: 1780 | P145: 4.82% | Q145: 20180 | R145: 36946 | S145: 18200 | T145: 16373 | U145: New Brunswick | V145: Smaller | W145: Smaller | X145: Smaller
A146: 145 | B146: E3C | C146: 1410 | D146: 12.16% | E146: 880 | F146: 7.59% | G146: 690 | H146: 5.95% | I146: 550 | J146: 4.74% | K146: 430 | L146: 3.71% | M146: 430 | N146: 3.71% | O146: 380 | P146: 3.28% | Q146: 4770 | R146: 11594 | S146: 4659 | T146: 4515 | U146: New Brunswick | V146: Smaller | W146: Smaller | X146: Smaller
A147: 146 | B147: E3E | C147: 640 | D147: 13.91% | E147: 410 | F147: 8.91% | G147: 340 | H147: 7.39% | I147: 300 | J147: 6.52% | K147: 260 | L147: 5.65% | M147: 240 | N147: 5.22% | O147: 240 | P147: 5.22% | Q147: 2430 | R147: 4600 | S147: 1726 | T147: 1688 | U147: New Brunswick | V147: Smaller | W147: Smaller | X147: Smaller
A148: 147 | B148: E3G | C148: 1200 | D148: 13.81% | E148: 730 | F148: 8.40% | G148: 620 | H148: 7.14% | I148: 540 | J148: 6.22% | K148: 430 | L148: 4.95% | M148: 390 | N148: 4.49% | O148: 350 | P148: 4.03% | Q148: 4260 | R148: 8687 | S148: 3452 | T148: 3355 | U148: New Brunswick | V148: Smaller | W148: Smaller | X148: Smaller
A149: 148 | B149: E3L | C149: 1250 | D149: 14.50% | E149: 840 | F149: 9.75% | G149: 740 | H149: 8.59% | I149: 660 | J149: 7.66% | K149: 560 | L149: 6.50% | M149: 540 | N149: 6.27% | O149: 510 | P149: 5.92% | Q149: 5100 | R149: 8618 | S149: 4147 | T149: 3774 | U149: New Brunswick | V149: Smaller | W149: Smaller | X149: Smaller
A150: 149 | B150: E3N | C150: 1700 | D150: 12.56% | E150: 1120 | F150: 8.28% | G150: 1010 | H150: 7.46% | I150: 950 | J150: 7.02% | K150: 780 | L150: 5.76% | M150: 830 | N150: 6.13% | O150: 840 | P150: 6.21% | Q150: 7230 | R150: 13533 | S150: 6539 | T150: 6068 | U150: New Brunswick | V150: Smaller | W150: Smaller | X150: Smaller
A151: 150 | B151: E3V | C151: 1670 | D151: 14.22% | E151: 1100 | F151: 9.37% | G151: 870 | H151: 7.41% | I151: 760 | J151: 6.47% | K151: 640 | L151: 5.45% | M151: 610 | N151: 5.20% | O151: 600 | P151: 5.11% | Q151: 6250 | R151: 11742 | S151: 5898 | T151: 5463 | U151: New Brunswick | V151: Smaller | W151: Smaller | X151: Smaller
A152: 151 | B152: E3Y | C152: 950 | D152: 12.92% | E152: 660 | F152: 8.97% | G152: 480 | H152: 6.53% | I152: 400 | J152: 5.44% | K152: 330 | L152: 4.49% | M152: 340 | N152: 4.62% | O152: 310 | P152: 4.21% | Q152: 3470 | R152: 7355 | S152: 3299 | T152: 3073 | U152: New Brunswick | V152: Smaller | W152: Smaller | X152: Smaller
A153: 152 | B153: E3Z | C153: 520 | D153: 12.75% | E153: 400 | F153: 9.80% | G153: 290 | H153: 7.11% | I153: 250 | J153: 6.13% | K153: 210 | L153: 5.15% | M153: 210 | N153: 5.15% | O153: 210 | P153: 5.15% | Q153: 2090 | R153: 4080 | S153: 1988 | T153: 1861 | U153: New Brunswick | V153: Smaller | W153: Smaller | X153: Smaller
A154: 153 | B154: E4A | C154: 330 | D154: 11.28% | E154: 260 | F154: 8.89% | G154: 200 | H154: 6.84% | I154: 180 | J154: 6.15% | K154: 150 | L154: 5.13% | M154: 150 | N154: 5.13% | O154: 140 | P154: 4.78% | Q154: 1410 | R154: 2926 | S154: 1959 | T154: 1444 | U154: New Brunswick | V154: Smaller | W154: Smaller | X154: Smaller
A155: 154 | B155: E4B | C155: 550 | D155: 13.13% | E155: 410 | F155: 9.79% | G155: 360 | H155: 8.59% | I155: 320 | J155: 7.64% | K155: 260 | L155: 6.21% | M155: 270 | N155: 6.44% | O155: 240 | P155: 5.73% | Q155: 2410 | R155: 4190 | S155: 2531 | T155: 1955 | U155: New Brunswick | V155: Smaller | W155: Smaller | X155: Smaller
A156: 155 | B156: E4C | C156: 210 | D156: 9.61% | E156: 140 | F156: 6.40% | G156: 130 | H156: 5.95% | I156: 120 | J156: 5.49% | K156: 100 | L156: 4.57% | M156: 110 | N156: 5.03% | O156: 90 | P156: 4.12% | Q156: 900 | R156: 2186 | S156: 2061 | T156: 998 | U156: New Brunswick | V156: Smaller | W156: Smaller | X156: Smaller
A157: 156 | B157: E4E | C157: 1310 | D157: 14.71% | E157: 830 | F157: 9.32% | G157: 700 | H157: 7.86% | I157: 640 | J157: 7.19% | K157: 500 | L157: 5.61% | M157: 480 | N157: 5.39% | O157: 450 | P157: 5.05% | Q157: 4910 | R157: 8906 | S157: 4323 | T157: 3923 | U157: New Brunswick | V157: Smaller | W157: Smaller | X157: Smaller
A158: 157 | B158: E4G | C158: 360 | D158: 13.15% | E158: 240 | F158: 8.77% | G158: 200 | H158: 7.31% | I158: 180 | J158: 6.58% | K158: 140 | L158: 5.12% | M158: 130 | N158: 4.75% | O158: 120 | P158: 4.38% | Q158: 1370 | R158: 2737 | S158: 1183 | T158: 1104 | U158: New Brunswick | V158: Smaller | W158: Smaller | X158: Smaller
A159: 158 | B159: E4H | C159: 550 | D159: 13.70% | E159: 390 | F159: 9.72% | G159: 340 | H159: 8.47% | I159: 300 | J159: 7.47% | K159: 260 | L159: 6.48% | M159: 260 | N159: 6.48% | O159: 240 | P159: 5.98% | Q159: 2340 | R159: 4014 | S159: 2115 | T159: 1771 | U159: New Brunswick | V159: Smaller | W159: Smaller | X159: Smaller
A160: 159 | B160: E4J | C160: 780 | D160: 16.12% | E160: 430 | F160: 8.88% | G160: 370 | H160: 7.64% | I160: 330 | J160: 6.82% | K160: 270 | L160: 5.58% | M160: 250 | N160: 5.17% | O160: 240 | P160: 4.96% | Q160: 2670 | R160: 4840 | S160: 2098 | T160: 1980 | U160: New Brunswick | V160: Smaller | W160: Smaller | X160: Smaller
A161: 160 | B161: E4K | C161: 700 | D161: 11.08% | E161: 420 | F161: 6.65% | G161: 340 | H161: 5.38% | I161: 300 | J161: 4.75% | K161: 240 | L161: 3.80% | M161: 240 | N161: 3.80% | O161: 240 | P161: 3.80% | Q161: 2480 | R161: 6315 | S161: 2593 | T161: 2379 | U161: New Brunswick | V161: Smaller | W161: Smaller | X161: Smaller
A162: 161 | B162: E4L | C162: 970 | D162: 13.84% | E162: 660 | F162: 9.42% | G162: 550 | H162: 7.85% | I162: 470 | J162: 6.71% | K162: 400 | L162: 5.71% | M162: 390 | N162: 5.56% | O162: 390 | P162: 5.56% | Q162: 3830 | R162: 7009 | S162: 3877 | T162: 3019 | U162: New Brunswick | V162: Smaller | W162: Smaller | X162: Smaller
A163: 162 | B163: E4M | C163: 250 | D163: 14.11% | E163: 160 | F163: 9.03% | G163: 140 | H163: 7.90% | I163: 140 | J163: 7.90% | K163: 140 | L163: 7.90% | M163: 120 | N163: 6.77% | O163: 100 | P163: 5.64% | Q163: 1050 | R163: 1772 | S163: 1462 | T163: 817 | U163: New Brunswick | V163: Smaller | W163: Smaller | X163: Smaller
A164: 163 | B164: E4N | C164: 480 | D164: 12.93% | E164: 320 | F164: 8.62% | G164: 260 | H164: 7.00% | I164: 230 | J164: 6.20% | K164: 210 | L164: 5.66% | M164: 190 | N164: 5.12% | O164: 210 | P164: 5.66% | Q164: 1900 | R164: 3712 | S164: 1765 | T164: 1498 | U164: New Brunswick | V164: Smaller | W164: Smaller | X164: Smaller
A165: 164 | B165: E4P | C165: 2020 | D165: 13.85% | E165: 1240 | F165: 8.50% | G165: 1010 | H165: 6.92% | I165: 860 | J165: 5.90% | K165: 770 | L165: 5.28% | M165: 730 | N165: 5.00% | O165: 790 | P165: 5.42% | Q165: 7420 | R165: 14586 | S165: 7799 | T165: 6305 | U165: New Brunswick | V165: Smaller | W165: Smaller | X165: Smaller
A166: 165 | B166: E4R | C166: 820 | D166: 13.05% | E166: 470 | F166: 7.48% | G166: 390 | H166: 6.21% | I166: 340 | J166: 5.41% | K166: 280 | L166: 4.46% | M166: 280 | N166: 4.46% | O166: 280 | P166: 4.46% | Q166: 2860 | R166: 6285 | S166: 3933 | T166: 2753 | U166: New Brunswick | V166: Smaller | W166: Smaller | X166: Smaller
A167: 166 | B167: E4S | C167: 940 | D167: 13.40% | E167: 660 | F167: 9.41% | G167: 560 | H167: 7.99% | I167: 490 | J167: 6.99% | K167: 410 | L167: 5.85% | M167: 420 | N167: 5.99% | O167: 420 | P167: 5.99% | Q167: 3900 | R167: 7013 | S167: 3631 | T167: 3052 | U167: New Brunswick | V167: Smaller | W167: Smaller | X167: Smaller
A168: 167 | B168: E4T | C168: 280 | D168: 12.97% | E168: 200 | F168: 9.26% | G168: 170 | H168: 7.87% | I168: 170 | J168: 7.87% | K168: 130 | L168: 6.02% | M168: 120 | N168: 5.56% | O168: 120 | P168: 5.56% | Q168: 1190 | R168: 2159 | S168: 1240 | T168: 946 | U168: New Brunswick | V168: Smaller | W168: Smaller | X168: Smaller
A169: 168 | B169: E4V | C169: 580 | D169: 13.66% | E169: 340 | F169: 8.01% | G169: 260 | H169: 6.12% | I169: 240 | J169: 5.65% | K169: 190 | L169: 4.47% | M169: 180 | N169: 4.24% | O169: 200 | P169: 4.71% | Q169: 1990 | R169: 4246 | S169: 1997 | T169: 1784 | U169: New Brunswick | V169: Smaller | W169: Smaller | X169: Smaller
A170: 169 | B170: E4W | C170: 1400 | D170: 17.35% | E170: 1190 | F170: 14.75% | G170: 1090 | H170: 13.51% | I170: 1140 | J170: 14.13% | K170: 1030 | L170: 12.76% | M170: 950 | N170: 11.77% | O170: 940 | P170: 11.65% | Q170: 7740 | R170: 8069 | S170: 4198 | T170: 3529 | U170: New Brunswick | V170: Smaller | W170: Smaller | X170: Bigger
A171: 170 | B171: E4X | C171: 300 | D171: 10.08% | E171: 220 | F171: 7.39% | G171: 190 | H171: 6.38% | I171: 170 | J171: 5.71% | K171: 160 | L171: 5.38% | M171: 140 | N171: 4.70% | O171: 170 | P171: 5.71% | Q171: 1350 | R171: 2976 | S171: 1416 | T171: 1274 | U171: New Brunswick | V171: Smaller | W171: Smaller | X171: Smaller
A172: 171 | B172: E4Y | C172: 330 | D172: 10.86% | E172: 220 | F172: 7.24% | G172: 180 | H172: 5.92% | I172: 160 | J172: 5.27% | K172: 140 | L172: 4.61% | M172: 150 | N172: 4.94% | O172: 150 | P172: 4.94% | Q172: 1330 | R172: 3038 | S172: 1534 | T172: 1355 | U172: New Brunswick | V172: Smaller | W172: Smaller | X172: Smaller
A173: 172 | B173: E4Z | C173: 730 | D173: 12.99% | E173: 470 | F173: 8.37% | G173: 370 | H173: 6.59% | I173: 340 | J173: 6.05% | K173: 300 | L173: 5.34% | M173: 280 | N173: 4.98% | O173: 260 | P173: 4.63% | Q173: 2750 | R173: 5618 | S173: 2783 | T173: 2326 | U173: New Brunswick | V173: Smaller | W173: Smaller | X173: Smaller
A174: 173 | B174: E5A | C174: 280 | D174: 16.49% | E174: 210 | F174: 12.37% | G174: 180 | H174: 10.60% | I174: 160 | J174: 9.42% | K174: 130 | L174: 7.66% | M174: 140 | N174: 8.24% | O174: 120 | P174: 7.07% | Q174: 1220 | R174: 1698 | S174: 901 | T174: 740 | U174: New Brunswick | V174: Smaller | W174: Smaller | X174: Smaller
A175: 174 | B175: E5B | C175: 420 | D175: 13.83% | E175: 320 | F175: 10.54% | G175: 290 | H175: 9.55% | I175: 250 | J175: 8.23% | K175: 190 | L175: 6.26% | M175: 170 | N175: 5.60% | O175: 160 | P175: 5.27% | Q175: 1800 | R175: 3037 | S175: 1783 | T175: 1354 | U175: New Brunswick | V175: Smaller | W175: Smaller | X175: Smaller
A176: 175 | B176: E5C | C176: 500 | D176: 11.85% | E176: 360 | F176: 8.53% | G176: 330 | H176: 7.82% | I176: 280 | J176: 6.63% | K176: 220 | L176: 5.21% | M176: 200 | N176: 4.74% | O176: 190 | P176: 4.50% | Q176: 2080 | R176: 4221 | S176: 2181 | T176: 1795 | U176: New Brunswick | V176: Smaller | W176: Smaller | X176: Smaller
A177: 176 | B177: E5E | C177: 80 | D177: 9.17% | E177: 80 | F177: 9.17% | G177: 80 | H177: 9.17% | I177: 70 | J177: 8.03% | K177: 70 | L177: 8.03% | M177: 60 | N177: 6.88% | O177: 60 | P177: 6.88% | Q177: 500 | R177: 872 | S177: 616 | T177: 376 | U177: New Brunswick | V177: Smaller | W177: Smaller | X177: Smaller
A178: 177 | B178: E5G | C178: 330 | D178: 13.17% | E178: 210 | F178: 8.38% | G178: 190 | H178: 7.58% | I178: 240 | J178: 9.58% | K178: 190 | L178: 7.58% | M178: 160 | N178: 6.39% | O178: 150 | P178: 5.99% | Q178: 1470 | R178: 2505 | S178: 1468 | T178: 1143 | U178: New Brunswick | V178: Smaller | W178: Smaller | X178: Bigger
A179: 178 | B179: E5H | C179: 350 | D179: 12.39% | E179: 290 | F179: 10.27% | G179: 260 | H179: 9.20% | I179: 210 | J179: 7.43% | K179: 190 | L179: 6.73% | M179: 180 | N179: 6.37% | O179: 160 | P179: 5.66% | Q179: 1640 | R179: 2825 | S179: 1300 | T179: 1196 | U179: New Brunswick | V179: Smaller | W179: Smaller | X179: Smaller
A180: 179 | B180: E5J | C180: 240 | D180: 12.24% | E180: 160 | F180: 8.16% | G180: 130 | H180: 6.63% | I180: 110 | J180: 5.61% | K180: 100 | L180: 5.10% | M180: 90 | N180: 4.59% | O180: 80 | P180: 4.08% | Q180: 910 | R180: 1960 | S180: 1137 | T180: 868 | U180: New Brunswick | V180: Smaller | W180: Smaller | X180: Smaller
A181: 180 | B181: E5K | C181: 890 | D181: 12.49% | E181: 530 | F181: 7.44% | G181: 440 | H181: 6.18% | I181: 400 | J181: 5.62% | K181: 350 | L181: 4.91% | M181: 320 | N181: 4.49% | O181: 290 | P181: 4.07% | Q181: 3220 | R181: 7123 | S181: 3025 | T181: 2819 | U181: New Brunswick | V181: Smaller | W181: Smaller | X181: Smaller
A182: 181 | B182: E5L | C182: 370 | D182: 12.89% | E182: 240 | F182: 8.36% | G182: 210 | H182: 7.31% | I182: 190 | J182: 6.62% | K182: 160 | L182: 5.57% | M182: 150 | N182: 5.22% | O182: 120 | P182: 4.18% | Q182: 1440 | R182: 2871 | S182: 1382 | T182: 1204 | U182: New Brunswick | V182: Smaller | W182: Smaller | X182: Smaller
A183: 182 | B183: E5M | C183: 220 | D183: 10.85% | E183: 150 | F183: 7.40% | G183: 120 | H183: 5.92% | I183: 100 | J183: 4.93% | K183: 80 | L183: 3.94% | M183: 80 | N183: 3.94% | O183: 80 | P183: 3.94% | Q183: 830 | R183: 2028 | S183: 1069 | T183: 867 | U183: New Brunswick | V183: Smaller | W183: Smaller | X183: Smaller
A184: 183 | B184: E5N | C184: 1620 | D184: 13.88% | E184: 1020 | F184: 8.74% | G184: 840 | H184: 7.20% | I184: 740 | J184: 6.34% | K184: 590 | L184: 5.06% | M184: 580 | N184: 4.97% | O184: 510 | P184: 4.37% | Q184: 5900 | R184: 11668 | S184: 5120 | T184: 4577 | U184: New Brunswick | V184: Smaller | W184: Smaller | X184: Smaller
A185: 184 | B185: E5P | C185: 330 | D185: 12.96% | E185: 210 | F185: 8.25% | G185: 160 | H185: 6.28% | I185: 140 | J185: 5.50% | K185: 120 | L185: 4.71% | M185: 120 | N185: 4.71% | O185: 110 | P185: 4.32% | Q185: 1190 | R185: 2546 | S185: 1099 | T185: 999 | U185: New Brunswick | V185: Smaller | W185: Smaller | X185: Smaller
A186: 185 | B186: E5R | C186: 220 | D186: 15.21% | E186: 160 | F186: 11.07% | G186: 140 | H186: 9.68% | I186: 130 | J186: 8.99% | K186: 100 | L186: 6.92% | M186: 100 | N186: 6.92% | O186: 90 | P186: 6.22% | Q186: 940 | R186: 1446 | S186: 800 | T186: 625 | U186: New Brunswick | V186: Smaller | W186: Smaller | X186: Smaller
A187: 186 | B187: E5S | C187: 230 | D187: 12.97% | E187: 170 | F187: 9.58% | G187: 140 | H187: 7.89% | I187: 120 | J187: 6.76% | K187: 100 | L187: 5.64% | M187: 100 | N187: 5.64% | O187: 90 | P187: 5.07% | Q187: 950 | R187: 1774 | S187: 1030 | T187: 786 | U187: New Brunswick | V187: Smaller | W187: Smaller | X187: Smaller
A188: 187 | B188: E5T | C188: 380 | D188: 12.52% | E188: 260 | F188: 8.57% | G188: 210 | H188: 6.92% | I188: 190 | J188: 6.26% | K188: 150 | L188: 4.94% | M188: 150 | N188: 4.94% | O188: 140 | P188: 4.61% | Q188: 1480 | R188: 3035 | S188: 1925 | T188: 1224 | U188: New Brunswick | V188: Smaller | W188: Smaller | X188: Smaller
A189: 188 | B189: E5V | C189: 80 | D189: 10.04% | E189: 60 | F189: 7.53% | G189: 50 | H189: 6.27% | I189: 50 | J189: 6.27% | K189: 50 | L189: 6.27% | M189: 40 | N189: 5.02% | O189: 40 | P189: 5.02% | Q189: 370 | R189: 797 | S189: 467 | T189: 347 | U189: New Brunswick | V189: Smaller | W189: Smaller | X189: Smaller
A190: 189 | B190: E6A | C190: 130 | D190: 10.37% | E190: 100 | F190: 7.97% | G190: 80 | H190: 6.38% | I190: 80 | J190: 6.38% | K190: 60 | L190: 4.78% | M190: 60 | N190: 4.78% | O190: 60 | P190: 4.78% | Q190: 570 | R190: 1254 | S190: 680 | T190: 534 | U190: New Brunswick | V190: Smaller | W190: Smaller | X190: Smaller
A191: 190 | B191: E6B | C191: 190 | D191: 11.95% | E191: 130 | F191: 8.18% | G191: 110 | H191: 6.92% | I191: 110 | J191: 6.92% | K191: 100 | L191: 6.29% | M191: 110 | N191: 6.92% | O191: 90 | P191: 5.66% | Q191: 840 | R191: 1590 | S191: 816 | T191: 647 | U191: New Brunswick | V191: Smaller | W191: Smaller | X191: Smaller
A192: 191 | B192: E6C | C192: 320 | D192: 15.66% | E192: 200 | F192: 9.78% | G192: 160 | H192: 7.83% | I192: 150 | J192: 7.34% | K192: 140 | L192: 6.85% | M192: 130 | N192: 6.36% | O192: 120 | P192: 5.87% | Q192: 1220 | R192: 2044 | S192: 923 | T192: 860 | U192: New Brunswick | V192: Smaller | W192: Smaller | X192: Smaller
A193: 192 | B193: E6E | C193: 190 | D193: 12.57% | E193: 120 | F193: 7.94% | G193: 110 | H193: 7.28% | I193: 110 | J193: 7.28% | K193: 90 | L193: 5.95% | M193: 90 | N193: 5.95% | O193: 80 | P193: 5.29% | Q193: 790 | R193: 1512 | S193: 762 | T193: 621 | U193: New Brunswick | V193: Smaller | W193: Smaller | X193: Smaller
A194: 193 | B194: E6G | C194: 300 | D194: =C194/R194 -> 11.91% | E194: 200 | F194: =E194/R194 -> 7.94% | G194: 210 | H194: =G194/R194 -> 8.34% | I194: 170 | J194: =I194/R194 -> 6.75% | K194: 140 | L194: =K194/R194 -> 5.56% | M194: 130 | N194: =M194/R194 -> 5.16% | O194: 110 | P194: =O194/R194 -> 4.37% | Q194: 1260 | R194: 2519 | S194: 1393 | T194: 1115 | U194: New Brunswick | V194: Smaller | W194: Bigger | X194: Smaller | Y194: x
A195: 194 | B195: E6H | C195: 150 | D195: 12.40% | E195: 110 | F195: 9.09% | G195: 90 | H195: 7.44% | I195: 80 | J195: 6.61% | K195: 60 | L195: 4.96% | M195: 70 | N195: 5.79% | O195: 60 | P195: 4.96% | Q195: 620 | R195: 1210 | S195: 971 | T195: 509 | U195: New Brunswick | V195: Smaller | W195: Smaller | X195: Smaller
A196: 195 | B196: E6J | C196: 160 | D196: 13.50% | E196: 130 | F196: 10.97% | G196: 100 | H196: 8.44% | I196: 100 | J196: 8.44% | K196: 90 | L196: 7.59% | M196: 90 | N196: 7.59% | O196: 80 | P196: 6.75% | Q196: 750 | R196: 1185 | S196: 664 | T196: 537 | U196: New Brunswick | V196: Smaller | W196: Smaller | X196: Smaller
A197: 196 | B197: E6K | C197: 450 | D197: 11.88% | E197: 280 | F197: 7.39% | G197: 210 | H197: 5.55% | I197: 190 | J197: 5.02% | K197: 140 | L197: 3.70% | M197: 130 | N197: 3.43% | O197: 120 | P197: 3.17% | Q197: 1520 | R197: 3787 | S197: 2331 | T197: 1613 | U197: New Brunswick | V197: Smaller | W197: Smaller | X197: Smaller
A198: 197 | B198: E6L | C198: 650 | D198: 13.95% | E198: 400 | F198: 8.58% | G198: 340 | H198: 7.30% | I198: 310 | J198: 6.65% | K198: 240 | L198: 5.15% | M198: 230 | N198: 4.94% | O198: 200 | P198: 4.29% | Q198: 2370 | R198: 4660 | S198: 2066 | T198: 1896 | U198: New Brunswick | V198: Smaller | W198: Smaller | X198: Smaller
A199: 198 | B199: E7A | C199: 380 | D199: 10.25% | E199: 280 | F199: 7.55% | G199: 230 | H199: 6.20% | I199: 220 | J199: 5.93% | K199: 180 | L199: 4.86% | M199: 180 | N199: 4.86% | O199: 160 | P199: 4.32% | Q199: 1630 | R199: 3707 | S199: 2024 | T199: 1647 | U199: New Brunswick | V199: Smaller | W199: Smaller | X199: Smaller
A200: 199 | B200: E7B | C200: 770 | D200: 13.51% | E200: 480 | F200: 8.42% | G200: 350 | H200: 6.14% | I200: 280 | J200: 4.91% | K200: 250 | L200: 4.39% | M200: 260 | N200: 4.56% | O200: 250 | P200: 4.39% | Q200: 2640 | R200: 5701 | S200: 2587 | T200: 2453 | U200: New Brunswick | V200: Smaller | W200: Smaller | X200: Smaller
... 1419 more rows

Sheet Provincial breakdown
A1: Province | B1: Period 1 | C1: Period 1% | D1: Period 2 | E1: Period 2% | F1: Period 3 | G1: Period 3% | H1: Period 4 | I1: Period 4% | J1: Period 5 | K1: Period 5% | L1: Period 6 | M1: Period 6% | N1: Period 7 | O1: Period 7% | P1: Population
A2: Alberta | B2: 758,730 | C2: =B2/P2 -> 23.08% | D2: 544,660 | E2: =D2/P2 -> 16.57% | F2: 460,990 | G2: =F2/P2 -> 14.02% | H2: 411,210 | I2: =H2/P2 -> 12.51% | J2: 356,110 | K2: =J2/P2 -> 10.83% | L2: 337,250 | M2: =L2/P2 -> 10.26% | N2: 294,440 | O2: =N2/P2 -> 8.96% | P2: 3,287,955
A3: British Columbia | B3: 871,370 | C3: =B3/P3 -> 22.02% | D3: 596,260 | E3: =D3/P3 -> 15.07% | F3: 508,860 | G3: =F3/P3 -> 12.86% | H3: 443,450 | I3: =H3/P3 -> 11.21% | J3: 378,180 | K3: =J3/P3 -> 9.56% | L3: 353,540 | M3: =L3/P3 -> 8.94% | N3: 307,140 | O3: =N3/P3 -> 7.76% | P3: 3,956,625
A4: Manitoba | B4: 179,450 | C4: 17.35% | D4: 131,390 | E4: 12.70% | F4: 112,690 | G4: 10.89% | H4: 105,030 | I4: 10.15% | J4: 92,850 | K4: 8.98% | L4: 89,160 | M4: 8.62% | N4: 79,600 | O4: 7.69% | P4: 1,034,540
A5: New Brunswick | B5: 105,940 | C5: 16.64% | D5: 69,950 | E5: 10.99% | F5: 58,250 | G5: 9.15% | H5: 51,650 | I5: 8.11% | J5: 44,220 | K5: 6.95% | L5: 42,510 | M5: 6.68% | N5: 40,380 | O5: 6.34% | P5: 636,595
A6: Newfoundland and Labrador | B6: 70,140 | C6: 15.75% | D6: 50,280 | E6: 11.29% | F6: 42,970 | G6: 9.65% | H6: 38,600 | I6: 8.67% | J6: 32,890 | K6: 7.39% | L6: 32,740 | M6: 7.35% | N6: 30,190 | O6: 6.78% | P6: 445,265
A7: Nova Scotia | B7: 144,530 | C7: 18.30% | D7: 99,650 | E7: 12.62% | F7: 87,000 | G7: 11.02% | H7: 75,870 | I7: 9.61% | J7: 64,120 | K7: 8.12% | L7: 60,590 | M7: 7.67% | N7: 53,550 | O7: 6.78% | P7: 789,760
A8: Nunavut/Northwest Territories | B8: 15,480 | C8: 27.07% | D8: 13,750 | E8: 24.05% | F8: 12,000 | G8: 20.99% | H8: 11,220 | I8: 19.62% | J8: 11,140 | K8: 19.48% | L8: 10,960 | M8: 19.17% | N8: 10,140 | O8: 17.73% | P8: 57,180
A9: Ontario | B9: 2,637,430 | C9: 23.47% | D9: 1,848,400 | E9: 16.45% | F9: 1,577,360 | G9: 14.03% | H9: 1,410,600 | I9: 12.55% | J9: 1,193,380 | K9: 10.62% | L9: 1,104,100 | M9: 9.82% | N9: 971,830 | O9: 8.65% | P9: 11,239,150
A10: Prince Edward Island | B10: 20,880 | C10: 17.37% | D10: 14,460 | E10: 12.03% | F10: 11,900 | G10: 9.90% | H10: 10,460 | I10: 8.70% | J10: 9,150 | K10: 7.61% | L10: 8,610 | M10: 7.16% | N10: 8,610 | O10: 7.16% | P10: 120,225
A11: Quebec | B11: 1,544,650 | C11: 22.61% | D11: 925,880 | E11: 13.55% | F11: 747,960 | G11: 10.95% | H11: 617,120 | I11: 9.03% | J11: 519,960 | K11: 7.61% | L11: 459,450 | M11: 6.73% | N11: 394,040 | O11: 5.77% | P11: 6,831,020
A12: Saskatchewan | B12: 167,950 | C12: 19.03% | D12: 121,450 | E12: 13.76% | F12: 103,870 | G12: 11.77% | H12: 97,810 | I12: 11.08% | J12: 87,030 | K12: 9.86% | L12: 83,910 | M12: 9.51% | N12: 74,740 | O12: 8.47% | P12: 882,685
A13: Yukon | B13: 6,520 | C13: 22.03% | D13: 5,050 | E13: 17.06% | F13: 4,290 | G13: 14.49% | H13: 3,790 | I13: 12.80% | J13: 3,350 | K13: 11.32% | L13: 3,130 | M13: 10.57% | N13: 2,780 | O13: 9.39% | P13: 29,600
A14: Grand Total | B14: 6,523,070 | C14: 22.25% | D14: 4,421,180 | E14: 15.08% | F14: 3,728,140 | G14: 12.72% | H14: 3,276,810 | I14: 11.18% | J14: 2,792,380 | K14: 9.53% | L14: 2,585,950 | M14: 8.82% | N14: 2,267,440 | O14: 7.74% | P14: 29,310,600

Sheet Working data
A1: Key | B1: FSA | C1: Period 1 | D1: Period 1% | E1: Period 2 | F1: Period 2% | G1: Period 3 | H1: Period 3% | I1: Period 4 | J1: Period 4% | K1: Period 5 | L1: Period 5% | M1: Period 6 | N1: Period 6% | O1: Period 7 | P1: Period 7% | Q1: Grand Total | R1: Population, age 15++ | S1: Province
A2: 1 | B2: A0A | C2: 6240 | D2: =C2/R2 -> 15.64% | E2: 4850 | F2: =E2/R2 -> 12.16% | G2: 4190 | H2: =G2/R2 -> 10.50% | I2: 3730 | J2: =I2/R2 -> 9.35% | K2: 3220 | L2: =K2/R2 -> 8.07% | M2: 3440 | N2: =M2/R2 -> 8.62% | O2: 3100 | P2: =O2/R2 -> 7.77% | Q2: 28770 | R2: 39895 | S2: Newfoundland and Labrador
A3: 2 | B3: A0B | C3: 2240 | D3: 12.65% | E3: 1660 | F3: 9.38% | G3: 1470 | H3: 8.30% | I3: 1260 | J3: 7.12% | K3: 1150 | L3: 6.50% | M3: 1160 | N3: 6.55% | O3: 1070 | P3: 6.04% | Q3: 10010 | R3: 17705 | S3: Newfoundland and Labrador
A4: 3 | B4: A0C | C4: 1320 | D4: 11.80% | E4: 1120 | F4: 10.01% | G4: 930 | H4: 8.31% | I4: 860 | J4: 7.69% | K4: 750 | L4: 6.71% | M4: 880 | N4: 7.87% | O4: 780 | P4: 6.97% | Q4: 6640 | R4: 11185 | S4: Newfoundland and Labrador
A5: 4 | B5: A0E | C5: 2500 | D5: 12.79% | E5: 1890 | F5: 9.67% | G5: 1510 | H5: 7.72% | I5: 1410 | J5: 7.21% | K5: 1300 | L5: 6.65% | M5: 1330 | N5: 6.80% | O5: 1300 | P5: 6.65% | Q5: 11240 | R5: 19550 | S5: Newfoundland and Labrador
A6: 5 | B6: A0G | C6: 3590 | D6: 11.55% | E6: 2800 | F6: 9.00% | G6: 2390 | H6: 7.69% | I6: 2190 | J6: 7.04% | K6: 2100 | L6: 6.75% | M6: 2150 | N6: 6.91% | O6: 2210 | P6: 7.11% | Q6: 17430 | R6: 31095 | S6: Newfoundland and Labrador
A7: 6 | B7: A0H | C7: 1830 | D7: 11.69% | E7: 1420 | F7: 9.07% | G7: 1230 | H7: 7.85% | I7: 1180 | J7: 7.54% | K7: 1120 | L7: 7.15% | M7: 1160 | N7: 7.41% | O7: 1080 | P7: 6.90% | Q7: 9020 | R7: 15660 | S7: Newfoundland and Labrador
A8: 7 | B8: A0J | C8: 880 | D8: 12.58% | E8: 640 | F8: 9.15% | G8: 520 | H8: 7.43% | I8: 460 | J8: 6.58% | K8: 380 | L8: 5.43% | M8: 450 | N8: 6.43% | O8: 380 | P8: 5.43% | Q8: 3710 | R8: 6995 | S8: Newfoundland and Labrador
A9: 8 | B9: A0K | C9: 2270 | D9: 9.84% | E9: 2160 | F9: 9.36% | G9: 1770 | H9: 7.67% | I9: 1630 | J9: 7.07% | K9: 1530 | L9: 6.63% | M9: 1580 | N9: 6.85% | O9: 1560 | P9: 6.76% | Q9: 12500 | R9: 23070 | S9: Newfoundland and Labrador
A10: 9 | B10: A0L | C10: 910 | D10: 13.85% | E10: 650 | F10: 9.89% | G10: 530 | H10: 8.07% | I10: 470 | J10: 7.15% | K10: 390 | L10: 5.94% | M10: 440 | N10: 6.70% | O10: 380 | P10: 5.78% | Q10: 3770 | R10: 6570 | S10: Newfoundland and Labrador
A11: 10 | B11: A0M | C11: 510 | D11: 9.36% | E11: 380 | F11: 6.97% | G11: 290 | H11: 5.32% | I11: 270 | J11: 4.95% | K11: 260 | L11: 4.77% | M11: 270 | N11: 4.95% | O11: 250 | P11: 4.59% | Q11: 2230 | R11: 5450 | S11: Newfoundland and Labrador
A12: 11 | B12: A0N | C12: 1560 | D12: 12.73% | E12: 1290 | F12: 10.53% | G12: 1070 | H12: 8.73% | I12: 1000 | J12: 8.16% | K12: 990 | L12: 8.08% | M12: 970 | N12: 7.92% | O12: 920 | P12: 7.51% | Q12: 7800 | R12: 12250 | S12: Newfoundland and Labrador
A13: 12 | B13: A0P | C13: 2430 | D13: 22.67% | E13: 1950 | F13: 18.19% | G13: 1780 | H13: 16.60% | I13: 1800 | J13: 16.79% | K13: 1650 | L13: 15.39% | M13: 1630 | N13: 15.21% | O13: 1490 | P13: 13.90% | Q13: 12730 | R13: 10720 | S13: Newfoundland and Labrador
A14: 13 | B14: A0R | C14: 230 | D14: 11.50% | E14: 150 | F14: 7.50% | G14: 120 | H14: 6.00% | I14: 90 | J14: 4.50% | K14: 80 | L14: 4.00% | M14: 70 | N14: 3.50% | O14: 70 | P14: 3.50% | Q14: 810 | R14: 2000 | S14: Newfoundland and Labrador
A15: 14 | B15: A1A | C15: 4040 | D15: 15.74% | E15: 2750 | F15: 10.72% | G15: 2390 | H15: 9.31% | I15: 2010 | J15: 7.83% | K15: 1620 | L15: 6.31% | M15: 1540 | N15: 6.00% | O15: 1360 | P15: 5.30% | Q15: 15710 | R15: 25660 | S15: Newfoundland and Labrador
A16: 15 | B16: A1B | C16: 3910 | D16: 22.52% | E16: 2690 | F16: 15.50% | G16: 2330 | H16: 13.42% | I16: 2010 | J16: 11.58% | K16: 1630 | L16: 9.39% | M16: 1550 | N16: 8.93% | O16: 1380 | P16: 7.95% | Q16: 15500 | R16: 17360 | S16: Newfoundland and Labrador
A17: 16 | B17: A1C | C17: 2930 | D17: 25.49% | E17: 2130 | F17: 18.53% | G17: 1910 | H17: 16.62% | I17: 1680 | J17: 14.62% | K17: 1330 | L17: 11.57% | M17: 1290 | N17: 11.22% | O17: 1150 | P17: 10.00% | Q17: 12420 | R17: 11495 | S17: Newfoundland and Labrador
A18: 17 | B18: A1E | C18: 4790 | D18: 20.08% | E18: 3310 | F18: 13.88% | G18: 2920 | H18: 12.24% | I18: 2590 | J18: 10.86% | K18: 2110 | L18: 8.85% | M18: 2000 | N18: 8.39% | O18: 1830 | P18: 7.67% | Q18: 19550 | R18: 23850 | S18: Newfoundland and Labrador
A19: 18 | B19: A1G | C19: 990 | D19: 20.14% | E19: 620 | F19: 12.61% | G19: 530 | H19: 10.78% | I19: 510 | J19: 10.38% | K19: 390 | L19: 7.93% | M19: 370 | N19: 7.53% | O19: 340 | P19: 6.92% | Q19: 3750 | R19: 4915 | S19: Newfoundland and Labrador
A20: 19 | B20: A1H | C20: 680 | D20: 16.35% | E20: 460 | F20: 11.06% | G20: 390 | H20: 9.38% | I20: 330 | J20: 7.93% | K20: 260 | L20: 6.25% | M20: 250 | N20: 6.01% | O20: 220 | P20: 5.29% | Q20: 2590 | R20: 4160 | S20: Newfoundland and Labrador
A21: 20 | B21: A1K | C21: 1770 | D21: 18.03% | E21: 1190 | F21: 12.12% | G21: 980 | H21: 9.98% | I21: 890 | J21: 9.07% | K21: 670 | L21: 6.83% | M21: 610 | N21: 6.21% | O21: 580 | P21: 5.91% | Q21: 6690 | R21: 9815 | S21: Newfoundland and Labrador
A22: 21 | B22: A1L | C22: 3050 | D22: 18.19% | E22: 1960 | F22: 11.69% | G22: 1640 | H22: 9.78% | I22: 1430 | J22: 8.53% | K22: 1130 | L22: 6.74% | M22: 1040 | N22: 6.20% | O22: 900 | P22: 5.37% | Q22: 11150 | R22: 16765 | S22: Newfoundland and Labrador
A23: 22 | B23: A1M | C23: 1190 | D23: 18.39% | E23: 810 | F23: 12.52% | G23: 690 | H23: 10.66% | I23: 650 | J23: 10.05% | K23: 480 | L23: 7.42% | M23: 470 | N23: 7.26% | O23: 390 | P23: 6.03% | Q23: 4680 | R23: 6470 | S23: Newfoundland and Labrador
A24: 23 | B24: A1N | C24: 3490 | D24: 17.45% | E24: 2220 | F24: 11.10% | G24: 1930 | H24: 9.65% | I24: 1750 | J24: 8.75% | K24: 1360 | L24: 6.80% | M24: 1270 | N24: 6.35% | O24: 1210 | P24: 6.05% | Q24: 13230 | R24: 19995 | S24: Newfoundland and Labrador
A25: 24 | B25: A1S | C25: 1110 | D25: 21.45% | E25: 730 | F25: 14.11% | G25: 630 | H25: 12.17% | I25: 590 | J25: 11.40% | K25: 460 | L25: 8.89% | M25: 450 | N25: 8.70% | O25: 400 | P25: 7.73% | Q25: 4370 | R25: 5175 | S25: Newfoundland and Labrador
A26: 25 | B26: A1V | C26: 1570 | D26: 16.10% | E26: 970 | F26: 9.95% | G26: 820 | H26: 8.41% | I26: 700 | J26: 7.18% | K26: 600 | L26: 6.15% | M26: 570 | N26: 5.85% | O26: 510 | P26: 5.23% | Q26: 5740 | R26: 9750 | S26: Newfoundland and Labrador
A27: 26 | B27: A1W | C27: 1600 | D27: 17.13% | E27: 1070 | F27: 11.46% | G27: 860 | H27: 9.21% | I27: 790 | J27: 8.46% | K27: 620 | L27: 6.64% | M27: 580 | N27: 6.21% | O27: 500 | P27: 5.35% | Q27: 6020 | R27: 9340 | S27: Newfoundland and Labrador
A28: 27 | B28: A1X | C28: 2240 | D28: 18.28% | E28: 1510 | F28: 12.32% | G28: 1290 | H28: 10.53% | I28: 1140 | J28: 9.30% | K28: 920 | L28: 7.51% | M28: 890 | N28: 7.26% | O28: 800 | P28: 6.53% | Q28: 8790 | R28: 12255 | S28: Newfoundland and Labrador
A29: 28 | B29: A1Y | C29: 760 | D29: 15.53% | E29: 530 | F29: 10.83% | G29: 470 | H29: 9.60% | I29: 410 | J29: 8.38% | K29: 360 | L29: 7.35% | M29: 400 | N29: 8.17% | O29: 350 | P29: 7.15% | Q29: 3280 | R29: 4895 | S29: Newfoundland and Labrador
A30: 29 | B30: A2A | C30: 1270 | D30: 15.63% | E30: 850 | F30: 10.46% | G30: 710 | H30: 8.74% | I30: 610 | J30: 7.51% | K30: 530 | L30: 6.52% | M30: 510 | N30: 6.28% | O30: 510 | P30: 6.28% | Q30: 4990 | R30: 8125 | S30: Newfoundland and Labrador
A31: 30 | B31: A2B | C31: 740 | D31: 17.27% | E31: 520 | F31: 12.14% | G31: 450 | H31: 10.50% | I31: 390 | J31: 9.10% | K31: 360 | L31: 8.40% | M31: 360 | N31: 8.40% | O31: 320 | P31: 7.47% | Q31: 3140 | R31: 4285 | S31: Newfoundland and Labrador
A32: 31 | B32: A2H | C32: 3500 | D32: 15.52% | E32: 2310 | F32: 10.25% | G32: 1960 | H32: 8.69% | I32: 1740 | J32: 7.72% | K32: 1470 | L32: 6.52% | M32: 1400 | N32: 6.21% | O32: 1330 | P32: 5.90% | Q32: 13710 | R32: 22545 | S32: Newfoundland and Labrador
A33: 32 | B33: A2N | C33: 1180 | D33: 15.41% | E33: 880 | F33: 11.50% | G33: 760 | H33: 9.93% | I33: 700 | J33: 9.14% | K33: 580 | L33: 7.58% | M33: 570 | N33: 7.45% | O33: 540 | P33: 7.05% | Q33: 5210 | R33: 7655 | S33: Newfoundland and Labrador
A34: 33 | B34: A2V | C34: 670 | D34: 11.28% | E34: 430 | F34: 7.24% | G34: 320 | H34: 5.39% | I34: 270 | J34: 4.55% | K34: 200 | L34: 3.37% | M34: 200 | N34: 3.37% | O34: 170 | P34: 2.86% | Q34: 2260 | R34: 5940 | S34: Newfoundland and Labrador
A35: 34 | B35: A5A | C35: 1180 | D35: 17.44% | E35: 760 | F35: 11.23% | G35: 640 | H35: 9.46% | I35: 570 | J35: 8.43% | K35: 470 | L35: 6.95% | M35: 460 | N35: 6.80% | O35: 420 | P35: 6.21% | Q35: 4500 | R35: 6765 | S35: Newfoundland and Labrador
A36: 35 | B36: A8A | C36: 970 | D36: 16.43% | E36: 620 | F36: 10.50% | G36: 550 | H36: 9.31% | I36: 490 | J36: 8.30% | K36: 420 | L36: 7.11% | M36: 430 | N36: 7.28% | O36: 390 | P36: 6.60% | Q36: 3870 | R36: 5905 | S36: Newfoundland and Labrador
A37: 36 | B37: B0C | C37: 230 | D37: 10.09% | E37: 230 | F37: 10.09% | G37: 190 | H37: 8.33% | I37: 200 | J37: 8.77% | K37: 270 | L37: 11.84% | M37: 310 | N37: 13.60% | O37: 240 | P37: 10.53% | Q37: 1670 | R37: 2280 | S37: Nova Scotia
A38: 37 | B38: B0E | C38: 2930 | D38: 13.08% | E38: 2270 | F38: 10.13% | G38: 1890 | H38: 8.44% | I38: 1780 | J38: 7.94% | K38: 1770 | L38: 7.90% | M38: 1820 | N38: 8.12% | O38: 1580 | P38: 7.05% | Q38: 14040 | R38: 22405 | S38: Nova Scotia
A39: 38 | B39: B0H | C39: 1260 | D39: 14.71% | E39: 890 | F39: 10.39% | G39: 750 | H39: 8.76% | I39: 680 | J39: 7.94% | K39: 700 | L39: 8.17% | M39: 610 | N39: 7.12% | O39: 520 | P39: 6.07% | Q39: 5410 | R39: 8565 | S39: Nova Scotia
A40: 39 | B40: B0J | C40: 5430 | D40: 15.88% | E40: 3970 | F40: 11.61% | G40: 3420 | H40: 10.00% | I40: 3030 | J40: 8.86% | K40: 2460 | L40: 7.20% | M40: 2260 | N40: 6.61% | O40: 2030 | P40: 5.94% | Q40: 22600 | R40: 34190 | S40: Nova Scotia
A41: 40 | B41: B0K | C41: 5300 | D41: 17.23% | E41: 3750 | F41: 12.19% | G41: 3070 | H41: 9.98% | I41: 2720 | J41: 8.84% | K41: 2300 | L41: 7.48% | M41: 2210 | N41: 7.18% | O41: 2020 | P41: 6.57% | Q41: 21370 | R41: 30765 | S41: Nova Scotia
A42: 41 | B42: B0L | C42: 310 | D42: 15.01% | E42: 220 | F42: 10.65% | G42: 200 | H42: 9.69% | I42: 190 | J42: 9.20% | K42: 150 | L42: 7.26% | M42: 140 | N42: 6.78% | O42: 130 | P42: 6.30% | Q42: 1340 | R42: 2065 | S42: Nova Scotia
A43: 42 | B43: B0M | C43: 2260 | D43: 15.41% | E43: 1600 | F43: 10.91% | G43: 1400 | H43: 9.54% | I43: 1240 | J43: 8.45% | K43: 1060 | L43: 7.23% | M43: 960 | N43: 6.54% | O43: 900 | P43: 6.13% | Q43: 9420 | R43: 14670 | S43: Nova Scotia
A44: 43 | B44: B0N | C44: 5750 | D44: 17.26% | E44: 3830 | F44: 11.50% | G44: 3290 | H44: 9.88% | I44: 2980 | J44: 8.94% | K44: 2520 | L44: 7.56% | M44: 2350 | N44: 7.05% | O44: 2130 | P44: 6.39% | Q44: 22850 | R44: 33315 | S44: Nova Scotia
A45: 44 | B45: B0P | C45: 5080 | D45: 14.89% | E45: 3500 | F45: 10.26% | G45: 3040 | H45: 8.91% | I45: 2650 | J45: 7.77% | K45: 2140 | L45: 6.27% | M45: 1960 | N45: 5.75% | O45: 1730 | P45: 5.07% | Q45: 20100 | R45: 34110 | S45: Nova Scotia
A46: 45 | B46: B0R | C46: 800 | D46: 15.52% | E46: 560 | F46: 10.86% | G46: 440 | H46: 8.54% | I46: 400 | J46: 7.76% | K46: 320 | L46: 6.21% | M46: 310 | N46: 6.01% | O46: 260 | P46: 5.04% | Q46: 3090 | R46: 5155 | S46: Nova Scotia
A47: 46 | B47: B0S | C47: 2420 | D47: 16.01% | E47: 1800 | F47: 11.90% | G47: 1650 | H47: 10.91% | I47: 1420 | J47: 9.39% | K47: 1160 | L47: 7.67% | M47: 1120 | N47: 7.41% | O47: 970 | P47: 6.42% | Q47: 10540 | R47: 15120 | S47: Nova Scotia
A48: 47 | B48: B0T | C48: 2050 | D48: 15.95% | E48: 1540 | F48: 11.98% | G48: 1350 | H48: 10.50% | I48: 1180 | J48: 9.18% | K48: 1000 | L48: 7.78% | M48: 940 | N48: 7.31% | O48: 850 | P48: 6.61% | Q48: 8910 | R48: 12855 | S48: Nova Scotia
A49: 48 | B49: B0V | C49: 1000 | D49: 19.72% | E49: 770 | F49: 15.19% | G49: 770 | H49: 15.19% | I49: 670 | J49: 13.21% | K49: 560 | L49: 11.05% | M49: 530 | N49: 10.45% | O49: 470 | P49: 9.27% | Q49: 4770 | R49: 5070 | S49: Nova Scotia
A50: 49 | B50: B0W | C50: 3720 | D50: 15.79% | E50: 2510 | F50: 10.65% | G50: 2810 | H50: 11.92% | I50: 2120 | J50: 9.00% | K50: 1710 | L50: 7.26% | M50: 1620 | N50: 6.87% | O50: 1470 | P50: 6.24% | Q50: 15960 | R50: 23565 | S50: Nova Scotia
A51: 50 | B51: B1A | C51: 2460 | D51: 17.91% | E51: 1800 | F51: 13.11% | G51: 1590 | H51: 11.58% | I51: 1480 | J51: 10.78% | K51: 1340 | L51: 9.76% | M51: 1370 | N51: 9.97% | O51: 1260 | P51: 9.17% | Q51: 11300 | R51: 13735 | S51: Nova Scotia
A52: 51 | B52: B1B | C52: 160 | D52: 14.81% | E52: 110 | F52: 10.19% | G52: 100 | H52: 9.26% | I52: 90 | J52: 8.33% | K52: 100 | L52: 9.26% | M52: 100 | N52: 9.26% | O52: 80 | P52: 7.41% | Q52: 740 | R52: 1080 | S52: Nova Scotia
A53: 52 | B53: B1C | C53: 180 | D53: 12.00% | E53: 140 | F53: 9.33% | G53: 120 | H53: 8.00% | I53: 120 | J53: 8.00% | K53: 150 | L53: 10.00% | M53: 160 | N53: 10.67% | O53: 160 | P53: 10.67% | Q53: 1030 | R53: 1500 | S53: Nova Scotia
A54: 53 | B54: B1E | C54: 260 | D54: 19.33% | E54: 200 | F54: 14.87% | G54: 170 | H54: 12.64% | I54: 170 | J54: 12.64% | K54: 150 | L54: 11.15% | M54: 150 | N54: 11.15% | O54: 140 | P54: 10.41% | Q54: 1240 | R54: 1345 | S54: Nova Scotia
A55: 54 | B55: B1G | C55: 320 | D55: 19.69% | E55: 230 | F55: 14.15% | G55: 200 | H55: 12.31% | I55: 190 | J55: 11.69% | K55: 170 | L55: 10.46% | M55: 160 | N55: 9.85% | O55: 150 | P55: 9.23% | Q55: 1420 | R55: 1625 | S55: Nova Scotia
A56: 55 | B56: B1H | C56: 1650 | D56: 19.58% | E56: 1190 | F56: 14.12% | G56: 1060 | H56: 12.58% | I56: 1010 | J56: 11.99% | K56: 890 | L56: 10.56% | M56: 880 | N56: 10.45% | O56: 830 | P56: 9.85% | Q56: 7510 | R56: 8425 | S56: Nova Scotia
A57: 56 | B57: B1J | C57: 140 | D57: 15.73% | E57: 100 | F57: 11.24% | G57: 90 | H57: 10.11% | I57: 80 | J57: 8.99% | K57: 70 | L57: 7.87% | M57: 70 | N57: 7.87% | O57: 60 | P57: 6.74% | Q57: 610 | R57: 890 | S57: Nova Scotia
A58: 57 | B58: B1K | C58: 450 | D58: 16.70% | E58: 330 | F58: 12.24% | G58: 290 | H58: 10.76% | I58: 270 | J58: 10.02% | K58: 250 | L58: 9.28% | M58: 230 | N58: 8.53% | O58: 220 | P58: 8.16% | Q58: 2040 | R58: 2695 | S58: Nova Scotia
A59: 58 | B59: B1L | C59: 670 | D59: 15.84% | E59: 420 | F59: 9.93% | G59: 360 | H59: 8.51% | I59: 370 | J59: 8.75% | K59: 280 | L59: 6.62% | M59: 270 | N59: 6.38% | O59: 240 | P59: 5.67% | Q59: 2610 | R59: 4230 | S59: Nova Scotia
A60: 59 | B60: B1M | C60: 200 | D60: 20.10% | E60: 130 | F60: 13.07% | G60: 110 | H60: 11.06% | I60: 90 | J60: 9.05% | K60: 80 | L60: 8.04% | M60: 70 | N60: 7.04% | O60: 70 | P60: 7.04% | Q60: 750 | R60: 995 | S60: Nova Scotia
A61: 60 | B61: B1N | C61: 1210 | D61: 24.87% | E61: 810 | F61: 16.65% | G61: 730 | H61: 15.01% | I61: 670 | J61: 13.77% | K61: 540 | L61: 11.10% | M61: 560 | N61: 11.51% | O61: 510 | P61: 10.48% | Q61: 5030 | R61: 4865 | S61: Nova Scotia
A62: 61 | B62: B1P | C62: 3260 | D62: 26.45% | E62: 2230 | F62: 18.09% | G62: 1860 | H62: 15.09% | I62: 1610 | J62: 13.06% | K62: 1350 | L62: 10.95% | M62: 1300 | N62: 10.55% | O62: 1210 | P62: 9.82% | Q62: 12820 | R62: 12325 | S62: Nova Scotia
A63: 62 | B63: B1R | C63: 580 | D63: 15.76% | E63: 360 | F63: 9.78% | G63: 320 | H63: 8.70% | I63: 300 | J63: 8.15% | K63: 250 | L63: 6.79% | M63: 240 | N63: 6.52% | O63: 210 | P63: 5.71% | Q63: 2260 | R63: 3680 | S63: Nova Scotia
A64: 63 | B64: B1S | C64: 1240 | D64: 16.70% | E64: 940 | F64: 12.66% | G64: 810 | H64: 10.91% | I64: 700 | J64: 9.43% | K64: 630 | L64: 8.48% | M64: 600 | N64: 8.08% | O64: 520 | P64: 7.00% | Q64: 5440 | R64: 7425 | S64: Nova Scotia
A65: 64 | B65: B1T | C65: 30 | D65: 9.23% | E65: 30 | F65: 9.23% | G65: 30 | H65: 9.23% | I65: 30 | J65: 9.23% | K65: 20 | L65: 6.15% | M65: 20 | N65: 6.15% | O65: 20 | P65: 6.15% | Q65: 180 | R65: 325 | S65: Nova Scotia
A66: 65 | B66: B1V | C66: 1040 | D66: =C66/R66 -> 19.21% | E66: 760 | F66: =E66/R66 -> 14.04% | G66: 670 | H66: =G66/R66 -> 12.37% | I66: 630 | J66: =I66/R66 -> 11.63% | K66: 610 | L66: =K66/R66 -> 11.27% | M66: 580 | N66: =M66/R66 -> 10.71% | O66: 520 | P66: =O66/R66 -> 9.60% | Q66: 4810 | R66: 5415 | S66: Nova Scotia
A67: 66 | B67: B1W | C67: 840 | D67: 36.68% | E67: 800 | F67: 34.93% | G67: 800 | H67: 34.93% | I67: 810 | J67: 35.37% | K67: 810 | L67: 35.37% | M67: 790 | N67: 34.50% | O67: 710 | P67: 31.00% | Q67: 5560 | R67: 2290 | S67: Nova Scotia
A68: 67 | B68: B1X | C68: 120 | D68: 16.44% | E68: 90 | F68: 12.33% | G68: 90 | H68: 12.33% | I68: 80 | J68: 10.96% | K68: 80 | L68: 10.96% | M68: 70 | N68: 9.59% | O68: 60 | P68: 8.22% | Q68: 590 | R68: 730 | S68: Nova Scotia
A69: 68 | B69: B1Y | C69: 820 | D69: 15.98% | E69: 610 | F69: 11.89% | G69: 540 | H69: 10.53% | I69: 500 | J69: 9.75% | K69: 510 | L69: 9.94% | M69: 470 | N69: 9.16% | O69: 430 | P69: 8.38% | Q69: 3880 | R69: 5130 | S69: Nova Scotia
A70: 69 | B70: B2A | C70: 1150 | D70: 16.45% | E70: 840 | F70: 12.02% | G70: 770 | H70: 11.02% | I70: 690 | J70: 9.87% | K70: 630 | L70: 9.01% | M70: 600 | N70: 8.58% | O70: 570 | P70: 8.15% | Q70: 5250 | R70: 6990 | S70: Nova Scotia
A71: 70 | B71: B2C | C71: 40 | D71: 15.09% | E71: 30 | F71: 11.32% | G71: 30 | H71: 11.32% | I71: 30 | J71: 11.32% | K71: 20 | L71: 7.55% | M71: 20 | N71: 7.55% | O71: 20 | P71: 7.55% | Q71: 190 | R71: 265 | S71: Nova Scotia
A72: 71 | B72: B2E | C72: 20 | D72: 50.00% | E72: 20 | F72: 50.00% | G72: 20 | H72: 50.00% | I72: 20 | J72: 50.00% | K72: 20 | L72: 50.00% | M72: 20 | N72: 50.00% | O72: 20 | P72: 50.00% | Q72: 140 | R72: 40 | S72: Nova Scotia
A73: 72 | B73: B2G | C73: 1970 | D73: 16.27% | E73: 1400 | F73: 11.56% | G73: 1120 | H73: 9.25% | I73: 930 | J73: 7.68% | K73: 820 | L73: 6.77% | M73: 750 | N73: 6.19% | O73: 590 | P73: 4.87% | Q73: 7580 | R73: 12110 | S73: Nova Scotia
A74: 73 | B74: B2H | C74: 2140 | D74: 17.23% | E74: 1470 | F74: 11.84% | G74: 1240 | H74: 9.98% | I74: 1080 | J74: 8.70% | K74: 900 | L74: 7.25% | M74: 850 | N74: 6.84% | O74: 730 | P74: 5.88% | Q74: 8410 | R74: 12420 | S74: Nova Scotia
A75: 74 | B75: B2J | C75: 20 | D75: 33.33% | E75: 20 | F75: 33.33% | G75: 20 | H75: 33.33% | I75: 20 | J75: 33.33% | K75: 20 | L75: 33.33% | M75: 20 | N75: 33.33% | O75: 20 | P75: 33.33% | Q75: 140 | R75: 60 | S75: Nova Scotia
A76: 75 | B76: B2N | C76: 3350 | D76: 19.61% | E76: 2250 | F76: 13.17% | G76: 1990 | H76: 11.65% | I76: 1770 | J76: 10.36% | K76: 1500 | L76: 8.78% | M76: 1440 | N76: 8.43% | O76: 1300 | P76: 7.61% | Q76: 13600 | R76: 17085 | S76: Nova Scotia
A77: 76 | B77: B2R | C77: 370 | D77: 17.54% | E77: 250 | F77: 11.85% | G77: 220 | H77: 10.43% | I77: 180 | J77: 8.53% | K77: 160 | L77: 7.58% | M77: 150 | N77: 7.11% | O77: 110 | P77: 5.21% | Q77: 1440 | R77: 2110 | S77: Nova Scotia
A78: 77 | B78: B2S | C78: 1250 | D78: 20.26% | E78: 680 | F78: 11.02% | G78: 560 | H78: 9.08% | I78: 520 | J78: 8.43% | K78: 400 | L78: 6.48% | M78: 380 | N78: 6.16% | O78: 360 | P78: 5.83% | Q78: 4150 | R78: 6170 | S78: Nova Scotia
A79: 78 | B79: B2T | C79: 2440 | D79: 17.80% | E79: 1540 | F79: 11.24% | G79: 1280 | H79: 9.34% | I79: 1080 | J79: 7.88% | K79: 840 | L79: 6.13% | M79: 780 | N79: 5.69% | O79: 630 | P79: 4.60% | Q79: 8590 | R79: 13705 | S79: Nova Scotia
A80: 79 | B80: B2V | C80: 1640 | D80: 16.11% | E80: 1050 | F80: 10.31% | G80: 900 | H80: 8.84% | I80: 770 | J80: 7.56% | K80: 590 | L80: 5.80% | M80: 560 | N80: 5.50% | O80: 460 | P80: 4.52% | Q80: 5970 | R80: 10180 | S80: Nova Scotia
A81: 80 | B81: B2W | C81: 4750 | D81: 17.19% | E81: 3160 | F81: 11.44% | G81: 2720 | H81: 9.85% | I81: 2360 | J81: 8.54% | K81: 1940 | L81: 7.02% | M81: 1800 | N81: 6.52% | O81: 1600 | P81: 5.79% | Q81: 18330 | R81: 27625 | S81: Nova Scotia
A82: 81 | B82: B2X | C82: 2160 | D82: 22.20% | E82: 1450 | F82: 14.90% | G82: 1250 | H82: 12.85% | I82: 1070 | J82: 11.00% | K82: 930 | L82: 9.56% | M82: 880 | N82: 9.04% | O82: 760 | P82: 7.81% | Q82: 8500 | R82: 9730 | S82: Nova Scotia
A83: 82 | B83: B2Y | C83: 2690 | D83: 20.92% | E83: 1820 | F83: 14.15% | G83: 1610 | H83: 12.52% | I83: 1370 | J83: 10.65% | K83: 1170 | L83: 9.10% | M83: 1090 | N83: 8.48% | O83: 940 | P83: 7.31% | Q83: 10690 | R83: 12860 | S83: Nova Scotia
A84: 83 | B84: B2Z | C84: 1630 | D84: 23.25% | E84: 1180 | F84: 16.83% | G84: 1030 | H84: 14.69% | I84: 900 | J84: 12.84% | K84: 750 | L84: 10.70% | M84: 710 | N84: 10.13% | O84: 650 | P84: 9.27% | Q84: 6850 | R84: 7010 | S84: Nova Scotia
A85: 84 | B85: B3A | C85: 4590 | D85: 25.80% | E85: 3130 | F85: 17.59% | G85: 2710 | H85: 15.23% | I85: 2370 | J85: 13.32% | K85: 2070 | L85: 11.64% | M85: 1980 | N85: 11.13% | O85: 1760 | P85: 9.89% | Q85: 18610 | R85: 17790 | S85: Nova Scotia
A86: 85 | B86: B3B | C86: 290 | D86: 25.44% | E86: 200 | F86: 17.54% | G86: 180 | H86: 15.79% | I86: 160 | J86: 14.04% | K86: 130 | L86: 11.40% | M86: 120 | N86: 10.53% | O86: 110 | P86: 9.65% | Q86: 1190 | R86: 1140 | S86: Nova Scotia
A87: 86 | B87: B3E | C87: 1110 | D87: 19.58% | E87: 710 | F87: 12.52% | G87: 610 | H87: 10.76% | I87: 510 | J87: 8.99% | K87: 420 | L87: 7.41% | M87: 400 | N87: 7.05% | O87: 330 | P87: 5.82% | Q87: 4090 | R87: 5670 | S87: Nova Scotia
A88: 87 | B88: B3G | C88: 1600 | D88: 18.74% | E88: 1010 | F88: 11.83% | G88: 880 | H88: 10.30% | I88: 770 | J88: 9.02% | K88: 650 | L88: 7.61% | M88: 560 | N88: 6.56% | O88: 510 | P88: 5.97% | Q88: 5980 | R88: 8540 | S88: Nova Scotia
A89: 88 | B89: B3H | C89: 2790 | D89: 16.13% | E89: 1900 | F89: 10.99% | G89: 1600 | H89: 9.25% | I89: 1330 | J89: 7.69% | K89: 1120 | L89: 6.48% | M89: 1030 | N89: 5.96% | O89: 860 | P89: 4.97% | Q89: 10630 | R89: 17295 | S89: Nova Scotia
A90: 89 | B90: B3J | C90: 1440 | D90: 25.42% | E90: 910 | F90: 16.06% | G90: 770 | H90: 13.59% | I90: 670 | J90: 11.83% | K90: 560 | L90: 9.89% | M90: 520 | N90: 9.18% | O90: 450 | P90: 7.94% | Q90: 5320 | R90: 5665 | S90: Nova Scotia
A91: 90 | B91: B3K | C91: 4560 | D91: 24.48% | E91: 3080 | F91: 16.54% | G91: 2780 | H91: 14.93% | I91: 2400 | J91: 12.89% | K91: 2010 | L91: 10.79% | M91: 1880 | N91: 10.09% | O91: 1660 | P91: 8.91% | Q91: 18370 | R91: 18625 | S91: Nova Scotia
A92: 91 | B92: B3L | C92: 3150 | D92: 20.71% | E92: 2110 | F92: 13.87% | G92: 1830 | H92: 12.03% | I92: 1600 | J92: 10.52% | K92: 1340 | L92: 8.81% | M92: 1280 | N92: 8.42% | O92: 1090 | P92: 7.17% | Q92: 12400 | R92: 15210 | S92: Nova Scotia
A93: 92 | B93: B3M | C93: 6080 | D93: 21.97% | E93: 4070 | F93: 14.71% | G93: 3550 | H93: 12.83% | I93: 3060 | J93: 11.06% | K93: 2610 | L93: 9.43% | M93: 2450 | N93: 8.85% | O93: 2060 | P93: 7.44% | Q93: 23880 | R93: 27670 | S93: Nova Scotia
A94: 93 | B94: B3N | C94: 2540 | D94: 21.58% | E94: 1700 | F94: 14.44% | G94: 1470 | H94: 12.49% | I94: 1250 | J94: 10.62% | K94: 1050 | L94: 8.92% | M94: 990 | N94: 8.41% | O94: 880 | P94: 7.48% | Q94: 9880 | R94: 11770 | S94: Nova Scotia
A95: 94 | B95: B3P | C95: 1660 | D95: 20.85% | E95: 1190 | F95: 14.95% | G95: 1030 | H95: 12.94% | I95: 850 | J95: 10.68% | K95: 710 | L95: 8.92% | M95: 650 | N95: 8.17% | O95: 570 | P95: 7.16% | Q95: 6660 | R95: 7960 | S95: Nova Scotia
A96: 95 | B96: B3R | C96: 1930 | D96: 27.49% | E96: 1380 | F96: 19.66% | G96: 1240 | H96: 17.66% | I96: 1090 | J96: 15.53% | K96: 940 | L96: 13.39% | M96: 910 | N96: 12.96% | O96: 830 | P96: 11.82% | Q96: 8320 | R96: 7020 | S96: Nova Scotia
A97: 96 | B97: B3S | C97: 2110 | D97: 18.72% | E97: 1470 | F97: 13.04% | G97: 1290 | H97: 11.45% | I97: 1090 | J97: 9.67% | K97: 900 | L97: 7.99% | M97: 850 | N97: 7.54% | O97: 710 | P97: 6.30% | Q97: 8420 | R97: 11270 | S97: Nova Scotia
A98: 97 | B98: B3T | C98: 2540 | D98: 18.60% | E98: 1650 | F98: 12.08% | G98: 1390 | H98: 10.18% | I98: 1230 | J98: 9.01% | K98: 990 | L98: 7.25% | M98: 900 | N98: 6.59% | O98: 780 | P98: 5.71% | Q98: 9480 | R98: 13655 | S98: Nova Scotia
A99: 98 | B99: B3V | C99: 950 | D99: 18.72% | E99: 660 | F99: 13.00% | G99: 580 | H99: 11.43% | I99: 490 | J99: 9.66% | K99: 390 | L99: 7.68% | M99: 370 | N99: 7.29% | O99: 310 | P99: 6.11% | Q99: 3750 | R99: 5075 | S99: Nova Scotia
A100: 99 | B100: B3Z | C100: 2240 | D100: 16.26% | E100: 1630 | F100: 11.83% | G100: 1420 | H100: 10.30% | I100: 1180 | J100: 8.56% | K100: 940 | L100: 6.82% | M100: 850 | N100: 6.17% | O100: 700 | P100: 5.08% | Q100: 8960 | R100: 13780 | S100: Nova Scotia
A101: 100 | B101: B4A | C101: 2740 | D101: 18.43% | E101: 1960 | F101: 13.19% | G101: 1700 | H101: 11.44% | I101: 1410 | J101: 9.49% | K101: 1140 | L101: 7.67% | M101: 1080 | N101: 7.27% | O101: 950 | P101: 6.39% | Q101: 10980 | R101: 14865 | S101: Nova Scotia
A102: 101 | B102: B4B | C102: 2160 | D102: 21.38% | E102: 1560 | F102: 15.44% | G102: 1300 | H102: 12.86% | I102: 1070 | J102: 10.59% | K102: 840 | L102: 8.31% | M102: 800 | N102: 7.92% | O102: 680 | P102: 6.73% | Q102: 8410 | R102: 10105 | S102: Nova Scotia
A103: 102 | B103: B4C | C103: 2900 | D103: 18.79% | E103: 1810 | F103: 11.73% | G103: 1590 | H103: 10.30% | I103: 1460 | J103: 9.46% | K103: 1190 | L103: 7.71% | M103: 1120 | N103: 7.26% | O103: 990 | P103: 6.42% | Q103: 11060 | R103: 15430 | S103: Nova Scotia
A104: 103 | B104: B4E | C104: 2860 | D104: 19.24% | E104: 1850 | F104: 12.45% | G104: 1580 | H104: 10.63% | I104: 1380 | J104: 9.28% | K104: 1110 | L104: 7.47% | M104: 1000 | N104: 6.73% | O104: 870 | P104: 5.85% | Q104: 10650 | R104: 14865 | S104: Nova Scotia
A105: 104 | B105: B4G | C105: 720 | D105: 17.80% | E105: 440 | F105: 10.88% | G105: 390 | H105: 9.64% | I105: 330 | J105: 8.16% | K105: 260 | L105: 6.43% | M105: 240 | N105: 5.93% | O105: 210 | P105: 5.19% | Q105: 2590 | R105: 4045 | S105: Nova Scotia
A106: 105 | B106: B4H | C106: 1880 | D106: 16.42% | E106: 1320 | F106: 11.53% | G106: 1170 | H106: 10.22% | I106: 1050 | J106: 9.17% | K106: 870 | L106: 7.60% | M106: 830 | N106: 7.25% | O106: 760 | P106: 6.64% | Q106: 7880 | R106: 11450 | S106: Nova Scotia
A107: 106 | B107: B4N | C107: 2620 | D107: 17.79% | E107: 1790 | F107: 12.15% | G107: 1490 | H107: 10.12% | I107: 1300 | J107: 8.83% | K107: 1070 | L107: 7.26% | M107: 1010 | N107: 6.86% | O107: 880 | P107: 5.97% | Q107: 10160 | R107: 14730 | S107: Nova Scotia
A108: 107 | B108: B4P | C108: 1160 | D108: 16.70% | E108: 810 | F108: 11.66% | G108: 700 | H108: 10.08% | I108: 590 | J108: 8.50% | K108: 490 | L108: 7.06% | M108: 440 | N108: 6.34% | O108: 380 | P108: 5.47% | Q108: 4570 | R108: 6945 | S108: Nova Scotia
A109: 108 | B109: B4R | C109: 340 | D109: 13.63% | E109: 220 | F109: 8.82% | G109: 180 | H109: 7.21% | I109: 150 | J109: 6.01% | K109: 110 | L109: 4.41% | M109: 100 | N109: 4.01% | O109: 80 | P109: 3.21% | Q109: 1180 | R109: 2495 | S109: Nova Scotia
A110: 109 | B110: B4V | C110: 2840 | D110: 16.16% | E110: 1980 | F110: 11.27% | G110: 1570 | H110: 8.94% | I110: 1320 | J110: 7.51% | K110: 1060 | L110: 6.03% | M110: 980 | N110: 5.58% | O110: 900 | P110: 5.12% | Q110: 10650 | R110: 17570 | S110: Nova Scotia
A111: 110 | B111: B5A | C111: 2380 | D111: 17.84% | E111: 1600 | F111: 11.99% | G111: 1610 | H111: 12.07% | I111: 1280 | J111: 9.60% | K111: 1050 | L111: 7.87% | M111: 1010 | N111: 7.57% | O111: 900 | P111: 6.75% | Q111: 9830 | R111: 13340 | S111: Nova Scotia
A112: 111 | B112: B6L | C112: 1880 | D112: 17.49% | E112: 1150 | F112: 10.70% | G112: 1020 | H112: 9.49% | I112: 890 | J112: 8.28% | K112: 690 | L112: 6.42% | M112: 660 | N112: 6.14% | O112: 600 | P112: 5.58% | Q112: 6890 | R112: 10750 | S112: Nova Scotia
A113: 112 | B113: B9A | C113: 680 | D113: 17.71% | E113: 480 | F113: 12.50% | G113: 400 | H113: 10.42% | I113: 340 | J113: 8.85% | K113: 320 | L113: 8.33% | M113: 300 | N113: 7.81% | O113: 280 | P113: 7.29% | Q113: 2800 | R113: 3840 | S113: Nova Scotia
A114: 113 | B114: C0A | C114: 5990 | D114: 16.25% | E114: 4230 | F114: 11.47% | G114: 3410 | H114: 9.25% | I114: 3000 | J114: 8.14% | K114: 2720 | L114: 7.38% | M114: 2540 | N114: 6.89% | O114: 2580 | P114: 7.00% | Q114: 24470 | R114: 36870 | S114: Prince Edward Island
A115: 114 | B115: C0B | C115: 3310 | D115: 13.83% | E115: 2440 | F115: 10.19% | G115: 1950 | H115: 8.15% | I115: 1880 | J115: 7.85% | K115: 1810 | L115: 7.56% | M115: 1670 | N115: 6.98% | O115: 1800 | P115: 7.52% | Q115: 14860 | R115: 23935 | S115: Prince Edward Island
A116: 115 | B116: C1A | C116: 4660 | D116: 21.41% | E116: 3180 | F116: 14.61% | G116: 2710 | H116: 12.45% | I116: 2220 | J116: 10.20% | K116: 1880 | L116: 8.64% | M116: 1780 | N116: 8.18% | O116: 1640 | P116: 7.54% | Q116: 18070 | R116: 21765 | S116: Prince Edward Island
A117: 116 | B117: C1B | C117: 1900 | D117: 17.85% | E117: 1250 | F117: 11.74% | G117: 1050 | H117: 9.86% | I117: 910 | J117: 8.55% | K117: 710 | L117: 6.67% | M117: 680 | N117: 6.39% | O117: 640 | P117: 6.01% | Q117: 7140 | R117: 10645 | S117: Prince Edward Island
A118: 117 | B118: C1C | C118: 810 | D118: 22.85% | E118: 480 | F118: 13.54% | G118: 420 | H118: 11.85% | I118: 350 | J118: 9.87% | K118: 280 | L118: 7.90% | M118: 260 | N118: 7.33% | O118: 250 | P118: 7.05% | Q118: 2850 | R118: 3545 | S118: Prince Edward Island
A119: 118 | B119: C1E | C119: 1740 | D119: 18.36% | E119: 1210 | F119: 12.77% | G119: 990 | H119: 10.45% | I119: 840 | J119: 8.87% | K119: 640 | L119: 6.75% | M119: 620 | N119: 6.54% | O119: 590 | P119: 6.23% | Q119: 6630 | R119: 9475 | S119: Prince Edward Island
A120: 119 | B120: C1N | C120: 2470 | D120: 17.66% | E120: 1670 | F120: 11.94% | G120: 1370 | H120: 9.79% | I120: 1260 | J120: 9.01% | K120: 1110 | L120: 7.93% | M120: 1060 | N120: 7.58% | O120: 1110 | P120: 7.93% | Q120: 10050 | R120: 13990 | S120: Prince Edward Island
A121: 120 | B121: E1A | C121: 6940 | D121: 19.36% | E121: 4250 | F121: 11.85% | G121: 3520 | H121: 9.82% | I121: 2980 | J121: 8.31% | K121: 2430 | L121: 6.78% | M121: 2310 | N121: 6.44% | O121: 2180 | P121: 6.08% | Q121: 24610 | R121: 35855 | S121: New Brunswick
A122: 121 | B122: E1B | C122: 2940 | D122: 17.79% | E122: 1720 | F122: 10.41% | G122: 1400 | H122: 8.47% | I122: 1230 | J122: 7.44% | K122: 970 | L122: 5.87% | M122: 960 | N122: 5.81% | O122: 880 | P122: 5.33% | Q122: 10100 | R122: 16525 | S122: New Brunswick
A123: 122 | B123: E1C | C123: 5020 | D123: 24.15% | E123: 3200 | F123: 15.40% | G123: 2700 | H123: 12.99% | I123: 2360 | J123: 11.35% | K123: 2020 | L123: 9.72% | M123: 1960 | N123: 9.43% | O123: 1770 | P123: 8.52% | Q123: 19030 | R123: 20785 | S123: New Brunswick
A124: 123 | B124: E1E | C124: 1780 | D124: 18.93% | E124: 1130 | F124: 12.01% | G124: 950 | H124: 10.10% | I124: 850 | J124: 9.04% | K124: 700 | L124: 7.44% | M124: 650 | N124: 6.91% | O124: 610 | P124: 6.49% | Q124: 6670 | R124: 9405 | S124: New Brunswick
A125: 124 | B125: E1G | C125: 3590 | D125: 19.75% | E125: 2170 | F125: 11.94% | G125: 1730 | H125: 9.52% | I125: 1470 | J125: 8.09% | K125: 1150 | L125: 6.33% | M125: 1100 | N125: 6.05% | O125: 1020 | P125: 5.61% | Q125: 12230 | R125: 18180 | S125: New Brunswick
A126: 125 | B126: E1H | C126: 1110 | D126: 17.34% | E126: 670 | F126: 10.47% | G126: 500 | H126: 7.81% | I126: 420 | J126: 6.56% | K126: 350 | L126: 5.47% | M126: 340 | N126: 5.31% | O126: 340 | P126: 5.31% | Q126: 3730 | R126: 6400 | S126: New Brunswick
A127: 126 | B127: E1J | C127: 510 | D127: 17.41% | E127: 300 | F127: 10.24% | G127: 240 | H127: 8.19% | I127: 200 | J127: 6.83% | K127: 180 | L127: 6.14% | M127: 170 | N127: 5.80% | O127: 160 | P127: 5.46% | Q127: 1760 | R127: 2930 | S127: New Brunswick
A128: 127 | B128: E1N | C128: 1410 | D128: 14.39% | E128: 930 | F128: 9.49% | G128: 760 | H128: 7.76% | I128: 680 | J128: 6.94% | K128: 570 | L128: 5.82% | M128: 580 | N128: 5.92% | O128: 590 | P128: 6.02% | Q128: 5520 | R128: 9800 | S128: New Brunswick
A129: 128 | B129: E1V | C129: 2000 | D129: 17.30% | E129: 1360 | F129: 11.76% | G129: 1140 | H129: 9.86% | I129: 1020 | J129: 8.82% | K129: 840 | L129: 7.27% | M129: 850 | N129: 7.35% | O129: 870 | P129: 7.53% | Q129: 8080 | R129: 11560 | S129: New Brunswick
A130: 129 | B130: E1W | C130: 830 | D130: =C130/R130 -> 13.40% | E130: 580 | F130: =E130/R130 -> 9.36% | G130: 480 | H130: =G130/R130 -> 7.75% | I130: 430 | J130: =I130/R130 -> 6.94% | K130: 450 | L130: =K130/R130 -> 7.26% | M130: 400 | N130: =M130/R130 -> 6.46% | O130: 390 | P130: =O130/R130 -> 6.30% | Q130: 3560 | R130: 6195 | S130: New Brunswick
A131: 130 | B131: E1X | C131: 1760 | D131: 14.33% | E131: 1220 | F131: 9.93% | G131: 1010 | H131: 8.22% | I131: 930 | J131: 7.57% | K131: 880 | L131: 7.17% | M131: 870 | N131: 7.08% | O131: 800 | P131: 6.51% | Q131: 7470 | R131: 12280 | S131: New Brunswick
A132: 131 | B132: E2A | C132: 2320 | D132: 15.24% | E132: 1470 | F132: 9.66% | G132: 1230 | H132: 8.08% | I132: 1070 | J132: 7.03% | K132: 920 | L132: 6.04% | M132: 900 | N132: 5.91% | O132: 880 | P132: 5.78% | Q132: 8790 | R132: 15220 | S132: New Brunswick
A133: 132 | B133: E2E | C133: 2260 | D133: 14.26% | E133: 1560 | F133: 9.84% | G133: 1240 | H133: 7.82% | I133: 1090 | J133: 6.88% | K133: 840 | L133: 5.30% | M133: 800 | N133: 5.05% | O133: 730 | P133: 4.61% | Q133: 8520 | R133: 15850 | S133: New Brunswick
A134: 133 | B134: E2G | C134: 640 | D134: 15.71% | E134: 410 | F134: 10.06% | G134: 330 | H134: 8.10% | I134: 290 | J134: 7.12% | K134: 220 | L134: 5.40% | M134: 200 | N134: 4.91% | O134: 180 | P134: 4.42% | Q134: 2270 | R134: 4075 | S134: New Brunswick
A135: 134 | B135: E2H | C135: 660 | D135: 16.97% | E135: 440 | F135: 11.31% | G135: 370 | H135: 9.51% | I135: 350 | J135: 9.00% | K135: 280 | L135: 7.20% | M135: 280 | N135: 7.20% | O135: 280 | P135: 7.20% | Q135: 2660 | R135: 3890 | S135: New Brunswick
A136: 135 | B136: E2J | C136: 2700 | D136: 19.99% | E136: 1660 | F136: 12.29% | G136: 1410 | H136: 10.44% | I136: 1290 | J136: 9.55% | K136: 1070 | L136: 7.92% | M136: 1040 | N136: 7.70% | O136: 950 | P136: 7.03% | Q136: 10120 | R136: 13505 | S136: New Brunswick
A137: 136 | B137: E2K | C137: 2930 | D137: 20.01% | E137: 2100 | F137: 14.34% | G137: 1860 | H137: 12.70% | I137: 1690 | J137: 11.54% | K137: 1420 | L137: 9.70% | M137: 1370 | N137: 9.35% | O137: 1250 | P137: 8.54% | Q137: 12620 | R137: 14645 | S137: New Brunswick
A138: 137 | B138: E2L | C138: 1860 | D138: 27.62% | E138: 1250 | F138: 18.56% | G138: 1130 | H138: 16.78% | I138: 980 | J138: 14.55% | K138: 850 | L138: 12.62% | M138: 830 | N138: 12.32% | O138: 770 | P138: 11.43% | Q138: 7670 | R138: 6735 | S138: New Brunswick
A139: 138 | B139: E2M | C139: 2670 | D139: 16.72% | E139: 1720 | F139: 10.77% | G139: 1450 | H139: 9.08% | I139: 1260 | J139: 7.89% | K139: 1070 | L139: 6.70% | M139: 1020 | N139: 6.39% | O139: 960 | P139: 6.01% | Q139: 10150 | R139: 15970 | S139: New Brunswick
A140: 139 | B140: E2N | C140: 680 | D140: 18.84% | E140: 430 | F140: 11.91% | G140: 350 | H140: 9.70% | I140: 310 | J140: 8.59% | K140: 260 | L140: 7.20% | M140: 240 | N140: 6.65% | O140: 200 | P140: 5.54% | Q140: 2470 | R140: 3610 | S140: New Brunswick
A141: 140 | B141: E2P | C141: 230 | D141: 19.83% | E141: 110 | F141: 9.48% | G141: 100 | H141: 8.62% | I141: 100 | J141: 8.62% | K141: 80 | L141: 6.90% | M141: 80 | N141: 6.90% | O141: 70 | P141: 6.03% | Q141: 770 | R141: 1160 | S141: New Brunswick
A142: 141 | B142: E2S | C142: 1030 | D142: 18.34% | E142: 600 | F142: 10.69% | G142: 500 | H142: 8.90% | I142: 480 | J142: 8.55% | K142: 380 | L142: 6.77% | M142: 360 | N142: 6.41% | O142: 320 | P142: 5.70% | Q142: 3670 | R142: 5615 | S142: New Brunswick
A143: 142 | B143: E2V | C143: 1550 | D143: 13.24% | E143: 1000 | F143: 8.54% | G143: 850 | H143: 7.26% | I143: 790 | J143: 6.75% | K143: 630 | L143: 5.38% | M143: 620 | N143: 5.29% | O143: 570 | P143: 4.87% | Q143: 6010 | R143: 11710 | S143: New Brunswick
A144: 143 | B144: E3A | C144: 4370 | D144: 18.66% | E144: 2820 | F144: 12.04% | G144: 2370 | H144: 10.12% | I144: 2070 | J144: 8.84% | K144: 1780 | L144: 7.60% | M144: 1700 | N144: 7.26% | O144: 1520 | P144: 6.49% | Q144: 16630 | R144: 23415 | S144: New Brunswick
A145: 144 | B145: E3B | C145: 5830 | D145: 18.49% | E145: 3470 | F145: 11.01% | G145: 2840 | H145: 9.01% | I145: 2390 | J145: 7.58% | K145: 1970 | L145: 6.25% | M145: 1900 | N145: 6.03% | O145: 1780 | P145: 5.65% | Q145: 20180 | R145: 31530 | S145: New Brunswick
A146: 145 | B146: E3C | C146: 1410 | D146: 14.76% | E146: 880 | F146: 9.21% | G146: 690 | H146: 7.22% | I146: 550 | J146: 5.76% | K146: 430 | L146: 4.50% | M146: 430 | N146: 4.50% | O146: 380 | P146: 3.98% | Q146: 4770 | R146: 9555 | S146: New Brunswick
A147: 146 | B147: E3E | C147: 640 | D147: 17.30% | E147: 410 | F147: 11.08% | G147: 340 | H147: 9.19% | I147: 300 | J147: 8.11% | K147: 260 | L147: 7.03% | M147: 240 | N147: 6.49% | O147: 240 | P147: 6.49% | Q147: 2430 | R147: 3700 | S147: New Brunswick
A148: 147 | B148: E3G | C148: 1200 | D148: 17.17% | E148: 730 | F148: 10.44% | G148: 620 | H148: 8.87% | I148: 540 | J148: 7.73% | K148: 430 | L148: 6.15% | M148: 390 | N148: 5.58% | O148: 350 | P148: 5.01% | Q148: 4260 | R148: 6990 | S148: New Brunswick
A149: 148 | B149: E3L | C149: 1250 | D149: 17.15% | E149: 840 | F149: 11.52% | G149: 740 | H149: 10.15% | I149: 660 | J149: 9.05% | K149: 560 | L149: 7.68% | M149: 540 | N149: 7.41% | O149: 510 | P149: 7.00% | Q149: 5100 | R149: 7290 | S149: New Brunswick
A150: 149 | B150: E3N | C150: 1700 | D150: 14.30% | E150: 1120 | F150: 9.42% | G150: 1010 | H150: 8.49% | I150: 950 | J150: 7.99% | K150: 780 | L150: 6.56% | M150: 830 | N150: 6.98% | O150: 840 | P150: 7.06% | Q150: 7230 | R150: 11890 | S150: New Brunswick
A151: 150 | B151: E3V | C151: 1670 | D151: 16.29% | E151: 1100 | F151: 10.73% | G151: 870 | H151: 8.49% | I151: 760 | J151: 7.41% | K151: 640 | L151: 6.24% | M151: 610 | N151: 5.95% | O151: 600 | P151: 5.85% | Q151: 6250 | R151: 10250 | S151: New Brunswick
A152: 151 | B152: E3Y | C152: 950 | D152: 15.27% | E152: 660 | F152: 10.61% | G152: 480 | H152: 7.72% | I152: 400 | J152: 6.43% | K152: 330 | L152: 5.31% | M152: 340 | N152: 5.47% | O152: 310 | P152: 4.98% | Q152: 3470 | R152: 6220 | S152: New Brunswick
A153: 152 | B153: E3Z | C153: 520 | D153: 14.94% | E153: 400 | F153: 11.49% | G153: 290 | H153: 8.33% | I153: 250 | J153: 7.18% | K153: 210 | L153: 6.03% | M153: 210 | N153: 6.03% | O153: 210 | P153: 6.03% | Q153: 2090 | R153: 3480 | S153: New Brunswick
A154: 153 | B154: E4A | C154: 330 | D154: 12.50% | E154: 260 | F154: 9.85% | G154: 200 | H154: 7.58% | I154: 180 | J154: 6.82% | K154: 150 | L154: 5.68% | M154: 150 | N154: 5.68% | O154: 140 | P154: 5.30% | Q154: 1410 | R154: 2640 | S154: New Brunswick
A155: 154 | B155: E4B | C155: 550 | D155: 14.91% | E155: 410 | F155: 11.11% | G155: 360 | H155: 9.76% | I155: 320 | J155: 8.67% | K155: 260 | L155: 7.05% | M155: 270 | N155: 7.32% | O155: 240 | P155: 6.50% | Q155: 2410 | R155: 3690 | S155: New Brunswick
A156: 155 | B156: E4C | C156: 210 | D156: 10.71% | E156: 140 | F156: 7.14% | G156: 130 | H156: 6.63% | I156: 120 | J156: 6.12% | K156: 100 | L156: 5.10% | M156: 110 | N156: 5.61% | O156: 90 | P156: 4.59% | Q156: 900 | R156: 1960 | S156: New Brunswick
A157: 156 | B157: E4E | C157: 1310 | D157: 17.47% | E157: 830 | F157: 11.07% | G157: 700 | H157: 9.33% | I157: 640 | J157: 8.53% | K157: 500 | L157: 6.67% | M157: 480 | N157: 6.40% | O157: 450 | P157: 6.00% | Q157: 4910 | R157: 7500 | S157: New Brunswick
A158: 157 | B158: E4G | C158: 360 | D158: 15.58% | E158: 240 | F158: 10.39% | G158: 200 | H158: 8.66% | I158: 180 | J158: 7.79% | K158: 140 | L158: 6.06% | M158: 130 | N158: 5.63% | O158: 120 | P158: 5.19% | Q158: 1370 | R158: 2310 | S158: New Brunswick
A159: 158 | B159: E4H | C159: 550 | D159: 15.78% | E159: 390 | F159: 11.19% | G159: 340 | H159: 9.76% | I159: 300 | J159: 8.61% | K159: 260 | L159: 7.46% | M159: 260 | N159: 7.46% | O159: 240 | P159: 6.89% | Q159: 2340 | R159: 3485 | S159: New Brunswick
A160: 159 | B160: E4J | C160: 780 | D160: 19.38% | E160: 430 | F160: 10.68% | G160: 370 | H160: 9.19% | I160: 330 | J160: 8.20% | K160: 270 | L160: 6.71% | M160: 250 | N160: 6.21% | O160: 240 | P160: 5.96% | Q160: 2670 | R160: 4025 | S160: New Brunswick
A161: 160 | B161: E4K | C161: 700 | D161: 12.70% | E161: 420 | F161: 7.62% | G161: 340 | H161: 6.17% | I161: 300 | J161: 5.44% | K161: 240 | L161: 4.36% | M161: 240 | N161: 4.36% | O161: 240 | P161: 4.36% | Q161: 2480 | R161: 5510 | S161: New Brunswick
A162: 161 | B162: E4L | C162: 970 | D162: 16.23% | E162: 660 | F162: 11.05% | G162: 550 | H162: 9.21% | I162: 470 | J162: 7.87% | K162: 400 | L162: 6.69% | M162: 390 | N162: 6.53% | O162: 390 | P162: 6.53% | Q162: 3830 | R162: 5975 | S162: New Brunswick
A163: 162 | B163: E4M | C163: 250 | D163: 15.87% | E163: 160 | F163: 10.16% | G163: 140 | H163: 8.89% | I163: 140 | J163: 8.89% | K163: 140 | L163: 8.89% | M163: 120 | N163: 7.62% | O163: 100 | P163: 6.35% | Q163: 1050 | R163: 1575 | S163: New Brunswick
A164: 163 | B164: E4N | C164: 480 | D164: 14.52% | E164: 320 | F164: 9.68% | G164: 260 | H164: 7.87% | I164: 230 | J164: 6.96% | K164: 210 | L164: 6.35% | M164: 190 | N164: 5.75% | O164: 210 | P164: 6.35% | Q164: 1900 | R164: 3305 | S164: New Brunswick
A165: 164 | B165: E4P | C165: 2020 | D165: 15.85% | E165: 1240 | F165: 9.73% | G165: 1010 | H165: 7.92% | I165: 860 | J165: 6.75% | K165: 770 | L165: 6.04% | M165: 730 | N165: 5.73% | O165: 790 | P165: 6.20% | Q165: 7420 | R165: 12745 | S165: New Brunswick
A166: 165 | B166: E4R | C166: 820 | D166: 14.76% | E166: 470 | F166: 8.46% | G166: 390 | H166: 7.02% | I166: 340 | J166: 6.12% | K166: 280 | L166: 5.04% | M166: 280 | N166: 5.04% | O166: 280 | P166: 5.04% | Q166: 2860 | R166: 5555 | S166: New Brunswick
A167: 166 | B167: E4S | C167: 940 | D167: 15.14% | E167: 660 | F167: 10.63% | G167: 560 | H167: 9.02% | I167: 490 | J167: 7.89% | K167: 410 | L167: 6.60% | M167: 420 | N167: 6.76% | O167: 420 | P167: 6.76% | Q167: 3900 | R167: 6210 | S167: New Brunswick
A168: 167 | B168: E4T | C168: 280 | D168: 14.93% | E168: 200 | F168: 10.67% | G168: 170 | H168: 9.07% | I168: 170 | J168: 9.07% | K168: 130 | L168: 6.93% | M168: 120 | N168: 6.40% | O168: 120 | P168: 6.40% | Q168: 1190 | R168: 1875 | S168: New Brunswick
A169: 168 | B169: E4V | C169: 580 | D169: 15.87% | E169: 340 | F169: 9.30% | G169: 260 | H169: 7.11% | I169: 240 | J169: 6.57% | K169: 190 | L169: 5.20% | M169: 180 | N169: 4.92% | O169: 200 | P169: 5.47% | Q169: 1990 | R169: 3655 | S169: New Brunswick
A170: 169 | B170: E4W | C170: 1400 | D170: 20.54% | E170: 1190 | F170: 17.46% | G170: 1090 | H170: 15.99% | I170: 1140 | J170: 16.73% | K170: 1030 | L170: 15.11% | M170: 950 | N170: 13.94% | O170: 940 | P170: 13.79% | Q170: 7740 | R170: 6815 | S170: New Brunswick
A171: 170 | B171: E4X | C171: 300 | D171: 11.26% | E171: 220 | F171: 8.26% | G171: 190 | H171: 7.13% | I171: 170 | J171: 6.38% | K171: 160 | L171: 6.00% | M171: 140 | N171: 5.25% | O171: 170 | P171: 6.38% | Q171: 1350 | R171: 2665 | S171: New Brunswick
A172: 171 | B172: E4Y | C172: 330 | D172: 12.13% | E172: 220 | F172: 8.09% | G172: 180 | H172: 6.62% | I172: 160 | J172: 5.88% | K172: 140 | L172: 5.15% | M172: 150 | N172: 5.51% | O172: 150 | P172: 5.51% | Q172: 1330 | R172: 2720 | S172: New Brunswick
A173: 172 | B173: E4Z | C173: 730 | D173: 15.80% | E173: 470 | F173: 10.17% | G173: 370 | H173: 8.01% | I173: 340 | J173: 7.36% | K173: 300 | L173: 6.49% | M173: 280 | N173: 6.06% | O173: 260 | P173: 5.63% | Q173: 2750 | R173: 4620 | S173: New Brunswick
A174: 173 | B174: E5A | C174: 280 | D174: 19.05% | E174: 210 | F174: 14.29% | G174: 180 | H174: 12.24% | I174: 160 | J174: 10.88% | K174: 130 | L174: 8.84% | M174: 140 | N174: 9.52% | O174: 120 | P174: 8.16% | Q174: 1220 | R174: 1470 | S174: New Brunswick
A175: 174 | B175: E5B | C175: 420 | D175: 15.76% | E175: 320 | F175: 12.01% | G175: 290 | H175: 10.88% | I175: 250 | J175: 9.38% | K175: 190 | L175: 7.13% | M175: 170 | N175: 6.38% | O175: 160 | P175: 6.00% | Q175: 1800 | R175: 2665 | S175: New Brunswick
A176: 175 | B176: E5C | C176: 500 | D176: 14.03% | E176: 360 | F176: 10.10% | G176: 330 | H176: 9.26% | I176: 280 | J176: 7.85% | K176: 220 | L176: 6.17% | M176: 200 | N176: 5.61% | O176: 190 | P176: 5.33% | Q176: 2080 | R176: 3565 | S176: New Brunswick
A177: 176 | B177: E5E | C177: 80 | D177: 10.96% | E177: 80 | F177: 10.96% | G177: 80 | H177: 10.96% | I177: 70 | J177: 9.59% | K177: 70 | L177: 9.59% | M177: 60 | N177: 8.22% | O177: 60 | P177: 8.22% | Q177: 500 | R177: 730 | S177: New Brunswick
A178: 177 | B178: E5G | C178: 330 | D178: 15.68% | E178: 210 | F178: 9.98% | G178: 190 | H178: 9.03% | I178: 240 | J178: 11.40% | K178: 190 | L178: 9.03% | M178: 160 | N178: 7.60% | O178: 150 | P178: 7.13% | Q178: 1470 | R178: 2105 | S178: New Brunswick
A179: 178 | B179: E5H | C179: 350 | D179: 14.71% | E179: 290 | F179: 12.18% | G179: 260 | H179: 10.92% | I179: 210 | J179: 8.82% | K179: 190 | L179: 7.98% | M179: 180 | N179: 7.56% | O179: 160 | P179: 6.72% | Q179: 1640 | R179: 2380 | S179: New Brunswick
A180: 179 | B180: E5J | C180: 240 | D180: 14.16% | E180: 160 | F180: 9.44% | G180: 130 | H180: 7.67% | I180: 110 | J180: 6.49% | K180: 100 | L180: 5.90% | M180: 90 | N180: 5.31% | O180: 80 | P180: 4.72% | Q180: 910 | R180: 1695 | S180: New Brunswick
A181: 180 | B181: E5K | C181: 890 | D181: 14.92% | E181: 530 | F181: 8.89% | G181: 440 | H181: 7.38% | I181: 400 | J181: 6.71% | K181: 350 | L181: 5.87% | M181: 320 | N181: 5.36% | O181: 290 | P181: 4.86% | Q181: 3220 | R181: 5965 | S181: New Brunswick
A182: 181 | B182: E5L | C182: 370 | D182: 15.13% | E182: 240 | F182: 9.82% | G182: 210 | H182: 8.59% | I182: 190 | J182: 7.77% | K182: 160 | L182: 6.54% | M182: 150 | N182: 6.13% | O182: 120 | P182: 4.91% | Q182: 1440 | R182: 2445 | S182: New Brunswick
A183: 182 | B183: E5M | C183: 220 | D183: 12.43% | E183: 150 | F183: 8.47% | G183: 120 | H183: 6.78% | I183: 100 | J183: 5.65% | K183: 80 | L183: 4.52% | M183: 80 | N183: 4.52% | O183: 80 | P183: 4.52% | Q183: 830 | R183: 1770 | S183: New Brunswick
A184: 183 | B184: E5N | C184: 1620 | D184: 16.84% | E184: 1020 | F184: 10.60% | G184: 840 | H184: 8.73% | I184: 740 | J184: 7.69% | K184: 590 | L184: 6.13% | M184: 580 | N184: 6.03% | O184: 510 | P184: 5.30% | Q184: 5900 | R184: 9620 | S184: New Brunswick
A185: 184 | B185: E5P | C185: 330 | D185: 15.38% | E185: 210 | F185: 9.79% | G185: 160 | H185: 7.46% | I185: 140 | J185: 6.53% | K185: 120 | L185: 5.59% | M185: 120 | N185: 5.59% | O185: 110 | P185: 5.13% | Q185: 1190 | R185: 2145 | S185: New Brunswick
A186: 185 | B186: E5R | C186: 220 | D186: 17.46% | E186: 160 | F186: 12.70% | G186: 140 | H186: 11.11% | I186: 130 | J186: 10.32% | K186: 100 | L186: 7.94% | M186: 100 | N186: 7.94% | O186: 90 | P186: 7.14% | Q186: 940 | R186: 1260 | S186: New Brunswick
A187: 186 | B187: E5S | C187: 230 | D187: 14.74% | E187: 170 | F187: 10.90% | G187: 140 | H187: 8.97% | I187: 120 | J187: 7.69% | K187: 100 | L187: 6.41% | M187: 100 | N187: 6.41% | O187: 90 | P187: 5.77% | Q187: 950 | R187: 1560 | S187: New Brunswick
A188: 187 | B188: E5T | C188: 380 | D188: 14.90% | E188: 260 | F188: 10.20% | G188: 210 | H188: 8.24% | I188: 190 | J188: 7.45% | K188: 150 | L188: 5.88% | M188: 150 | N188: 5.88% | O188: 140 | P188: 5.49% | Q188: 1480 | R188: 2550 | S188: New Brunswick
A189: 188 | B189: E5V | C189: 80 | D189: 11.43% | E189: 60 | F189: 8.57% | G189: 50 | H189: 7.14% | I189: 50 | J189: 7.14% | K189: 50 | L189: 7.14% | M189: 40 | N189: 5.71% | O189: 40 | P189: 5.71% | Q189: 370 | R189: 700 | S189: New Brunswick
A190: 189 | B190: E6A | C190: 130 | D190: 12.04% | E190: 100 | F190: 9.26% | G190: 80 | H190: 7.41% | I190: 80 | J190: 7.41% | K190: 60 | L190: 5.56% | M190: 60 | N190: 5.56% | O190: 60 | P190: 5.56% | Q190: 570 | R190: 1080 | S190: New Brunswick
A191: 190 | B191: E6B | C191: 190 | D191: 14.07% | E191: 130 | F191: 9.63% | G191: 110 | H191: 8.15% | I191: 110 | J191: 8.15% | K191: 100 | L191: 7.41% | M191: 110 | N191: 8.15% | O191: 90 | P191: 6.67% | Q191: 840 | R191: 1350 | S191: New Brunswick
A192: 191 | B192: E6C | C192: 320 | D192: 18.50% | E192: 200 | F192: 11.56% | G192: 160 | H192: 9.25% | I192: 150 | J192: 8.67% | K192: 140 | L192: 8.09% | M192: 130 | N192: 7.51% | O192: 120 | P192: 6.94% | Q192: 1220 | R192: 1730 | S192: New Brunswick
A193: 192 | B193: E6E | C193: 190 | D193: 15.08% | E193: 120 | F193: 9.52% | G193: 110 | H193: 8.73% | I193: 110 | J193: 8.73% | K193: 90 | L193: 7.14% | M193: 90 | N193: 7.14% | O193: 80 | P193: 6.35% | Q193: 790 | R193: 1260 | S193: New Brunswick
A194: 193 | B194: E6G | C194: 300 | D194: =C194/R194 -> 14.15% | E194: 200 | F194: =E194/R194 -> 9.43% | G194: 210 | H194: =G194/R194 -> 9.91% | I194: 170 | J194: =I194/R194 -> 8.02% | K194: 140 | L194: =K194/R194 -> 6.60% | M194: 130 | N194: =M194/R194 -> 6.13% | O194: 110 | P194: =O194/R194 -> 5.19% | Q194: 1260 | R194: 2120 | S194: New Brunswick
A195: 194 | B195: E6H | C195: 150 | D195: 14.63% | E195: 110 | F195: 10.73% | G195: 90 | H195: 8.78% | I195: 80 | J195: 7.80% | K195: 60 | L195: 5.85% | M195: 70 | N195: 6.83% | O195: 60 | P195: 5.85% | Q195: 620 | R195: 1025 | S195: New Brunswick
A196: 195 | B196: E6J | C196: 160 | D196: 15.61% | E196: 130 | F196: 12.68% | G196: 100 | H196: 9.76% | I196: 100 | J196: 9.76% | K196: 90 | L196: 8.78% | M196: 90 | N196: 8.78% | O196: 80 | P196: 7.80% | Q196: 750 | R196: 1025 | S196: New Brunswick
A197: 196 | B197: E6K | C197: 450 | D197: 13.91% | E197: 280 | F197: 8.66% | G197: 210 | H197: 6.49% | I197: 190 | J197: 5.87% | K197: 140 | L197: 4.33% | M197: 130 | N197: 4.02% | O197: 120 | P197: 3.71% | Q197: 1520 | R197: 3235 | S197: New Brunswick
A198: 197 | B198: E6L | C198: 650 | D198: 16.71% | E198: 400 | F198: 10.28% | G198: 340 | H198: 8.74% | I198: 310 | J198: 7.97% | K198: 240 | L198: 6.17% | M198: 230 | N198: 5.91% | O198: 200 | P198: 5.14% | Q198: 2370 | R198: 3890 | S198: New Brunswick
A199: 198 | B199: E7A | C199: 380 | D199: 11.66% | E199: 280 | F199: 8.59% | G199: 230 | H199: 7.06% | I199: 220 | J199: 6.75% | K199: 180 | L199: 5.52% | M199: 180 | N199: 5.52% | O199: 160 | P199: 4.91% | Q199: 1630 | R199: 3260 | S199: New Brunswick
A200: 199 | B200: E7B | C200: 770 | D200: 15.65% | E200: 480 | F200: 9.76% | G200: 350 | H200: 7.11% | I200: 280 | J200: 5.69% | K200: 250 | L200: 5.08% | M200: 260 | N200: 5.28% | O200: 250 | P200: 5.08% | Q200: 2640 | R200: 4920 | S200: New Brunswick
... 1418 more rows

Sheet Original release data
A1: Number of Beneficiaries Who Received a CERB Payment
A2: From March 15, 2020 to November 2, 2020
A4: CERB Period | B4: CERB Period Start Date | C4: CERB Period End Date | D4: Forwarding Station Area (FSA) | E4: Beneficiary Count
A5: 1 | B5: 2020-03-15 | C5: 2020-04-11 | D5: A0A | E5: 6,240
A6: 1 | B6: 2020-03-15 | C6: 2020-04-11 | D6: A0B | E6: 2,240
A7: 1 | B7: 2020-03-15 | C7: 2020-04-11 | D7: A0C | E7: 1,320
A8: 1 | B8: 2020-03-15 | C8: 2020-04-11 | D8: A0E | E8: 2,500
A9: 1 | B9: 2020-03-15 | C9: 2020-04-11 | D9: A0G | E9: 3,590
A10: 1 | B10: 2020-03-15 | C10: 2020-04-11 | D10: A0H | E10: 1,830
A11: 1 | B11: 2020-03-15 | C11: 2020-04-11 | D11: A0J | E11: 880
A12: 1 | B12: 2020-03-15 | C12: 2020-04-11 | D12: A0K | E12: 2,270
A13: 1 | B13: 2020-03-15 | C13: 2020-04-11 | D13: A0L | E13: 910
A14: 1 | B14: 2020-03-15 | C14: 2020-04-11 | D14: A0M | E14: 510
A15: 1 | B15: 2020-03-15 | C15: 2020-04-11 | D15: A0N | E15: 1,560
A16: 1 | B16: 2020-03-15 | C16: 2020-04-11 | D16: A0P | E16: 2,430
A17: 1 | B17: 2020-03-15 | C17: 2020-04-11 | D17: A0R | E17: 230
A18: 1 | B18: 2020-03-15 | C18: 2020-04-11 | D18: A0S | E18: 20
A19: 1 | B19: 2020-03-15 | C19: 2020-04-11 | D19: A1A | E19: 4,040
A20: 1 | B20: 2020-03-15 | C20: 2020-04-11 | D20: A1B | E20: 3,910
A21: 1 | B21: 2020-03-15 | C21: 2020-04-11 | D21: A1C | E21: 2,930
A22: 1 | B22: 2020-03-15 | C22: 2020-04-11 | D22: A1E | E22: 4,790
A23: 1 | B23: 2020-03-15 | C23: 2020-04-11 | D23: A1G | E23: 990
A24: 1 | B24: 2020-03-15 | C24: 2020-04-11 | D24: A1H | E24: 680
A25: 1 | B25: 2020-03-15 | C25: 2020-04-11 | D25: A1K | E25: 1,770
A26: 1 | B26: 2020-03-15 | C26: 2020-04-11 | D26: A1L | E26: 3,050
A27: 1 | B27: 2020-03-15 | C27: 2020-04-11 | D27: A1M | E27: 1,190
A28: 1 | B28: 2020-03-15 | C28: 2020-04-11 | D28: A1N | E28: 3,490
A29: 1 | B29: 2020-03-15 | C29: 2020-04-11 | D29: A1S | E29: 1,110
A30: 1 | B30: 2020-03-15 | C30: 2020-04-11 | D30: A1V | E30: 1,570
A31: 1 | B31: 2020-03-15 | C31: 2020-04-11 | D31: A1W | E31: 1,600
A32: 1 | B32: 2020-03-15 | C32: 2020-04-11 | D32: A1X | E32: 2,240
A33: 1 | B33: 2020-03-15 | C33: 2020-04-11 | D33: A1Y | E33: 760
A34: 1 | B34: 2020-03-15 | C34: 2020-04-11 | D34: A2A | E34: 1,270
A35: 1 | B35: 2020-03-15 | C35: 2020-04-11 | D35: A2B | E35: 740
A36: 1 | B36: 2020-03-15 | C36: 2020-04-11 | D36: A2H | E36: 3,500
A37: 1 | B37: 2020-03-15 | C37: 2020-04-11 | D37: A2N | E37: 1,180
A38: 1 | B38: 2020-03-15 | C38: 2020-04-11 | D38: A2V | E38: 670
A39: 1 | B39: 2020-03-15 | C39: 2020-04-11 | D39: A5A | E39: 1,180
A40: 1 | B40: 2020-03-15 | C40: 2020-04-11 | D40: A8A | E40: 970
A41: 1 | B41: 2020-03-15 | C41: 2020-04-11 | D41: A8E | E41: 20
A42: 1 | B42: 2020-03-15 | C42: 2020-04-11 | D42: A9A | E42: 20
A43: 1 | B43: 2020-03-15 | C43: 2020-04-11 | D43: B0A | E43: 20
A44: 1 | B44: 2020-03-15 | C44: 2020-04-11 | D44: B0B | E44: 20
A45: 1 | B45: 2020-03-15 | C45: 2020-04-11 | D45: B0C | E45: 230
A46: 1 | B46: 2020-03-15 | C46: 2020-04-11 | D46: B0E | E46: 2,930
A47: 1 | B47: 2020-03-15 | C47: 2020-04-11 | D47: B0H | E47: 1,260
A48: 1 | B48: 2020-03-15 | C48: 2020-04-11 | D48: B0J | E48: 5,430
A49: 1 | B49: 2020-03-15 | C49: 2020-04-11 | D49: B0K | E49: 5,300
A50: 1 | B50: 2020-03-15 | C50: 2020-04-11 | D50: B0L | E50: 310
A51: 1 | B51: 2020-03-15 | C51: 2020-04-11 | D51: B0M | E51: 2,260
A52: 1 | B52: 2020-03-15 | C52: 2020-04-11 | D52: B0N | E52: 5,750
A53: 1 | B53: 2020-03-15 | C53: 2020-04-11 | D53: B0P | E53: 5,080
A54: 1 | B54: 2020-03-15 | C54: 2020-04-11 | D54: B0R | E54: 800
A55: 1 | B55: 2020-03-15 | C55: 2020-04-11 | D55: B0S | E55: 2,420
A56: 1 | B56: 2020-03-15 | C56: 2020-04-11 | D56: B0T | E56: 2,050
A57: 1 | B57: 2020-03-15 | C57: 2020-04-11 | D57: B0V | E57: 1,000
A58: 1 | B58: 2020-03-15 | C58: 2020-04-11 | D58: B0W | E58: 3,720
A59: 1 | B59: 2020-03-15 | C59: 2020-04-11 | D59: B1A | E59: 2,460
A60: 1 | B60: 2020-03-15 | C60: 2020-04-11 | D60: B1B | E60: 160
A61: 1 | B61: 2020-03-15 | C61: 2020-04-11 | D61: B1C | E61: 180
A62: 1 | B62: 2020-03-15 | C62: 2020-04-11 | D62: B1E | E62: 260
A63: 1 | B63: 2020-03-15 | C63: 2020-04-11 | D63: B1G | E63: 320
A64: 1 | B64: 2020-03-15 | C64: 2020-04-11 | D64: B1H | E64: 1,650
A65: 1 | B65: 2020-03-15 | C65: 2020-04-11 | D65: B1J | E65: 140
A66: 1 | B66: 2020-03-15 | C66: 2020-04-11 | D66: B1K | E66: 450
A67: 1 | B67: 2020-03-15 | C67: 2020-04-11 | D67: B1L | E67: 670
A68: 1 | B68: 2020-03-15 | C68: 2020-04-11 | D68: B1M | E68: 200
A69: 1 | B69: 2020-03-15 | C69: 2020-04-11 | D69: B1N | E69: 1,210
A70: 1 | B70: 2020-03-15 | C70: 2020-04-11 | D70: B1P | E70: 3,260
A71: 1 | B71: 2020-03-15 | C71: 2020-04-11 | D71: B1R | E71: 580
A72: 1 | B72: 2020-03-15 | C72: 2020-04-11 | D72: B1S | E72: 1,240
A73: 1 | B73: 2020-03-15 | C73: 2020-04-11 | D73: B1T | E73: 30
A74: 1 | B74: 2020-03-15 | C74: 2020-04-11 | D74: B1V | E74: 1,040
A75: 1 | B75: 2020-03-15 | C75: 2020-04-11 | D75: B1W | E75: 840
A76: 1 | B76: 2020-03-15 | C76: 2020-04-11 | D76: B1X | E76: 120
A77: 1 | B77: 2020-03-15 | C77: 2020-04-11 | D77: B1Y | E77: 820
A78: 1 | B78: 2020-03-15 | C78: 2020-04-11 | D78: B2A | E78: 1,150
A79: 1 | B79: 2020-03-15 | C79: 2020-04-11 | D79: B2B | E79: 20
A80: 1 | B80: 2020-03-15 | C80: 2020-04-11 | D80: B2C | E80: 40
A81: 1 | B81: 2020-03-15 | C81: 2020-04-11 | D81: B2E | E81: 20
A82: 1 | B82: 2020-03-15 | C82: 2020-04-11 | D82: B2G | E82: 1,970
A83: 1 | B83: 2020-03-15 | C83: 2020-04-11 | D83: B2H | E83: 2,140
A84: 1 | B84: 2020-03-15 | C84: 2020-04-11 | D84: B2J | E84: 20
A85: 1 | B85: 2020-03-15 | C85: 2020-04-11 | D85: B2K | E85: 20
A86: 1 | B86: 2020-03-15 | C86: 2020-04-11 | D86: B2L | E86: 20
A87: 1 | B87: 2020-03-15 | C87: 2020-04-11 | D87: B2M | E87: 20
A88: 1 | B88: 2020-03-15 | C88: 2020-04-11 | D88: B2N | E88: 3,350
A89: 1 | B89: 2020-03-15 | C89: 2020-04-11 | D89: B2R | E89: 370
A90: 1 | B90: 2020-03-15 | C90: 2020-04-11 | D90: B2S | E90: 1,250
A91: 1 | B91: 2020-03-15 | C91: 2020-04-11 | D91: B2T | E91: 2,440
A92: 1 | B92: 2020-03-15 | C92: 2020-04-11 | D92: B2V | E92: 1,640
A93: 1 | B93: 2020-03-15 | C93: 2020-04-11 | D93: B2W | E93: 4,750
A94: 1 | B94: 2020-03-15 | C94: 2020-04-11 | D94: B2X | E94: 2,160
A95: 1 | B95: 2020-03-15 | C95: 2020-04-11 | D95: B2Y | E95: 2,690
A96: 1 | B96: 2020-03-15 | C96: 2020-04-11 | D96: B2Z | E96: 1,630
A97: 1 | B97: 2020-03-15 | C97: 2020-04-11 | D97: B3A | E97: 4,590
A98: 1 | B98: 2020-03-15 | C98: 2020-04-11 | D98: B3B | E98: 290
A99: 1 | B99: 2020-03-15 | C99: 2020-04-11 | D99: B3E | E99: 1,110
A100: 1 | B100: 2020-03-15 | C100: 2020-04-11 | D100: B3G | E100: 1,600
A101: 1 | B101: 2020-03-15 | C101: 2020-04-11 | D101: B3H | E101: 2,790
A102: 1 | B102: 2020-03-15 | C102: 2020-04-11 | D102: B3J | E102: 1,440
A103: 1 | B103: 2020-03-15 | C103: 2020-04-11 | D103: B3K | E103: 4,560
A104: 1 | B104: 2020-03-15 | C104: 2020-04-11 | D104: B3L | E104: 3,150
A105: 1 | B105: 2020-03-15 | C105: 2020-04-11 | D105: B3M | E105: 6,080
A106: 1 | B106: 2020-03-15 | C106: 2020-04-11 | D106: B3N | E106: 2,540
A107: 1 | B107: 2020-03-15 | C107: 2020-04-11 | D107: B3P | E107: 1,660
A108: 1 | B108: 2020-03-15 | C108: 2020-04-11 | D108: B3R | E108: 1,930
A109: 1 | B109: 2020-03-15 | C109: 2020-04-11 | D109: B3S | E109: 2,110
A110: 1 | B110: 2020-03-15 | C110: 2020-04-11 | D110: B3T | E110: 2,540
A111: 1 | B111: 2020-03-15 | C111: 2020-04-11 | D111: B3V | E111: 950
A112: 1 | B112: 2020-03-15 | C112: 2020-04-11 | D112: B3W | E112: 20
A113: 1 | B113: 2020-03-15 | C113: 2020-04-11 | D113: B3X | E113: 20
A114: 1 | B114: 2020-03-15 | C114: 2020-04-11 | D114: B3Y | E114: 20
A115: 1 | B115: 2020-03-15 | C115: 2020-04-11 | D115: B3Z | E115: 2,240
A116: 1 | B116: 2020-03-15 | C116: 2020-04-11 | D116: B4A | E116: 2,740
A117: 1 | B117: 2020-03-15 | C117: 2020-04-11 | D117: B4B | E117: 2,160
A118: 1 | B118: 2020-03-15 | C118: 2020-04-11 | D118: B4C | E118: 2,900
A119: 1 | B119: 2020-03-15 | C119: 2020-04-11 | D119: B4E | E119: 2,860
A120: 1 | B120: 2020-03-15 | C120: 2020-04-11 | D120: B4G | E120: 720
A121: 1 | B121: 2020-03-15 | C121: 2020-04-11 | D121: B4H | E121: 1,880
A122: 1 | B122: 2020-03-15 | C122: 2020-04-11 | D122: B4M | E122: 20
A123: 1 | B123: 2020-03-15 | C123: 2020-04-11 | D123: B4N | E123: 2,620
A124: 1 | B124: 2020-03-15 | C124: 2020-04-11 | D124: B4P | E124: 1,160
A125: 1 | B125: 2020-03-15 | C125: 2020-04-11 | D125: B4R | E125: 340
A126: 1 | B126: 2020-03-15 | C126: 2020-04-11 | D126: B4V | E126: 2,840
A127: 1 | B127: 2020-03-15 | C127: 2020-04-11 | D127: B4Z | E127: 20
A128: 1 | B128: 2020-03-15 | C128: 2020-04-11 | D128: B5A | E128: 2,380
A129: 1 | B129: 2020-03-15 | C129: 2020-04-11 | D129: B6L | E129: 1,880
A130: 1 | B130: 2020-03-15 | C130: 2020-04-11 | D130: B8B | E130: 20
A131: 1 | B131: 2020-03-15 | C131: 2020-04-11 | D131: B9A | E131: 680
A132: 1 | B132: 2020-03-15 | C132: 2020-04-11 | D132: C0A | E132: 5,990
A133: 1 | B133: 2020-03-15 | C133: 2020-04-11 | D133: C0B | E133: 3,310
A134: 1 | B134: 2020-03-15 | C134: 2020-04-11 | D134: C0V | E134: 20
A135: 1 | B135: 2020-03-15 | C135: 2020-04-11 | D135: C1A | E135: 4,660
A136: 1 | B136: 2020-03-15 | C136: 2020-04-11 | D136: C1B | E136: 1,900
A137: 1 | B137: 2020-03-15 | C137: 2020-04-11 | D137: C1C | E137: 810
A138: 1 | B138: 2020-03-15 | C138: 2020-04-11 | D138: C1E | E138: 1,740
A139: 1 | B139: 2020-03-15 | C139: 2020-04-11 | D139: C1N | E139: 2,470
A140: 1 | B140: 2020-03-15 | C140: 2020-04-11 | D140: C1R | E140: 20
A141: 1 | B141: 2020-03-15 | C141: 2020-04-11 | D141: C2P | E141: 20
A142: 1 | B142: 2020-03-15 | C142: 2020-04-11 | D142: C3W | E142: 20
A143: 1 | B143: 2020-03-15 | C143: 2020-04-11 | D143: C8G | E143: 20
A144: 1 | B144: 2020-03-15 | C144: 2020-04-11 | D144: E0A | E144: 20
A145: 1 | B145: 2020-03-15 | C145: 2020-04-11 | D145: E0B | E145: 20
A146: 1 | B146: 2020-03-15 | C146: 2020-04-11 | D146: E1A | E146: 6,940
A147: 1 | B147: 2020-03-15 | C147: 2020-04-11 | D147: E1B | E147: 2,940
A148: 1 | B148: 2020-03-15 | C148: 2020-04-11 | D148: E1C | E148: 5,020
A149: 1 | B149: 2020-03-15 | C149: 2020-04-11 | D149: E1E | E149: 1,780
A150: 1 | B150: 2020-03-15 | C150: 2020-04-11 | D150: E1G | E150: 3,590
A151: 1 | B151: 2020-03-15 | C151: 2020-04-11 | D151: E1H | E151: 1,110
A152: 1 | B152: 2020-03-15 | C152: 2020-04-11 | D152: E1J | E152: 510
A153: 1 | B153: 2020-03-15 | C153: 2020-04-11 | D153: E1N | E153: 1,410
A154: 1 | B154: 2020-03-15 | C154: 2020-04-11 | D154: E1V | E154: 2,000
A155: 1 | B155: 2020-03-15 | C155: 2020-04-11 | D155: E1W | E155: 830
A156: 1 | B156: 2020-03-15 | C156: 2020-04-11 | D156: E1X | E156: 1,760
A157: 1 | B157: 2020-03-15 | C157: 2020-04-11 | D157: E1Z | E157: 20
A158: 1 | B158: 2020-03-15 | C158: 2020-04-11 | D158: E2A | E158: 2,320
A159: 1 | B159: 2020-03-15 | C159: 2020-04-11 | D159: E2B | E159: 20
A160: 1 | B160: 2020-03-15 | C160: 2020-04-11 | D160: E2E | E160: 2,260
A161: 1 | B161: 2020-03-15 | C161: 2020-04-11 | D161: E2G | E161: 640
A162: 1 | B162: 2020-03-15 | C162: 2020-04-11 | D162: E2H | E162: 660
A163: 1 | B163: 2020-03-15 | C163: 2020-04-11 | D163: E2J | E163: 2,700
A164: 1 | B164: 2020-03-15 | C164: 2020-04-11 | D164: E2K | E164: 2,930
A165: 1 | B165: 2020-03-15 | C165: 2020-04-11 | D165: E2L | E165: 1,860
A166: 1 | B166: 2020-03-15 | C166: 2020-04-11 | D166: E2M | E166: 2,670
A167: 1 | B167: 2020-03-15 | C167: 2020-04-11 | D167: E2N | E167: 680
A168: 1 | B168: 2020-03-15 | C168: 2020-04-11 | D168: E2P | E168: 230
A169: 1 | B169: 2020-03-15 | C169: 2020-04-11 | D169: E2S | E169: 1,030
A170: 1 | B170: 2020-03-15 | C170: 2020-04-11 | D170: E2V | E170: 1,550
A171: 1 | B171: 2020-03-15 | C171: 2020-04-11 | D171: E3A | E171: 4,370
A172: 1 | B172: 2020-03-15 | C172: 2020-04-11 | D172: E3B | E172: 5,830
A173: 1 | B173: 2020-03-15 | C173: 2020-04-11 | D173: E3C | E173: 1,410
A174: 1 | B174: 2020-03-15 | C174: 2020-04-11 | D174: E3E | E174: 640
A175: 1 | B175: 2020-03-15 | C175: 2020-04-11 | D175: E3G | E175: 1,200
A176: 1 | B176: 2020-03-15 | C176: 2020-04-11 | D176: E3H | E176: 20
A177: 1 | B177: 2020-03-15 | C177: 2020-04-11 | D177: E3J | E177: 20
A178: 1 | B178: 2020-03-15 | C178: 2020-04-11 | D178: E3K | E178: 20
A179: 1 | B179: 2020-03-15 | C179: 2020-04-11 | D179: E3L | E179: 1,250
A180: 1 | B180: 2020-03-15 | C180: 2020-04-11 | D180: E3N | E180: 1,700
A181: 1 | B181: 2020-03-15 | C181: 2020-04-11 | D181: E3V | E181: 1,670
A182: 1 | B182: 2020-03-15 | C182: 2020-04-11 | D182: E3Y | E182: 950
A183: 1 | B183: 2020-03-15 | C183: 2020-04-11 | D183: E3Z | E183: 520
A184: 1 | B184: 2020-03-15 | C184: 2020-04-11 | D184: E4A | E184: 330
A185: 1 | B185: 2020-03-15 | C185: 2020-04-11 | D185: E4B | E185: 550
A186: 1 | B186: 2020-03-15 | C186: 2020-04-11 | D186: E4C | E186: 210
A187: 1 | B187: 2020-03-15 | C187: 2020-04-11 | D187: E4E | E187: 1,310
A188: 1 | B188: 2020-03-15 | C188: 2020-04-11 | D188: E4G | E188: 360
A189: 1 | B189: 2020-03-15 | C189: 2020-04-11 | D189: E4H | E189: 550
A190: 1 | B190: 2020-03-15 | C190: 2020-04-11 | D190: E4J | E190: 780
A191: 1 | B191: 2020-03-15 | C191: 2020-04-11 | D191: E4K | E191: 700
A192: 1 | B192: 2020-03-15 | C192: 2020-04-11 | D192: E4L | E192: 970
A193: 1 | B193: 2020-03-15 | C193: 2020-04-11 | D193: E4M | E193: 250
A194: 1 | B194: 2020-03-15 | C194: 2020-04-11 | D194: E4N | E194: 480
A195: 1 | B195: 2020-03-15 | C195: 2020-04-11 | D195: E4P | E195: 2,020
A196: 1 | B196: 2020-03-15 | C196: 2020-04-11 | D196: E4R | E196: 820
A197: 1 | B197: 2020-03-15 | C197: 2020-04-11 | D197: E4S | E197: 940
A198: 1 | B198: 2020-03-15 | C198: 2020-04-11 | D198: E4T | E198: 280
A199: 1 | B199: 2020-03-15 | C199: 2020-04-11 | D199: E4V | E199: 580
A200: 1 | B200: 2020-03-15 | C200: 2020-04-11 | D200: E4W | E200: 1,400
A201: 1 | B201: 2020-03-15 | C201: 2020-04-11 | D201: E4X | E201: 300
... 11698 more rows

Sheet FSA-by-city-static
A1: City | B1: population | C1: Period 1 | D1: Period 2 | E1: Period 3 | F1: Period 4 | G1: Period 5 | H1: Period 6 | I1: Period 7 | J1: FSAs
A2: Dugald | B2: 0 | C2: 0 | D2: 0 | E2: 0 | F2: 0 | G2: 0 | H2: 0 | I2: 0 | J2: ["R5K", "R5L", "R5M", "R5N", "R5P"],
A3: Sechelt | B3: 0 | C3: 0 | D3: 0 | E3: 0 | F3: 0 | G3: 0 | H3: 0 | I3: 0 | J3: ["V7Z"],
A4: Stj Ext-Edmundston | B4: 0 | C4: 0 | D4: 0 | E4: 0 | F4: 0 | G4: 0 | H4: 0 | I4: 0 | J4: ["E0L"],
A5: Stj Ext-Woodstock | B5: 0 | C5: 0 | D5: 0 | E5: 0 | F5: 0 | G5: 0 | H5: 0 | I5: 0 | J5: ["E0J"],
A6: Waterdown | B6: 0 | C6: 0 | D6: 0 | E6: 0 | F6: 0 | G6: 0 | H6: 0 | I6: 0 | J6: ["L8B"],
A7: Whistler | B7: 0 | C7: 0 | D7: 0 | E7: 0 | F7: 0 | G7: 0 | H7: 0 | I7: 0 | J7: ["V8E"],
A8: East Gwillimbury | B8: 11,533 | C8: 4,440 | D8: 3,320 | E8: 2,860 | F8: 2,600 | G8: 2,240 | H8: 2,100 | I8: 1,840 | J8: ["L9N"],
A9: Eskasoni | B9: 3,422 | C9: 840 | D9: 800 | E9: 800 | F9: 810 | G9: 810 | H9: 790 | I9: 710 | J9: ["B1W"],
A10: Banff | B10: 7,442 | C10: 4,520 | D10: 1,400 | E10: 1,110 | F10: 860 | G10: 650 | H10: 570 | I10: 490 | J10: ["T1L"],
A11: Winnipeg Fl | B11: 7,249 | C11: 1,220 | D11: 1,160 | E11: 1,150 | F11: 1,260 | G11: 1,490 | H11: 1,570 | I11: 1,500 | J11: ["S0P"],
A12: Brampton | B12: 593,633 | C12: 166,570 | D12: 124,020 | E12: 103,530 | F12: 88,930 | G12: 74,650 | H12: 68,660 | I12: 60,070 | J12: ["L6P", "L6R", "L6S", "L6T", "L6V", "L6W", "L6X", "L6Y", "L6Z", "L7A"],
A13: Scarborough | B13: 401,529 | C13: 99,570 | D13: 74,240 | E13: 64,270 | F13: 58,390 | G13: 51,610 | H13: 48,890 | I13: 44,580 | J13: ["M1G", "M1H", "M1J", "M1K", "M1L", "M1M", "M1N", "M1P", "M1R", "M1W", "M2J"],
A14: Richmond Hill | B14: 195,020 | C14: 45,550 | D14: 36,290 | E14: 32,130 | F14: 29,240 | G14: 25,510 | H14: 24,010 | I14: 21,610 | J14: ["L4B", "L4C", "L4E", "L4S"],
A15: Ft Nelson | B15: 500 | C15: 100 | D15: 80 | E15: 70 | F15: 60 | G15: 70 | H15: 80 | I15: 80 | J15: ["X0G"],
A16: York | B16: 79,691 | C16: 19,440 | D16: 14,240 | E16: 12,470 | F16: 11,380 | G16: 10,030 | H16: 9,550 | I16: 8,810 | J16: ["M9N", "M9P", "M9R"],
A17: North York | B17: 96,121 | C17: 24,150 | D17: 17,080 | E17: 14,810 | F17: 13,480 | G17: 11,930 | H17: 11,320 | I17: 10,260 | J17: ["M4A", "M4B", "M6L", "M6M"],
A18: Unionville | B18: 278,245 | C18: 62,140 | D18: 49,510 | E18: 44,440 | F18: 40,360 | G18: 35,320 | H18: 33,560 | I18: 30,620 | J18: ["L3P", "L3R", "L3S", "L6B", "L6C", "L6E", "L6G"],
A19: Concord | B19: 15,591 | C19: 3,910 | D19: 2,790 | E19: 2,450 | F19: 2,200 | G19: 1,920 | H19: 1,740 | I19: 1,540 | J19: ["L4K"],
A20: Niagara Falls | B20: 87,131 | C20: 25,330 | D20: 14,760 | E20: 12,770 | F20: 11,650 | G20: 9,930 | H20: 9,160 | I20: 8,240 | J20: ["L2E", "L2G", "L2H", "L2J"],
A21: King City | B21: 14,863 | C21: 3,560 | D21: 2,810 | E21: 2,400 | F21: 2,090 | G21: 1,720 | H21: 1,580 | I21: 1,350 | J21: ["L7B"],
A22: Mtl (Nv-Qc) | B22: 23,550 | C22: 4,430 | D22: 4,070 | E22: 3,580 | F22: 3,260 | G22: 3,230 | H22: 3,110 | I22: 2,890 | J22: ["J0M"],
A23: Thornhill | B23: 127,883 | C23: 27,740 | D23: 22,200 | E23: 19,730 | F23: 17,850 | G23: 15,470 | H23: 14,510 | I23: 12,820 | J23: ["L3T", "L4J"],
A24: Maple | B24: 85,794 | C24: 20,790 | D24: 15,070 | E24: 12,940 | F24: 11,580 | G24: 9,700 | H24: 8,980 | I24: 7,980 | J24: ["L6A"],
A25: Willowdale | B25: 216,918 | C25: 46,880 | D25: 36,810 | E25: 32,490 | F25: 29,200 | G25: 25,720 | H25: 24,290 | I25: 22,040 | J25: ["M2H", "M2K", "M2L", "M2M", "M2N", "M2P", "M2R"],
A26: Salt Spring Island | B26: 10,561 | C26: 2,350 | D26: 1,910 | E26: 1,690 | F26: 1,430 | G26: 1,180 | H26: 1,060 | I26: 930 | J26: ["V8K"],
A27: Bradford | B27: 33,666 | C27: 8,660 | D27: 5,730 | E27: 4,850 | F27: 4,250 | G27: 3,520 | H27: 3,240 | I27: 2,800 | J27: ["L3Z"],
A28: Blackfalds | B28: 4,742 | C28: 1,290 | D28: 770 | E28: 660 | F28: 590 | G28: 490 | H28: 450 | I28: 390 | J28: ["T4M"],
A29: Aurora | B29: 55,445 | C29: 12,220 | D29: 9,360 | E29: 8,070 | F29: 7,250 | G29: 6,160 | H29: 5,770 | I29: 5,020 | J29: ["L4G"],
A30: Bonnyville | B30: 9,082 | C30: 2,120 | D30: 1,540 | E30: 1,260 | F30: 1,140 | G30: 980 | H30: 920 | I30: 810 | J30: ["T9N"],
A31: Woodbridge | B31: 122,664 | C31: 29,100 | D31: 20,230 | E31: 17,340 | F31: 15,660 | G31: 13,040 | H31: 11,960 | I31: 10,490 | J31: ["L3L", "L4H", "L4L"],
A32: Toronto | B32: 1,627,134 | C32: 353,730 | D32: 258,500 | E32: 227,980 | F32: 207,870 | G32: 182,910 | H32: 171,450 | I32: 153,300 | J32: ["M1B", "M1C", "M1E", "M1S", "M1T", "M1V", "M1X", "M3A", "M3B", "M3C", "M3H", "M3J", "M3K", "M3L", "M3M", "M3N", "M4C", "M4E", "M4G", "M4H", "M4J", "M4K", "M4L", "M4M", "M4N", "M4P", "M4R", "M4S", "M4T", "M4V", "M4W", "M4X", "M4Y", "M5A", "M5B", "M5C", "M5E", "M5G", "M5H", "M5J", "M5K", "M5L", "M5M", "M5N", "M5P", "M5R", "M5S", "M5T", "M5V", "M5W", "M5X", "M6A", "M6B", "M6C", "M6E", "M6G", "M6H", "M6J", "M6K", "M6N", "M6P", "M6R", "M6S", "M7A", "M7Y", "M9L", "M9M"],
A33: Etobicoke | B33: 310,701 | C33: 69,320 | D33: 50,460 | E33: 43,450 | F33: 39,030 | G33: 33,890 | H33: 31,700 | I33: 28,270 | J33: ["M8V", "M8W", "M8X", "M8Y", "M8Z", "M9A", "M9B", "M9C", "M9V", "M9W"],
A34: Ajax | B34: 119,671 | C34: 26,370 | D34: 19,000 | E34: 16,540 | F34: 15,040 | G34: 13,020 | H34: 12,340 | I34: 11,120 | J34: ["L1S", "L1T", "L1Z"],
A35: Rocky Mountain House | B35: 13,389 | C35: 2,640 | D35: 2,230 | E35: 1,890 | F35: 1,710 | G35: 1,540 | H35: 1,410 | I35: 1,260 | J35: ["T4T"],
A36: Squamish | B36: 11,772 | C36: 3,070 | D36: 1,910 | E36: 1,590 | F36: 1,360 | G36: 1,120 | H36: 1,040 | I36: 840 | J36: ["V8B"],
A37: H. Val-Goose Bay | B37: 13,721 | C37: 2,430 | D37: 1,950 | E37: 1,780 | F37: 1,800 | G37: 1,650 | H37: 1,630 | I37: 1,490 | J37: ["A0P"],
A38: Richmond | B38: 198,309 | C38: 41,350 | D38: 30,260 | E38: 26,940 | F38: 24,460 | G38: 21,430 | H38: 20,590 | I38: 18,610 | J38: ["V6V", "V6W", "V6X", "V6Y", "V7A", "V7B", "V7C", "V7E"],
A39: Pickering | B39: 90,429 | C39: 19,240 | D39: 14,040 | E39: 12,130 | F39: 11,020 | G39: 9,500 | H39: 8,820 | I39: 7,810 | J39: ["L1V", "L1W", "L1X", "L1Y"],
A40: Mont-Tremblant | B40: 9,687 | C40: 2,810 | D40: 1,660 | E40: 1,340 | F40: 1,050 | G40: 750 | H40: 620 | I40: 560 | J40: ["J8E"],
A41: Oshawa | B41: 159,617 | C41: 35,110 | D41: 24,150 | E41: 20,860 | F41: 19,090 | G41: 16,380 | H41: 15,420 | I41: 13,750 | J41: ["L1G", "L1H", "L1J", "L1K", "L1L"],
A42: Meadow Lake | B42: 7,798 | C42: 1,460 | D42: 1,120 | E42: 970 | F42: 970 | G42: 880 | H42: 870 | I42: 780 | J42: ["S9X"],
A43: Newmarket | B43: 86,708 | C43: 19,050 | D43: 13,450 | E43: 11,520 | F43: 10,300 | G43: 8,680 | H43: 7,990 | I43: 7,000 | J43: ["L3X", "L3Y"],
A44: Surrey | B44: 500,742 | C44: 113,280 | D44: 79,530 | E44: 67,140 | F44: 57,180 | G44: 48,050 | H44: 44,860 | I44: 38,970 | J44: ["V1M", "V3R", "V3S", "V3T", "V3V", "V3W", "V3X", "V3Z", "V4N"],
A45: Innisfil | B45: 28,567 | C45: 6,710 | D45: 4,380 | E45: 3,730 | F45: 3,290 | G45: 2,730 | H45: 2,510 | I45: 2,260 | J45: ["L9S"],
A46: Mississauga | B46: 721,581 | C46: 151,150 | D46: 109,890 | E46: 94,360 | F46: 84,900 | G46: 73,160 | H46: 68,500 | I46: 60,890 | J46: ["L4T", "L4V", "L4W", "L4X", "L4Y", "L4Z", "L5A", "L5B", "L5C", "L5E", "L5G", "L5H", "L5J", "L5K", "L5L", "L5M", "L5N", "L5P", "L5R", "L5S", "L5T", "L5V", "L5W", "M7R"],
A47: Sainte-Adele | B47: 12,919 | C47: 3,160 | D47: 2,070 | E47: 1,700 | F47: 1,410 | G47: 1,170 | H47: 1,030 | I47: 900 | J47: ["J8B"],
A48: Canmore | B48: 14,755 | C48: 4,070 | D48: 2,310 | E48: 1,920 | F48: 1,560 | G48: 1,190 | H48: 1,090 | I48: 920 | J48: ["T1W"],
A49: Caledon | B49: 66,797 | C49: 14,860 | D49: 10,660 | E49: 8,820 | F49: 7,730 | G49: 6,170 | H49: 5,630 | I49: 4,800 | J49: ["L7C", "L7E", "L7K"],
A50: Burnaby | B50: 336,284 | C50: 72,620 | D50: 49,290 | E50: 42,720 | F50: 37,900 | G50: 32,880 | H50: 31,200 | I50: 27,560 | J50: ["V5A", "V5B", "V5C", "V5G", "V5H", "V5J", "V5M", "V5P", "V5R", "V5S", "V5W", "V5X"],
A51: Edmonton | B51: 1,236,672 | C51: 249,260 | D51: 181,400 | E51: 156,160 | F51: 141,500 | G51: 124,880 | H51: 119,370 | I51: 106,180 | J51: ["T5A", "T5B", "T5C", "T5E", "T5G", "T5H", "T5J", "T5K", "T5L", "T5M", "T5N", "T5P", "T5R", "T5S", "T5T", "T5V", "T5W", "T5X", "T5Y", "T5Z", "T6A", "T6B", "T6C", "T6E", "T6G", "T6H", "T6J", "T6K", "T6L", "T6M", "T6N", "T6P", "T6R", "T6S", "T6T", "T6V", "T6W", "T6X", "T6Y", "T0A", "T0B", "T0C", "T0E", "T0G", "T0N", "T0P", "T0T", "T0V", "X0B", "X0E"],
A52: Shelburne | B52: 13,643 | C52: 3,260 | D52: 2,110 | E52: 1,740 | F52: 1,490 | G52: 1,220 | H52: 1,110 | I52: 940 | J52: ["L9V"],
A53: Stouffville | B53: 42,174 | C53: 8,680 | D53: 6,480 | E53: 5,500 | F53: 4,850 | G53: 4,060 | H53: 3,750 | I53: 3,320 | J53: ["L4A"],
A54: Drayton Valley | B54: 11,756 | C54: 2,380 | D54: 1,780 | E54: 1,480 | F54: 1,350 | G54: 1,160 | H54: 1,080 | I54: 950 | J54: ["T7A"],
A55: Saint-Hippolyte | B55: 9,113 | C55: 2,360 | D55: 1,370 | E55: 1,070 | F55: 890 | G55: 740 | H55: 670 | I55: 580 | J55: ["J8A"],
A56: Collingwood | B56: 24,766 | C56: 5,610 | D56: 3,760 | E56: 3,190 | F56: 2,700 | G56: 2,130 | H56: 1,880 | I56: 1,600 | J56: ["L9Y"],
A57: Williams Lake | B57: 22,547 | C57: 4,580 | D57: 3,260 | E57: 2,730 | F57: 2,410 | G57: 2,100 | H57: 2,050 | I57: 1,780 | J57: ["V2G", "V0L"],
A58: Nelson | B58: 16,801 | C58: 3,700 | D58: 2,450 | E58: 2,090 | F58: 1,800 | G58: 1,490 | H58: 1,360 | I58: 1,180 | J58: ["V1L"],
A59: Keswick | B59: 28,916 | C59: 6,140 | D59: 4,170 | E59: 3,520 | F59: 3,160 | G59: 2,640 | H59: 2,390 | I59: 2,080 | J59: ["L4P"],
A60: Peace River | B60: 8,007 | C60: 1,610 | D60: 1,150 | E60: 960 | F60: 830 | G60: 750 | H60: 700 | I60: 590 | J60: ["T8S"],
A61: Whitecourt | B61: 12,691 | C61: 2,350 | D61: 1,850 | E61: 1,560 | F61: 1,380 | G61: 1,220 | H61: 1,120 | I61: 950 | J61: ["T7S"],
A62: Okotoks | B62: 32,951 | C62: 6,420 | D62: 4,930 | E62: 4,140 | F62: 3,570 | G62: 2,930 | H62: 2,750 | I62: 2,330 | J62: ["T1S"],
A63: Digby | B63: 5,809 | C63: 1,000 | D63: 770 | E63: 770 | F63: 670 | G63: 560 | H63: 530 | I63: 470 | J63: ["B0V"],
A64: Montreal | B64: 1,459,331 | C64: 306,570 | D64: 200,270 | E64: 172,230 | F64: 149,800 | G64: 129,510 | H64: 118,780 | I64: 103,060 | J64: ["A0R", "H1A", "H1B", "H1C", "H1E", "H1G", "H1H", "H1J", "H1K", "H1L", "H1M", "H1N", "H1P", "H1R", "H1S", "H1T", "H1V", "H1W", "H1X", "H1Y", "H1Z", "H2A", "H2B", "H2C", "H2E", "H2G", "H2H", "H2J", "H2K", "H2L", "H2M", "H2N", "H2P", "H2R", "H2S", "H2T", "H2V", "H2W", "H2X", "H2Y", "H2Z", "H3A", "H3B", "H3C", "H3E", "H3G", "H3H", "H3J", "H3K", "H3L", "H3M", "H3N", "H3P", "H3R", "H3S", "H3T", "H3V", "H3W", "H3X", "H3Y", "H3Z", "H4A", "H4B", "H4C", "H4E", "H4J", "H4K", "H4L", "H4M", "H4N", "H4P"],
A65: Prince Albert | B65: 43,374 | C65: 7,760 | D65: 5,460 | E65: 4,770 | F65: 4,590 | G65: 4,200 | H65: 4,100 | I65: 3,790 | J65: ["S6V", "S6W", "S6X"],
A66: Saint-Lin-Laurentides | B66: 20,788 | C66: 5,330 | D66: 2,880 | E66: 2,240 | F66: 1,830 | G66: 1,660 | H66: 1,460 | I66: 1,210 | J66: ["J5M", "J5N"],
A67: Calgary | B67: 1,463,596 | C67: 277,100 | D67: 200,140 | E67: 170,870 | F67: 151,460 | G67: 131,640 | H67: 125,130 | I67: 109,810 | J67: ["T1X", "T1Y", "T1Z", "T2A", "T2B", "T2C", "T2E", "T2G", "T2H", "T2J", "T2K", "T2L", "T2M", "T2N", "T2P", "T2R", "T2S", "T2T", "T2V", "T2W", "T2X", "T2Y", "T2Z", "T3A", "T3B", "T3C", "T3E", "T3G", "T3H", "T3J", "T3K", "T3L", "T3M", "T3N", "T3P", "T3R", "T3S", "T3T", "T3Z", "T0J", "T0L", "T0M"],
A68: Vancouver | B68: 591,453 | C68: 113,810 | D68: 79,670 | E68: 69,810 | F68: 60,970 | G68: 52,980 | H68: 49,880 | I68: 43,330 | J68: ["V5K", "V5L", "V5N", "V5T", "V5V", "V5Y", "V5Z", "V6A", "V6B", "V6C", "V6E", "V6G", "V6H", "V6J", "V6K", "V6L", "V6M", "V6N", "V6P", "V6R", "V6S", "V6T", "V6Z", "V7X", "V7Y", "V0M", "V0N", "V0T", "V0X"],
A69: St Catharines | B69: 150,421 | C69: 31,130 | D69: 19,910 | E69: 17,060 | F69: 15,470 | G69: 13,160 | H69: 12,190 | I69: 10,600 | J69: ["L2M", "L2N", "L2P", "L2R", "L2S", "L2T", "L2V", "L2W"],
A70: Windsor | B70: 327,816 | C70: 73,060 | D70: 44,050 | E70: 36,440 | F70: 31,820 | G70: 27,560 | H70: 25,190 | I70: 21,940 | J70: ["J1S", "N8N", "N8P", "N8R", "N8S", "N8T", "N8V", "N8W", "N8X", "N8Y", "N9A", "N9B", "N9C", "N9E", "N9G", "N9H", "N9J", "N9K", "N0R"],
A71: Reserve Mines | B71: 1,564 | C71: 260 | D71: 200 | E71: 170 | F71: 170 | G71: 150 | H71: 150 | I71: 140 | J71: ["B1E"],
A72: New Westminster | B72: 136,773 | C72: 26,930 | D72: 18,160 | E72: 15,620 | F72: 13,780 | G72: 11,900 | H72: 11,190 | I72: 9,910 | J72: ["V3L", "V3M", "V3N", "V5E"],
A73: Tor Ext-Newmarket | B73: 69,784 | C73: 14,090 | D73: 9,710 | E73: 8,100 | F73: 7,200 | G73: 5,830 | H73: 5,260 | I73: 4,470 | J73: ["L0C", "L0E", "L0G"],
A74: Sainte-Agathe-Des-Monts | B74: 56,836 | C74: 12,450 | D74: 8,390 | E74: 6,720 | F74: 5,400 | G74: 4,270 | H74: 3,870 | I74: 3,380 | J74: ["J8C", "J0T"],
A75: Lake Country | B75: 14,614 | C75: 3,010 | D75: 2,030 | E75: 1,680 | F75: 1,430 | G75: 1,190 | H75: 1,120 | I75: 970 | J75: ["V4V"],
A76: Red Deer | B76: 125,503 | C76: 24,510 | D76: 17,090 | E76: 14,310 | F76: 12,520 | G76: 10,700 | H76: 10,090 | I76: 8,680 | J76: ["T4E", "T4N", "T4P", "T4R", "T4S"],
A77: Wasaga Beach | B77: 20,647 | C77: 4,170 | D77: 2,790 | E77: 2,370 | F77: 2,050 | G77: 1,720 | H77: 1,570 | I77: 1,420 | J77: ["L9Z"],
A78: New Waterford | B78: 9,642 | C78: 1,650 | D78: 1,190 | E78: 1,060 | F78: 1,010 | G78: 890 | H78: 880 | I78: 830 | J78: ["B1H"],
A79: The Pas | B79: 6,673 | C79: 990 | D79: 760 | E79: 700 | F79: 720 | G79: 670 | H79: 690 | I79: 660 | J79: ["R9A"],
A80: Sainte-Sophie | B80: 15,690 | C80: 4,050 | D80: 2,160 | E80: 1,660 | F80: 1,340 | G80: 1,150 | H80: 990 | I80: 810 | J80: ["J5J"],
A81: Stoney Creek | B81: 118,286 | C81: 23,350 | D81: 15,560 | E81: 13,240 | F81: 11,840 | G81: 9,900 | H81: 9,300 | I81: 8,190 | J81: ["L8E", "L8G", "L8H", "L8K"],
A82: Orillia | B82: 44,915 | C82: 9,610 | D82: 5,920 | E82: 4,920 | F82: 4,310 | G82: 3,620 | H82: 3,350 | I82: 2,960 | J82: ["L3V"],
A83: Cold Lake | B83: 18,253 | C83: 3,280 | D83: 2,330 | E83: 2,040 | F83: 1,860 | G83: 1,640 | H83: 1,570 | I83: 1,370 | J83: ["T9M"],
A84: Brooks | B84: 17,011 | C84: 2,840 | D84: 3,270 | E84: 2,060 | F84: 1,490 | G84: 1,250 | H84: 1,200 | I84: 980 | J84: ["T1R"],
A85: Airdrie | B85: 64,602 | C85: 12,690 | D85: 8,410 | E85: 7,130 | F85: 6,390 | G85: 5,310 | H85: 5,000 | I85: 4,290 | J85: ["T4A", "T4B"],
A86: Fort Erie | B86: 16,532 | C86: 3,100 | D86: 2,150 | E86: 1,870 | F86: 1,660 | G86: 1,370 | H86: 1,280 | I86: 1,160 | J86: ["L2A"],
A87: Dominion | B87: 1,867 | C87: 320 | D87: 230 | E87: 200 | F87: 190 | G87: 170 | H87: 160 | I87: 150 | J87: ["B1G"],
A88: Port Coquitlam | B88: 134,707 | C88: 24,400 | D88: 17,260 | E88: 14,980 | F88: 13,310 | G88: 11,630 | H88: 10,850 | I88: 9,440 | J88: ["V3B", "V3C", "V3E"],
A89: Laval | B89: 422,993 | C89: 90,090 | D89: 54,610 | E89: 45,740 | F89: 39,210 | G89: 32,560 | H89: 29,870 | I89: 25,970 | J89: ["H7A", "H7B", "H7C", "H7E", "H7G", "H7H", "H7J", "H7K", "H7L", "H7M", "H7N", "H7P", "H7R", "H7S", "H7T", "H7V", "H7W", "H7X", "H7Y"],
A90: Alliston | B90: 21,313 | C90: 4,620 | D90: 2,780 | E90: 2,250 | F90: 1,990 | G90: 1,630 | H90: 1,480 | I90: 1,260 | J90: ["L9R"],
A91: Milton | B91: 103,839 | C91: 18,870 | D91: 13,360 | E91: 11,420 | F91: 10,450 | G91: 8,730 | H91: 8,070 | I91: 7,020 | J91: ["L9E", "L9T"],
A92: Bromont | B92: 9,052 | C92: 2,000 | D92: 1,340 | E92: 1,050 | F92: 820 | G92: 640 | H92: 530 | I92: 410 | J92: ["J2L"],
A93: Nisku | B93: 52,425 | C93: 9,830 | D93: 6,720 | E93: 5,710 | F93: 5,140 | G93: 4,290 | H93: 3,990 | I93: 3,380 | J93: ["T4X", "T9E"],
A94: Grande Prairie | B94: 156,982 | C94: 27,340 | D94: 20,280 | E94: 16,770 | F94: 15,330 | G94: 13,440 | H94: 12,780 | I94: 11,010 | J94: ["T8V", "T8W", "T8X", "T0H"],
A95: Lloydminster | B95: 35,653 | C95: 7,040 | D95: 4,510 | E95: 3,780 | F95: 3,360 | G95: 2,830 | H95: 2,650 | I95: 2,260 | J95: ["S9V", "T9V"],
A96: Mirabel | B96: 50,503 | C96: 12,910 | D96: 6,700 | E96: 5,240 | F96: 4,110 | G96: 3,370 | H96: 2,790 | I96: 2,300 | J96: ["J7J", "J7N"],
A97: Hawkesbury | B97: 12,538 | C97: 2,300 | D97: 1,660 | E97: 1,390 | F97: 1,270 | G97: 1,030 | H97: 860 | I97: 760 | J97: ["K6A"],
A98: Welland | B98: 54,650 | C98: 10,340 | D98: 6,830 | E98: 5,790 | F98: 5,370 | G98: 4,480 | H98: 4,000 | I98: 3,560 | J98: ["L3B", "L3C"],
A99: North Vancouver | B99: 186,873 | C99: 33,070 | D99: 23,960 | E99: 20,530 | F99: 17,870 | G99: 15,660 | H99: 14,440 | I99: 12,500 | J99: ["V7G", "V7H", "V7J", "V7K", "V7L", "V7M", "V7N", "V7P", "V7R", "V7S", "V7T", "V7V", "V7W"],
A100: Cochrane | B100: 30,566 | C100: 5,860 | D100: 4,020 | E100: 3,360 | F100: 3,000 | G100: 2,360 | H100: 2,200 | I100: 1,750 | J100: ["T4C"],
A101: Penticton | B101: 37,469 | C101: 7,030 | D101: 4,750 | E101: 4,040 | F101: 3,460 | G101: 2,980 | H101: 2,830 | I101: 2,530 | J101: ["V2A"],
A102: Cornwall | B102: 51,746 | C102: 8,720 | D102: 6,400 | E102: 5,570 | F102: 5,160 | G102: 4,550 | H102: 4,090 | I102: 3,650 | J102: ["K6H", "K6J", "K6K"],
A103: Sydney | B103: 41,551 | C103: 7,390 | D103: 5,120 | E103: 4,380 | F103: 3,940 | G103: 3,400 | H103: 3,350 | I103: 3,000 | J103: ["B1L", "B1M", "B1N", "B1P", "B1R", "B1S", "B0C"],
A104: Saskatoon | B104: 507,408 | C104: 82,330 | D104: 60,540 | E104: 52,200 | F104: 49,850 | G104: 45,000 | H104: 43,890 | I104: 39,500 | J104: ["S7A", "S7B", "S7C", "S7H", "S7J", "S7K", "S7L", "S7M", "S7N", "S7P", "S7R", "S7S", "S7T", "S7V", "S7W", "S0E", "S0J", "S0K", "S0L", "S0M"],
A105: Huntsville | B105: 16,271 | C105: 3,240 | D105: 2,250 | E105: 1,810 | F105: 1,490 | G105: 1,170 | H105: 1,060 | I105: 920 | J105: ["P1H"],
A106: Coquitlam | B106: 108,638 | C106: 19,270 | D106: 13,440 | E106: 11,680 | F106: 10,350 | G106: 8,930 | H106: 8,410 | I106: 7,320 | J106: ["V3H", "V3J", "V3K"],
A107: Barrie | B107: 298,439 | C107: 58,840 | D107: 38,390 | E107: 31,830 | F107: 27,660 | G107: 22,580 | H107: 20,710 | I107: 17,980 | J107: ["L4M", "L4N", "L9J", "L9X", "L0K", "L0L", "L0M", "P0A", "P0B", "P0C", "P0E", "P0G"],
A108: North Battleford | B108: 15,547 | C108: 2,550 | D108: 1,840 | E108: 1,600 | F108: 1,510 | G108: 1,340 | H108: 1,300 | I108: 1,180 | J108: ["S9A"],
A109: Wallaceburg | B109: 13,975 | C109: 2,550 | D109: 1,650 | E109: 1,400 | F109: 1,310 | G109: 1,150 | H109: 1,100 | I109: 1,010 | J109: ["N8A"],
A110: Oakville | B110: 193,830 | C110: 32,690 | D110: 24,900 | E110: 21,240 | F110: 18,820 | G110: 15,830 | H110: 14,640 | I110: 12,660 | J110: ["L6H", "L6J", "L6K", "L6L", "L6M"],
A111: Whitby | B111: 127,216 | C111: 22,590 | D111: 15,920 | E111: 13,510 | F111: 12,290 | G111: 10,290 | H111: 9,530 | I111: 8,200 | J111: ["L1M", "L1N", "L1P", "L1R"],
A112: Verdun | B112: 48,756 | C112: 9,670 | D112: 5,820 | E112: 5,030 | F112: 4,440 | G112: 3,870 | H112: 3,530 | I112: 3,010 | J112: ["H4G", "H4H"],
A113: Orangeville | B113: 44,867 | C113: 8,990 | D113: 5,690 | E113: 4,670 | F113: 4,210 | G113: 3,310 | H113: 2,990 | I113: 2,520 | J113: ["L9W"],
A114: Duncan | B114: 34,378 | C114: 6,370 | D114: 4,230 | E114: 3,560 | F114: 3,140 | G114: 2,730 | H114: 2,590 | I114: 2,180 | J114: ["V9L"],
A115: Brossard | B115: 129,209 | C115: 24,940 | D115: 16,110 | E115: 13,640 | F115: 11,590 | G115: 9,820 | H115: 9,020 | I115: 7,880 | J115: ["J4P", "J4R", "J4S", "J4V", "J4W", "J4X", "J4Y", "J4Z"],
A116: Moores Mills | B116: 1,698 | C116: 280 | D116: 210 | E116: 180 | F116: 160 | G116: 130 | H116: 140 | I116: 120 | J116: ["E5A"],
A117: Sooke | B117: 17,456 | C117: 3,300 | D117: 2,130 | E117: 1,840 | F117: 1,610 | G117: 1,350 | H117: 1,230 | I117: 1,060 | J117: ["V9Z"],
A118: Campbell River | B118: 44,773 | C118: 8,180 | D118: 5,520 | E118: 4,690 | F118: 4,080 | G118: 3,490 | H118: 3,300 | I118: 2,850 | J118: ["V9H", "V9W", "V0P"],
A119: Port Stanley | B119: 2,795 | C119: 540 | D119: 370 | E119: 290 | F119: 250 | G119: 200 | H119: 190 | I119: 160 | J119: ["N5L"],
A120: Nanaimo | B120: 99,354 | C120: 18,950 | D120: 11,960 | E120: 10,290 | F120: 8,950 | G120: 7,610 | H120: 7,090 | I120: 6,190 | J120: ["V9R", "V9S", "V9T", "V9V", "V9X"],
A121: Sept-Iles | B121: 43,846 | C121: 7,180 | D121: 5,400 | E121: 4,520 | F121: 3,990 | G121: 3,630 | H121: 3,440 | I121: 3,150 | J121: ["G4R", "G4S", "G0G"],
A122: Midland | B122: 18,153 | C122: 3,410 | D122: 2,220 | E122: 1,850 | F122: 1,650 | G122: 1,380 | H122: 1,280 | I122: 1,140 | J122: ["L4R"],
A123: Delta | B123: 102,913 | C123: 18,480 | D123: 12,890 | E123: 10,830 | F123: 9,590 | G123: 7,900 | H123: 7,350 | I123: 6,250 | J123: ["V4C", "V4E", "V4G", "V4K", "V4L", "V4M"],
A124: Goulds | B124: 6,142 | C124: 1,110 | D124: 730 | E124: 630 | F124: 590 | G124: 460 | H124: 450 | I124: 400 | J124: ["A1S"],
A125: Edson | B125: 13,989 | C125: 2,250 | D125: 1,840 | E125: 1,530 | F125: 1,320 | G125: 1,120 | H125: 1,030 | I125: 860 | J125: ["T7E"],
A126: Port Alberni | B126: 25,269 | C126: 4,360 | D126: 3,040 | E126: 2,620 | F126: 2,300 | G126: 2,040 | H126: 1,900 | I126: 1,690 | J126: ["V9Y"],
A127: Fort Mcmurray | B127: 69,667 | C127: 13,180 | D127: 9,030 | E127: 6,880 | F127: 6,030 | G127: 5,220 | H127: 4,850 | I127: 4,250 | J127: ["T9H", "T9J", "T9K"],
A128: Glace Bay | B128: 15,937 | C128: 2,460 | D128: 1,800 | E128: 1,590 | F128: 1,480 | G128: 1,340 | H128: 1,370 | I128: 1,260 | J128: ["B1A"],
A129: Kelowna | B129: 227,083 | C129: 42,460 | D129: 28,680 | E129: 24,020 | F129: 19,940 | G129: 16,790 | H129: 15,530 | I129: 13,470 | J129: ["V1P", "V1V", "V1W", "V1X", "V1Y", "V1Z", "V4T", "V0H"],
A130: Yellowknife | B130: 20,054 | C130: 3,200 | D130: 2,410 | E130: 2,050 | F130: 1,820 | G130: 1,660 | H130: 1,580 | I130: 1,460 | J130: ["X1A"],
A131: Saint-Jerome | B131: 135,913 | C131: 29,330 | D131: 17,320 | E131: 13,860 | F131: 11,090 | G131: 9,270 | H131: 8,120 | I131: 7,020 | J131: ["J5L", "J7Y", "J7Z", "J0R", "J0V"],
A132: Hinton | B132: 10,575 | C132: 1,920 | D132: 1,390 | E132: 1,080 | F132: 950 | G132: 770 | H132: 730 | I132: 630 | J132: ["T7V"],
A133: Morinville | B133: 15,088 | C133: 2,570 | D133: 1,830 | E133: 1,540 | F133: 1,410 | G133: 1,200 | H133: 1,130 | I133: 970 | J133: ["T8R"],
A134: Hamilton | B134: 572,392 | C134: 101,330 | D134: 69,930 | E134: 58,830 | F134: 52,900 | G134: 44,030 | H134: 40,560 | I134: 35,110 | J134: ["L8J", "L8L", "L8M", "L8N", "L8P", "L8R", "L8S", "L8T", "L8V", "L8W", "L9A", "L9B", "L9C", "L9G", "L9H", "L9K", "L0R", "L0S", "N0A", "N0E"],
A135: North Sydney | B135: 14,328 | C135: 2,190 | D135: 1,600 | E135: 1,440 | F135: 1,320 | G135: 1,240 | H135: 1,180 | I135: 1,090 | J135: ["B1V", "B2A"],
A136: Brantford | B136: 119,246 | C136: 22,180 | D136: 14,220 | E136: 12,030 | F136: 10,750 | G136: 8,950 | H136: 8,250 | I136: 7,090 | J136: ["N3L", "N3P", "N3R", "N3S", "N3T", "N3V"],
A137: Peterborough | B137: 92,163 | C137: 16,770 | D137: 11,110 | E137: 9,400 | F137: 8,360 | G137: 6,850 | H137: 6,340 | I137: 5,520 | J137: ["K9H", "K9J", "K9K", "K9L"],
A138: Mission | B138: 40,860 | C138: 7,090 | D138: 4,840 | E138: 4,160 | F138: 3,770 | G138: 3,160 | H138: 2,940 | I138: 2,530 | J138: ["V2V", "V4S"],
A139: Spruce Grove | B139: 44,071 | C139: 7,570 | D139: 5,340 | E139: 4,370 | F139: 3,970 | G139: 3,410 | H139: 3,200 | I139: 2,770 | J139: ["T7X"],
A140: Lachute | B140: 13,810 | C140: 2,620 | D140: 1,620 | E140: 1,340 | F140: 1,150 | G140: 1,040 | H140: 980 | I140: 830 | J140: ["J8H"],
A141: Belleville | B141: 51,169 | C141: 9,300 | D141: 6,140 | E141: 5,100 | F141: 4,590 | G141: 3,810 | H141: 3,520 | I141: 3,030 | J141: ["K8N", "K8P", "K8R"],
A142: Saint-Colomban | B142: 16,019 | C142: 3,800 | D142: 2,120 | E142: 1,540 | F142: 1,200 | G142: 970 | H142: 810 | I142: 670 | J142: ["J5K"],
A143: Brownsburg-Chatham | B143: 7,849 | C143: 1,520 | D143: 950 | E143: 790 | F143: 670 | G143: 550 | H143: 510 | I143: 430 | J143: ["J8G"],
A144: Powell River | B144: 18,135 | C144: 2,790 | D144: 2,120 | E144: 1,840 | F144: 1,640 | G144: 1,420 | H144: 1,390 | I144: 1,270 | J144: ["V8A"],
A145: Fort St. John | B145: 23,782 | C145: 4,400 | D145: 2,900 | E145: 2,360 | F145: 2,040 | G145: 1,700 | H145: 1,530 | I145: 1,310 | J145: ["V1J"],
A146: Boisbriand | B146: 142,671 | C146: 30,210 | D146: 17,730 | E146: 14,330 | F146: 11,570 | G146: 9,160 | H146: 7,900 | I146: 6,500 | J146: ["J6Z", "J7A", "J7B", "J7C", "J7E", "J7G", "J7H"],
A147: Halifax | B147: 224,234 | C147: 38,390 | D147: 26,270 | E147: 22,850 | F147: 19,840 | G147: 16,610 | H147: 15,540 | I147: 13,580 | J147: ["B3H", "B3J", "B3K", "B3L", "B3M", "B3N", "B3P", "B3R", "B3S", "B3V", "B0J", "B0N"],
A148: Abbotsford | B148: 141,682 | C148: 24,590 | D148: 17,110 | E148: 14,460 | F148: 12,400 | G148: 10,260 | H148: 9,570 | I148: 8,290 | J148: ["V2S", "V2T", "V3G", "V4X"],
A149: Ponoka | B149: 11,373 | C149: 1,740 | D149: 1,350 | E149: 1,170 | F149: 1,020 | G149: 920 | H149: 840 | I149: 720 | J149: ["T4J"],
A150: Wetaskiwin | B150: 15,660 | C150: 2,400 | D150: 1,800 | E150: 1,570 | F150: 1,410 | G150: 1,260 | H150: 1,200 | I150: 1,040 | J150: ["T9A"],
A151: Sydney Area | B151: 10,855 | C151: 1,570 | D151: 1,170 | E151: 1,050 | F151: 970 | G151: 950 | H151: 880 | I151: 810 | J151: ["B1J", "B1K", "B1X", "B1Y", "B2E", "B2J"],
A152: Quesnel | B152: 22,667 | C152: 4,050 | D152: 2,710 | E152: 2,140 | F152: 1,890 | G152: 1,700 | H152: 1,590 | I152: 1,370 | J152: ["V2J"],
A153: Maniwaki | B153: 7,769 | C153: 1,400 | D153: 920 | E153: 750 | F153: 660 | G153: 560 | H153: 520 | I153: 470 | J153: ["J9E"],
A154: Bowmanville | B154: 82,625 | C154: 14,740 | D154: 9,590 | E154: 8,050 | F154: 7,560 | G154: 6,020 | H154: 5,440 | I154: 4,730 | J154: ["L1B", "L1C", "L1E"],
A155: Gananoque | B155: 8,297 | C155: 1,360 | D155: 1,000 | E155: 860 | F155: 760 | G155: 640 | H155: 540 | I155: 470 | J155: ["K7G"],
A156: Kamloops | B156: 208,090 | C156: 38,280 | D156: 24,570 | E156: 20,370 | F156: 17,450 | G156: 14,750 | H156: 13,710 | I156: 11,720 | J156: ["V1S", "V2B", "V2C", "V2E", "V2H", "V0A", "V0E", "V0K"],
A157: Whitehorse | B157: 28,229 | C157: 4,660 | D157: 3,380 | E157: 2,800 | F157: 2,450 | G157: 2,110 | H157: 1,970 | I157: 1,700 | J157: ["V0W", "Y1A"],
A158: Castlegar | B158: 38,593 | C158: 6,520 | D158: 4,590 | E158: 3,860 | F158: 3,370 | G158: 2,850 | H158: 2,610 | I158: 2,260 | J158: ["V1N", "V0G"],
A159: Miramichi Area | B159: 18,989 | C159: 2,670 | D159: 2,060 | E159: 1,770 | F159: 1,600 | G159: 1,610 | H159: 1,550 | I159: 1,560 | J159: ["E9A", "E9B", "E9C", "E9E", "E9G", "E9H"],
A160: Saint-Hubert | B160: 218,257 | C160: 42,550 | D160: 25,470 | E160: 21,130 | F160: 17,670 | G160: 15,040 | H160: 13,450 | I160: 11,500 | J160: ["J3Y", "J3Z", "J4G", "J4H", "J4J", "J4K", "J4L", "J4M", "J4N", "J4T"],
A161: Ottawa | B161: 521,906 | C161: 84,890 | D161: 60,420 | E161: 52,050 | F161: 46,650 | G161: 39,240 | H161: 36,030 | I161: 31,560 | J161: ["K1A", "K1B", "K1G", "K1H", "K1J", "K1K", "K1L", "K1M", "K1N", "K1P", "K1R", "K1S", "K1T", "K1V", "K1X", "K1Y", "K1Z", "K2A", "K2B", "K2P", "K0A", "L0V"],
A162: Langley | B162: 112,582 | C162: 19,700 | D162: 12,800 | E162: 11,010 | F162: 9,720 | G162: 8,190 | H162: 7,590 | I162: 6,540 | J162: ["V2Y", "V2Z", "V3A", "V4W"],
A163: Farnham | B163: 8,909 | C163: 1,910 | D163: 1,070 | E163: 850 | F163: 640 | G163: 570 | H163: 500 | I163: 430 | J163: ["J2N"],
A164: Stony Plain | B164: 32,905 | C164: 5,540 | D164: 3,970 | E164: 3,290 | F164: 2,900 | G164: 2,350 | H164: 2,150 | I164: 1,820 | J164: ["T7Y", "T7Z"],
A165: L'Epiphanie | B165: 8,693 | C165: 1,830 | D165: 1,050 | E165: 790 | F165: 630 | G165: 570 | H165: 480 | I165: 400 | J165: ["J5X"],
A166: Lindsay | B166: 27,760 | C166: 4,800 | D166: 3,170 | E166: 2,650 | F166: 2,350 | G166: 1,940 | H166: 1,830 | I166: 1,610 | J166: ["K9V"],
A167: White Rock | B167: 68,566 | C167: 10,330 | D167: 7,860 | E167: 6,820 | F167: 6,010 | G167: 5,170 | H167: 4,860 | I167: 4,200 | J167: ["V4A", "V4B", "V4P"],
A168: Nepean | B168: 192,750 | C168: 31,480 | D168: 22,120 | E168: 18,880 | F168: 16,820 | G168: 13,840 | H168: 12,770 | I168: 11,190 | J168: ["K2C", "K2E", "K2G", "K2H", "K2J", "K2R"],
A169: Terrebonne | B169: 158,214 | C169: 33,570 | D169: 18,580 | E169: 14,780 | F169: 11,830 | G169: 9,890 | H169: 8,300 | I169: 6,860 | J169: ["J6V", "J6W", "J6X", "J6Y", "J7K", "J7L", "J7M"],
A170: Kedgwick | B170: 2,333 | C170: 310 | D170: 280 | E170: 220 | F170: 200 | G170: 170 | H170: 170 | I170: 180 | J170: ["E8B"],
A171: Iona | B171: 290 | C171: 40 | D171: 30 | E171: 30 | F171: 30 | G171: 20 | H171: 20 | I171: 20 | J171: ["B2C"],
A172: Stoneham-Et-Tewkesbury | B172: 8,977 | C172: 1,980 | D172: 1,110 | E172: 810 | F172: 630 | G172: 540 | H172: 440 | I172: 360 | J172: ["G3C"],
A173: High River | B173: 15,593 | C173: 2,440 | D173: 2,110 | E173: 1,520 | F173: 1,260 | G173: 1,050 | H173: 970 | I173: 840 | J173: ["T1V"],
A174: Stratford | B174: 33,734 | C174: 6,970 | D174: 3,720 | E174: 3,070 | F174: 2,640 | G174: 2,100 | H174: 1,910 | I174: 1,630 | J174: ["N4Z", "N5A"],
A175: Bracebridge | B175: 16,548 | C175: 3,010 | D175: 2,050 | E175: 1,640 | F175: 1,320 | G175: 1,050 | H175: 940 | I175: 800 | J175: ["P1L"],
A176: Port Colborne | B176: 18,226 | C176: 3,060 | D176: 2,060 | E176: 1,760 | F176: 1,620 | G176: 1,260 | H176: 1,140 | I176: 1,000 | J176: ["L3K"],
A177: Dartmouth | B177: 183,848 | C177: 30,730 | D177: 20,620 | E177: 17,840 | F177: 15,420 | G177: 12,770 | H177: 11,940 | I177: 10,490 | J177: ["B2V", "B2W", "B2X", "B2Y", "B2Z", "B3A", "B3B", "B3G", "B4A", "B4B", "B4C", "B4E", "B4G"],
A178: London | B178: 622,400 | C178: 108,990 | D178: 71,100 | E178: 59,110 | F178: 51,650 | G178: 42,280 | H178: 38,770 | I178: 33,500 | J178: ["N5V", "N5W", "N5X", "N5Y", "N5Z", "N6A", "N6B", "N6C", "N6E", "N6G", "N6H", "N6J", "N6K", "N6L", "N6M", "N6N", "N6P", "N0J", "N0L", "N0M", "N0N", "N0P"],
A179: Guelph | B179: 139,116 | C179: 26,130 | D179: 15,770 | E179: 12,770 | F179: 11,220 | G179: 9,190 | H179: 8,390 | I179: 7,080 | J179: ["N1C", "N1E", "N1G", "N1H", "N1K", "N1L"],
A180: Sarnia | B180: 69,132 | C180: 12,250 | D180: 7,520 | E180: 6,340 | F180: 5,750 | G180: 4,840 | H180: 4,410 | I180: 3,850 | J180: ["N7S", "N7T", "N7V", "N7W", "N7X"],
A181: St Martins | B181: 1,446 | C181: 220 | D181: 160 | E181: 140 | F181: 130 | G181: 100 | H181: 100 | I181: 90 | J181: ["E5R"],
A182: Victoria | B182: 377,799 | C182: 66,200 | D182: 42,470 | E182: 35,990 | F182: 30,770 | G182: 26,030 | H182: 23,850 | I182: 20,200 | J182: ["V8N", "V8P", "V8R", "V8S", "V8T", "V8V", "V8W", "V8X", "V8Y", "V8Z", "V9A", "V9B", "V9C", "V9E", "V0R", "V0S"],
A183: Lavaltrie | B183: 13,657 | C183: 2,980 | D183: 1,610 | E183: 1,210 | F183: 970 | G183: 830 | H183: 700 | I183: 570 | J183: ["J5T"],
A184: Vernon | B184: 62,819 | C184: 11,060 | D184: 7,080 | E184: 5,860 | F184: 5,000 | G184: 4,250 | H184: 3,930 | I184: 3,460 | J184: ["V1B", "V1H", "V1T"],
A185: Medicine Hat | B185: 67,569 | C185: 11,430 | D185: 7,620 | E185: 6,250 | F185: 5,490 | G185: 4,720 | H185: 4,430 | I185: 3,760 | J185: ["T1A", "T1B", "T1C"],
A186: Sault Ste. Marie | B186: 86,758 | C186: 13,860 | D186: 9,540 | E186: 8,040 | F186: 7,320 | G186: 6,250 | H186: 5,890 | I186: 5,210 | J186: ["P6A", "P6B", "P6C", "P0S"],
A187: Maple Ridge | B187: 101,112 | C187: 16,950 | D187: 11,100 | E187: 9,490 | F187: 8,490 | G187: 7,080 | H187: 6,620 | I187: 5,630 | J187: ["V2W", "V2X", "V3Y", "V4R"],
A188: Penetanguishene | B188: 14,825 | C188: 2,450 | D188: 1,680 | E188: 1,420 | F188: 1,200 | G188: 1,040 | H188: 940 | I188: 830 | J188: ["L9M"],
A189: Devon | B189: 7,159 | C189: 1,140 | D189: 780 | E189: 660 | F189: 600 | G189: 510 | H189: 490 | I189: 430 | J189: ["T9G"],
A190: Parry Sound | B190: 12,990 | C190: 2,110 | D190: 1,570 | E190: 1,230 | F190: 1,050 | G190: 890 | H190: 800 | I190: 710 | J190: ["P2A"],
A191: Uxbridge | B191: 16,814 | C191: 2,700 | D191: 2,010 | E191: 1,600 | F191: 1,420 | G191: 1,170 | H191: 1,050 | I191: 860 | J191: ["L9P"],
A192: Winnipeg | B192: 1,099,993 | C192: 158,630 | D192: 116,640 | E192: 100,410 | F192: 94,030 | G192: 83,670 | H192: 79,980 | I192: 71,870 | J192: ["P0Y", "R1C", "R2C", "R2E", "R2G", "R2H", "R2J", "R2K", "R2L", "R2M", "R2N", "R2P", "R2R", "R2V", "R2W", "R2X", "R2Y", "R3A", "R3B", "R3C", "R3E", "R3G", "R3H", "R3J", "R3K", "R3L", "R3M", "R3N", "R3P", "R3R", "R3S", "R3T", "R3V", "R3W", "R3X", "R3Y", "R4A", "R4G", "R4H", "R4J", "R4K", "R4L", "R5R", "R5T", "R0A", "R0B", "R0C", "R0E", "R0G", "R0H", "R0J", "R0K", "R0L", "R0M", "X0C"],
A193: Prince Rupert | B193: 14,308 | C193: 2,230 | D193: 1,530 | E193: 1,320 | F193: 1,240 | G193: 1,040 | H193: 950 | I193: 840 | J193: ["V8J", "V0V"],
A194: Joliette | B194: 183,004 | C194: 35,420 | D194: 21,000 | E194: 16,730 | F194: 13,540 | G194: 11,530 | H194: 10,100 | I194: 8,670 | J194: ["J6E", "J0K"],
A195: Pointe-Claire | B195: 81,234 | C195: 14,690 | D195: 8,980 | E195: 7,460 | F195: 6,360 | G195: 5,320 | H195: 4,820 | I195: 4,170 | J195: ["H4S", "H4Y", "H8T", "H9G", "H9P", "H9R", "H9S"],
A196: St. John's | B196: 190,682 | C196: 29,310 | D196: 20,690 | E196: 18,060 | F196: 15,870 | G196: 13,070 | H196: 12,870 | I196: 11,660 | J196: ["A1A", "A1B", "A1C", "A1E", "A1G", "A1H", "A1N", "A0A", "A0B"],
A197: Fort Saskatchewan | B197: 26,423 | C197: 4,290 | D197: 2,940 | E197: 2,430 | F197: 2,220 | G197: 1,770 | H197: 1,720 | I197: 1,450 | J197: ["T8L"],
A198: Smiths Falls | B198: 16,626 | C198: 2,540 | D198: 1,830 | E198: 1,530 | F198: 1,400 | G198: 1,190 | H198: 1,090 | I198: 1,000 | J198: ["K7A"],
A199: Thompson | B199: 13,848 | C199: 1,600 | D199: 1,330 | E199: 1,230 | F199: 1,250 | G199: 1,180 | H199: 1,180 | I199: 1,040 | J199: ["R8N"],
A200: Gravenhurst | B200: 10,393 | C200: 1,750 | D200: 1,180 | E200: 990 | F200: 830 | G200: 690 | H200: 620 | I200: 550 | J200: ["P1P"],
... 289 more rows

Sheet FSA-by-city-working
A1: City | B1: population | C1: Period 1 | D1: Period 2 | E1: Period 3 | F1: Period 4 | G1: Period 5 | H1: Period 6 | I1: Period 7 | J1: FSAs | K1: Average-CERB-access | L1: per-cent-of- residents-applying-for-CERB | M1: per cent change period 1 to 2 | N1: per cent change period 2 to 3 | O1: percent change period 3 to 4 | P1: per cent change period 4 to 5 | Q1: per cent change period 5 to 6 | R1: per cent change period 6 to 7
A2: Winkler | B2: 20,229 | C2: 1,620 | D2: 1,050 | E2: 780 | F2: 700 | G2: 510 | H2: 430 | I2: 330 | J2: ["R6W"], | K2: =AVERAGE(C2:I2) -> 774 | L2: =(K2/B2)*100 -> 3.83 | M2: =(D2-C2)/C2 -> -35% | N2: -26% | O2: -10% | P2: -27% | Q2: -16% | R2: -23%
A3: Labrador City | B3: 7,288 | C3: 670 | D3: 430 | E3: 320 | F3: 270 | G3: 200 | H3: 200 | I3: 170 | J3: ["A2V"], | K3: 323 | L3: 4.43 | M3: -36% | N3: -26% | O3: -16% | P3: -26% | Q3: 0% | R3: -15%
A4: Reg Ext-Swift Current | B4: 21,447 | C4: 1,710 | D4: 1,290 | E4: 1,040 | F4: 950 | G4: 740 | H4: 700 | I4: 610 | J4: ["S0N"], | K4: 1,006 | L4: 4.69 | M4: -25% | N4: -19% | O4: -9% | P4: -22% | Q4: -5% | R4: -13%
A5: Elmira | B5: 12,418 | C5: 1,350 | D5: 810 | E5: 640 | F5: 540 | G5: 390 | H5: 350 | I5: 280 | J5: ["N3B"], | K5: 623 | L5: 5.02 | M5: -40% | N5: -21% | O5: -16% | P5: -28% | Q5: -10% | R5: -20%
A6: Petawawa | B6: 15,205 | C6: 1,320 | D6: 940 | E6: 840 | F6: 770 | G6: 560 | H6: 500 | I6: 430 | J6: ["K8H"], | K6: 766 | L6: 5.04 | M6: -29% | N6: -11% | O6: -8% | P6: -27% | Q6: -11% | R6: -14%
A7: Port-Aux-Basques | B7: 6,200 | C7: 510 | D7: 380 | E7: 290 | F7: 270 | G7: 260 | H7: 270 | I7: 250 | J7: ["A0M"], | K7: 319 | L7: 5.14 | M7: -25% | N7: -24% | O7: -7% | P7: -4% | Q7: 4% | R7: -7%
A8: Ste Anne | B8: 5,839 | C8: 550 | D8: 360 | E8: 290 | F8: 290 | G8: 240 | H8: 230 | I8: 180 | J8: ["R5H"], | K8: 306 | L8: 5.24 | M8: -35% | N8: -19% | O8: 0% | P8: -17% | Q8: -4% | R8: -22%
A9: Morden | B9: 10,229 | C9: 1,070 | D9: 760 | E9: 560 | F9: 480 | G9: 360 | H9: 320 | I9: 240 | J9: ["R6M"], | K9: 541 | L9: 5.29 | M9: -29% | N9: -26% | O9: -14% | P9: -25% | Q9: -11% | R9: -25%
A10: Kitimat | B10: 8,131 | C10: 890 | D10: 530 | E10: 430 | F10: 380 | G10: 310 | H10: 270 | I10: 230 | J10: ["V8C"], | K10: 434 | L10: 5.34 | M10: -40% | N10: -19% | O10: -12% | P10: -18% | Q10: -13% | R10: -15%
A11: Port-Cartier | B11: 6,294 | C11: 680 | D11: 440 | E11: 340 | F11: 300 | G11: 260 | H11: 230 | I11: 180 | J11: ["G5B"], | K11: 347 | L11: 5.52 | M11: -35% | N11: -23% | O11: -12% | P11: -13% | Q11: -12% | R11: -22%
A12: Dryden | B12: 46,313 | C12: 3,850 | D12: 2,950 | E12: 2,570 | F12: 2,530 | G12: 2,190 | H12: 2,040 | I12: 1,820 | J12: ["P8N", "P0V", "P0W", "P0X"], | K12: 2,564 | L12: 5.54 | M12: -23% | N12: -13% | O12: -2% | P12: -13% | Q12: -7% | R12: -11%
A13: Matane | B13: 14,326 | C13: 1,660 | D13: 1,020 | E13: 820 | F13: 640 | G13: 560 | H13: 470 | I13: 420 | J13: ["G4W"], | K13: 799 | L13: 5.57 | M13: -39% | N13: -20% | O13: -22% | P13: -13% | Q13: -16% | R13: -11%
A14: Amqui | B14: 6,221 | C14: 780 | D14: 470 | E14: 370 | F14: 260 | G14: 210 | H14: 190 | I14: 160 | J14: ["G5J"], | K14: 349 | L14: 5.60 | M14: -40% | N14: -21% | O14: -30% | P14: -19% | Q14: -10% | R14: -16%
A15: Coldbrook | B15: 2,985 | C15: 340 | D15: 220 | E15: 180 | F15: 150 | G15: 110 | H15: 100 | I15: 80 | J15: ["B4R"], | K15: 169 | L15: 5.65 | M15: -35% | N15: -18% | O15: -17% | P15: -27% | Q15: -9% | R15: -20%
A16: Steinbach | B16: 21,738 | C16: 2,230 | D16: 1,690 | E16: 1,300 | F16: 1,080 | G16: 870 | H16: 840 | I16: 690 | J16: ["R5G", "R5J"], | K16: 1,243 | L16: 5.72 | M16: -24% | N16: -23% | O16: -17% | P16: -19% | Q16: -3% | R16: -18%
A17: Ville-Marie | B17: 3,462 | C17: 490 | D17: 280 | E17: 190 | F17: 160 | G17: 120 | H17: 90 | I17: 70 | J17: ["J9V"], | K17: 200 | L17: 5.78 | M17: -43% | N17: -32% | O17: -16% | P17: -25% | Q17: -25% | R17: -22%
A18: New Hamburg | B18: 16,123 | C18: 1,950 | D18: 1,210 | E18: 980 | F18: 830 | G18: 620 | H18: 540 | I18: 450 | J18: ["N3A"], | K18: 940 | L18: 5.83 | M18: -38% | N18: -19% | O18: -15% | P18: -25% | Q18: -13% | R18: -17%
A19: Normandin | B19: 5,286 | C19: 760 | D19: 460 | E19: 300 | F19: 220 | G19: 170 | H19: 130 | I19: 120 | J19: ["G8M"], | K19: 309 | L19: 5.84 | M19: -39% | N19: -35% | O19: -27% | P19: -23% | Q19: -24% | R19: -8%
A20: Oromocto | B20: 14,649 | C20: 1,550 | D20: 1,000 | E20: 850 | F20: 790 | G20: 630 | H20: 620 | I20: 570 | J20: ["E2V"], | K20: 859 | L20: 5.86 | M20: -35% | N20: -15% | O20: -7% | P20: -20% | Q20: -2% | R20: -8%
A21: Lively | B21: 7,455 | C21: 840 | D21: 570 | E21: 460 | F21: 410 | G21: 310 | H21: 290 | I21: 240 | J21: ["P3Y"], | K21: 446 | L21: 5.98 | M21: -32% | N21: -19% | O21: -11% | P21: -24% | Q21: -6% | R21: -17%
A22: Allardville | B22: 2,356 | C22: 260 | D22: 170 | E22: 130 | F22: 120 | G22: 110 | H22: 110 | I22: 100 | J22: ["E8L"], | K22: 143 | L22: 6.06 | M22: -35% | N22: -24% | O22: -8% | P22: -8% | Q22: 0% | R22: -9%
A23: Aylmer | B23: 15,199 | C23: 2,020 | D23: 1,180 | E23: 920 | F23: 760 | G23: 610 | H23: 560 | I23: 420 | J23: ["N5H"], | K23: 924 | L23: 6.08 | M23: -42% | N23: -22% | O23: -17% | P23: -20% | Q23: -8% | R23: -25%
A24: Hebertville | B24: 2,533 | C24: 350 | D24: 220 | E24: 150 | F24: 120 | G24: 100 | H24: 80 | I24: 60 | J24: ["G8N"], | K24: 154 | L24: 6.09 | M24: -37% | N24: -32% | O24: -20% | P24: -17% | Q24: -20% | R24: -25%
A25: Gaspe | B25: 14,568 | C25: 1,720 | D25: 1,130 | E25: 920 | F25: 760 | G25: 620 | H25: 560 | I25: 530 | J25: ["G4X"], | K25: 891 | L25: 6.12 | M25: -34% | N25: -19% | O25: -17% | P25: -18% | Q25: -10% | R25: -5%
A26: Kincardine | B26: 10,856 | C26: 1,320 | D26: 870 | E26: 700 | F26: 610 | G26: 450 | H26: 390 | I26: 320 | J26: ["N2Z"], | K26: 666 | L26: 6.13 | M26: -34% | N26: -20% | O26: -13% | P26: -26% | Q26: -13% | R26: -18%
A27: Metabetchouan-Lac-A-La-Croix | B27: 3,991 | C27: 570 | D27: 350 | E27: 250 | F27: 190 | G27: 150 | H27: 120 | I27: 90 | J27: ["G8G"], | K27: 246 | L27: 6.16 | M27: -39% | N27: -29% | O27: -24% | P27: -21% | Q27: -20% | R27: -25%
A28: St Marys | B28: 9,791 | C28: 1,290 | D28: 750 | E28: 600 | F28: 520 | G28: 400 | H28: 370 | I28: 290 | J28: ["N4X"], | K28: 603 | L28: 6.16 | M28: -42% | N28: -20% | O28: -13% | P28: -23% | Q28: -8% | R28: -22%
A29: Rogersville | B29: 3,038 | C29: 330 | D29: 220 | E29: 180 | F29: 160 | G29: 140 | H29: 150 | I29: 150 | J29: ["E4Y"], | K29: 190 | L29: 6.25 | M29: -33% | N29: -18% | O29: -11% | P29: -13% | Q29: 7% | R29: 0%
A30: Sioux Lookout | B30: 5,002 | C30: 470 | D30: 390 | E30: 340 | F30: 310 | G30: 250 | H30: 230 | I30: 200 | J30: ["P8T"], | K30: 313 | L30: 6.25 | M30: -17% | N30: -13% | O30: -9% | P30: -19% | Q30: -8% | R30: -13%
A31: Rimouski | B31: 57,285 | C31: 8,010 | D31: 4,690 | E31: 3,700 | F31: 2,890 | G31: 2,350 | H31: 1,850 | I31: 1,610 | J31: ["G5L", "G5M", "G5N", "G0B", "G0K"], | K31: 3,586 | L31: 6.26 | M31: -41% | N31: -21% | O31: -22% | P31: -19% | Q31: -21% | R31: -13%
A32: Buena Vista | B32: 865 | C32: 100 | D32: 80 | E32: 60 | F32: 50 | G32: 40 | H32: 30 | I32: 20 | J32: ["S2V"], | K32: 54 | L32: 6.28 | M32: -20% | N32: -25% | O32: -17% | P32: -20% | Q32: -25% | R32: -33%
A33: Saint-Felicien | B33: 10,238 | C33: 1,520 | D33: 910 | E33: 670 | F33: 510 | G33: 360 | H33: 300 | I33: 240 | J33: ["G8K"], | K33: 644 | L33: 6.29 | M33: -40% | N33: -26% | O33: -24% | P33: -29% | Q33: -17% | R33: -20%
A34: Goderich | B34: 11,720 | C34: 1,460 | D34: 990 | E34: 790 | F34: 650 | G34: 490 | H34: 450 | I34: 370 | J34: ["N7A"], | K34: 743 | L34: 6.34 | M34: -32% | N34: -20% | O34: -18% | P34: -25% | Q34: -8% | R34: -18%
A35: Listowel | B35: 11,199 | C35: 1,690 | D35: 860 | E35: 690 | F35: 560 | G35: 440 | H35: 400 | I35: 330 | J35: ["N4W"], | K35: 710 | L35: 6.34 | M35: -49% | N35: -20% | O35: -19% | P35: -21% | Q35: -9% | R35: -18%
A36: Degelis | B36: 2,863 | C36: 380 | D36: 250 | E36: 200 | F36: 170 | G36: 120 | H36: 90 | I36: 70 | J36: ["G5T"], | K36: 183 | L36: 6.39 | M36: -34% | N36: -20% | O36: -15% | P36: -29% | Q36: -25% | R36: -22%
A37: La Sarre | B37: 7,340 | C37: 1,220 | D37: 570 | E37: 450 | F37: 340 | G37: 290 | H37: 220 | I37: 200 | J37: ["J9Z"], | K37: 470 | L37: 6.40 | M37: -53% | N37: -21% | O37: -24% | P37: -15% | Q37: -24% | R37: -9%
A38: Donnacona | B38: 7,200 | C38: 1,080 | D38: 590 | E38: 450 | F38: 360 | G38: 290 | H38: 250 | I38: 220 | J38: ["G3M"], | K38: 463 | L38: 6.43 | M38: -45% | N38: -24% | O38: -20% | P38: -19% | Q38: -14% | R38: -12%
A39: Russell | B39: 7,435 | C39: 970 | D39: 620 | E39: 500 | F39: 450 | G39: 340 | H39: 270 | I39: 210 | J39: ["K4R"], | K39: 480 | L39: 6.46 | M39: -36% | N39: -19% | O39: -10% | P39: -24% | Q39: -21% | R39: -22%
A40: Boiestown | B40: 1,254 | C40: 130 | D40: 100 | E40: 80 | F40: 80 | G40: 60 | H40: 60 | I40: 60 | J40: ["E6A"], | K40: 81 | L40: 6.49 | M40: -23% | N40: -20% | O40: 0% | P40: -25% | Q40: 0% | R40: 0%
A41: Chicoutimi Cite | B41: 85,085 | C41: 12,940 | D41: 7,250 | E41: 5,490 | F41: 4,240 | G41: 3,480 | H41: 2,920 | I41: 2,420 | J41: ["G7B", "G7G", "G7H", "G7J", "G7K", "G7N"], | K41: 5,534 | L41: 6.50 | M41: -44% | N41: -24% | O41: -23% | P41: -18% | Q41: -16% | R41: -17%
A42: Dolbeau-Mistassini | B42: 14,753 | C42: 2,220 | D42: 1,310 | E42: 910 | F42: 720 | G42: 650 | H42: 520 | I42: 440 | J42: ["G8L"], | K42: 967 | L42: 6.56 | M42: -41% | N42: -31% | O42: -21% | P42: -10% | Q42: -20% | R42: -15%
A43: Roberval | B43: 10,303 | C43: 1,470 | D43: 900 | E43: 710 | F43: 540 | G43: 430 | H43: 370 | I43: 330 | J43: ["G8H"], | K43: 679 | L43: 6.59 | M43: -39% | N43: -21% | O43: -24% | P43: -20% | Q43: -14% | R43: -11%
A44: Amos | B44: 13,381 | C44: 2,170 | D44: 1,140 | E44: 830 | F44: 630 | G44: 550 | H44: 470 | I44: 380 | J44: ["J9T"], | K44: 881 | L44: 6.59 | M44: -47% | N44: -27% | O44: -24% | P44: =(G44-F44)/F44 -> -13% | Q44: -15% | R44: -19%
A45: Saint-Augustin-De-Desmaures | B45: 19,198 | C45: 2,850 | D45: 1,750 | E45: 1,330 | F45: 1,000 | G45: 740 | H45: 670 | I45: 520 | J45: ["G3A"], | K45: 1,266 | L45: 6.59 | M45: =(D45-C45)/C45 -> -39% | N45: -24% | O45: -25% | P45: -26% | Q45: -9% | R45: -22%
A46: Coaticook | B46: 9,251 | C46: 1,720 | D46: 790 | E46: 570 | F46: 410 | G46: 310 | H46: 260 | I46: 210 | J46: ["J1A"], | K46: 610 | L46: 6.59 | M46: -54% | N46: -28% | O46: -28% | P46: -24% | Q46: -16% | R46: -19%
A47: Riviere-Du-Loup | B47: 79,024 | C47: 11,580 | D47: 7,190 | E47: 5,370 | F47: 4,270 | G47: 3,330 | H47: 2,640 | I47: 2,290 | J47: ["G5R", "G0L"], | K47: 5,239 | L47: 6.63 | M47: -38% | N47: -25% | O47: -20% | P47: -22% | Q47: -21% | R47: -13%
A48: Jonquiere Cite | B48: 56,349 | C48: 8,560 | D48: 4,760 | E48: 3,690 | F48: 2,980 | G48: 2,450 | H48: 2,040 | I48: 1,740 | J48: ["G7S", "G7T", "G7X", "G7Y", "G7Z", "G8A"], | K48: 3,746 | L48: 6.65 | M48: -44% | N48: -22% | O48: -19% | P48: -18% | Q48: -17% | R48: -15%
A49: Niverville | B49: 3,408 | C49: 420 | D49: 320 | E49: 240 | F49: 220 | G49: 150 | H49: 140 | I49: 100 | J49: ["R5A"], | K49: 227 | L49: 6.66 | M49: -24% | N49: -25% | O49: -8% | P49: -32% | Q49: -7% | R49: -29%
A50: Nicolet | B50: 8,169 | C50: 1,240 | D50: 720 | E50: 530 | F50: 420 | G50: 370 | H50: 310 | I50: 240 | J50: ["J3T"], | K50: 547 | L50: 6.70 | M50: -42% | N50: -26% | O50: -21% | P50: -12% | Q50: -16% | R50: -23%
A51: Alma | B51: 30,714 | C51: 4,710 | D51: 2,750 | E51: 2,040 | F51: 1,620 | G51: 1,360 | H51: 1,050 | I51: 910 | J51: ["G8B", "G8C", "G8E"], | K51: 2,063 | L51: 6.72 | M51: -42% | N51: -26% | O51: -21% | P51: -16% | Q51: -23% | R51: -13%
A52: Hartland | B52: 3,591 | C52: 380 | D52: 290 | E52: 250 | F52: 220 | G52: 190 | H52: 180 | I52: 180 | J52: ["E7P"], | K52: 241 | L52: 6.72 | M52: -24% | N52: -14% | O52: -12% | P52: -14% | Q52: -5% | R52: 0%
A53: Ott Ext-Pembroke | B53: 33,702 | C53: 4,060 | D53: 2,940 | E53: 2,360 | F53: 2,050 | G53: 1,640 | H53: 1,520 | I53: 1,310 | J53: ["K0J"], | K53: 2,269 | L53: 6.73 | M53: -28% | N53: -20% | O53: -13% | P53: -20% | Q53: -7% | R53: -14%
A54: Coaldale | B54: 9,379 | C54: 1,100 | D54: 810 | E54: 630 | F54: 570 | G54: 480 | H54: 450 | I54: 380 | J54: ["T1M"], | K54: 631 | L54: 6.73 | M54: -26% | N54: -22% | O54: -10% | P54: -16% | Q54: -6% | R54: -16%
A55: Fort Frances | B55: 10,651 | C55: 1,210 | D55: 880 | E55: 740 | F55: 670 | G55: 550 | H55: 520 | I55: 450 | J55: ["P9A"], | K55: 717 | L55: 6.73 | M55: -27% | N55: -16% | O55: -9% | P55: -18% | Q55: -5% | R55: -13%
A56: Sidney | B56: 23,422 | C56: 3,010 | D56: 1,980 | E56: 1,640 | F56: 1,390 | G56: 1,130 | H56: 1,050 | I56: 850 | J56: ["V8L"], | K56: 1,579 | L56: 6.74 | M56: -34% | N56: -17% | O56: -15% | P56: -19% | Q56: -7% | R56: -19%
A57: Montmagny | B57: 11,255 | C57: 2,190 | D57: 940 | E57: 680 | F57: 520 | G57: 390 | H57: 320 | I57: 290 | J57: ["G5V"], | K57: 761 | L57: 6.77 | M57: -57% | N57: -28% | O57: -24% | P57: -25% | Q57: -18% | R57: -9%
A58: Val Caron | B58: 8,125 | C58: 1,050 | D58: 680 | E58: 610 | F58: 540 | G58: 430 | H58: 310 | I58: 260 | J58: ["P3N"], | K58: 554 | L58: 6.82 | M58: -35% | N58: -10% | O58: -11% | P58: -20% | Q58: -28% | R58: -16%
A59: Rouyn-Noranda | B59: 67,990 | C59: 11,610 | D59: 5,950 | E59: 4,400 | F59: 3,460 | G59: 2,820 | H59: 2,360 | I59: 1,930 | J59: ["J9X", "J9Y", "J0Z"], | K59: 4,647 | L59: 6.84 | M59: -49% | N59: -26% | O59: -21% | P59: -18% | Q59: -16% | R59: -18%
A60: Boucherville | B60: 41,671 | C60: 5,890 | D60: 3,860 | E60: 3,160 | F60: 2,400 | G60: 1,850 | H60: 1,540 | I60: 1,250 | J60: ["J4B"], | K60: 2,850 | L60: 6.84 | M60: -34% | N60: -18% | O60: -24% | P60: -23% | Q60: -17% | R60: -19%
A61: Pont-Rouge | B61: 9,252 | C61: 1,640 | D61: 840 | E61: 590 | F61: 460 | G61: 380 | H61: 300 | I61: 220 | J61: ["G3H"], | K61: 633 | L61: 6.84 | M61: -49% | N61: -30% | O61: -22% | P61: -17% | Q61: -21% | R61: -27%
A62: Fredericton Area | B62: 13,688 | C62: 1,740 | D62: 1,110 | E62: 960 | F62: 860 | G62: 670 | H62: 650 | I62: 570 | J62: ["E6E", "E6G", "E6H", "E6K", "E6L"], | K62: 937 | L62: 6.85 | M62: -36% | N62: -14% | O62: -10% | P62: -22% | Q62: -3% | R62: -12%
A63: Levis | B63: 143,375 | C63: 24,480 | D63: 12,880 | E63: 9,530 | F63: 7,430 | G63: 5,970 | H63: 4,750 | I63: 3,930 | J63: ["G6C", "G6J", "G6K", "G6V", "G6W", "G6X", "G6Y", "G6Z", "G7A"], | K63: 9,853 | L63: 6.87 | M63: -47% | N63: -26% | O63: -22% | P63: -20% | Q63: -20% | R63: -17%
A64: Saint-Bruno | B64: 25,953 | C64: 3,710 | D64: 2,360 | E64: 1,900 | F64: 1,470 | G64: 1,190 | H64: 1,040 | I64: 830 | J64: ["J3V"], | K64: 1,786 | L64: 6.88 | M64: -36% | N64: -19% | O64: -23% | P64: -19% | Q64: -13% | R64: -20%
A65: Edmundston | B65: 30,658 | C65: 3,960 | D65: 2,600 | E65: 2,040 | F65: 1,790 | G65: 1,490 | H65: 1,470 | I65: 1,420 | J65: ["E3V", "E7A", "E7B", "E7C", "E7E"], | K65: 2,110 | L65: 6.88 | M65: -34% | N65: -22% | O65: -12% | P65: -17% | Q65: -1% | R65: -3%
A66: Chipman | B66: 2,926 | C66: 330 | D66: 260 | E66: 200 | F66: 180 | G66: 150 | H66: 150 | I66: 140 | J66: ["E4A"], | K66: =AVERAGE(C66:I66) -> 201 | L66: =(K66/B66)*100 -> 6.88 | M66: -21% | N66: -23% | O66: -10% | P66: -17% | Q66: 0% | R66: -7%
A67: Hanmer | B67: 15,468 | C67: 1,990 | D67: 1,320 | E67: 1,160 | F67: 1,020 | G67: 790 | H67: 650 | I67: 530 | J67: ["P3P"], | K67: 1,066 | L67: 6.89 | M67: -34% | N67: -12% | O67: -12% | P67: -23% | Q67: -18% | R67: -18%
A68: Swift Current | B68: 18,070 | C68: 2,550 | D68: 1,590 | E68: 1,220 | F68: 1,110 | G68: 850 | H68: 790 | I68: 640 | J68: ["S9H"], | K68: 1,250 | L68: 6.92 | M68: -38% | N68: -23% | O68: -9% | P68: -23% | Q68: -7% | R68: -19%
A69: Grand Falls/Grand-Sault | B69: 11,435 | C69: 1,470 | D69: 1,060 | E69: 770 | F69: 650 | G69: 540 | H69: 550 | I69: 520 | J69: ["E3Y", "E3Z"], | K69: 794 | L69: 6.95 | M69: -28% | N69: -27% | O69: -16% | P69: -17% | Q69: 2% | R69: -5%
A70: Lac-Megantic | B70: 8,179 | C70: 1,520 | D70: 760 | E70: 580 | F70: 390 | G70: 310 | H70: 230 | I70: 190 | J70: ["G6B"], | K70: 569 | L70: 6.95 | M70: -50% | N70: -24% | O70: -33% | P70: -21% | Q70: -26% | R70: -17%
A71: Sainte-Marie | B71: 13,537 | C71: 2,500 | D71: 1,260 | E71: 890 | F71: 630 | G71: 530 | H71: 430 | I71: 360 | J71: ["G6E"], | K71: 943 | L71: 6.97 | M71: -50% | N71: -29% | O71: -29% | P71: -16% | Q71: -19% | R71: -16%
A72: Bathurst Area | B72: 38,483 | C72: 4,410 | D72: 3,020 | E72: 2,460 | F72: 2,180 | G72: 2,470 | H72: 2,140 | I72: 2,210 | J72: ["E8E", "E8G", "E8J", "E8K", "E8N", "E8P", "E8S", "E8T"], | K72: 2,699 | L72: 7.01 | M72: -32% | N72: -19% | O72: -11% | P72: 13% | Q72: -13% | R72: 3%
A73: Cap-Aux-Meules | B73: 12,475 | C73: 1,290 | D73: 970 | E73: 820 | F73: 740 | G73: 810 | H73: 840 | I73: 670 | J73: ["G4T"], | K73: 877 | L73: 7.03 | M73: -25% | N73: -15% | O73: -10% | P73: 9% | Q73: 4% | R73: -20%
A74: Chibougamau | B74: 7,537 | C74: 1,440 | D74: 670 | E74: 480 | F74: 370 | G74: 300 | H74: 250 | I74: 200 | J74: ["G8P"], | K74: 530 | L74: 7.03 | M74: -53% | N74: -28% | O74: -23% | P74: -19% | Q74: -17% | R74: -20%
A75: Clermont | B75: 3,085 | C75: 470 | D75: 280 | E75: 230 | F75: 180 | G75: 150 | H75: 110 | I75: 100 | J75: ["G4A"], | K75: 217 | L75: 7.04 | M75: -40% | N75: -18% | O75: -22% | P75: -17% | Q75: -27% | R75: -9%
A76: Gander | B76: 46,964 | C76: 5,160 | D76: 3,770 | E76: 3,210 | F76: 2,890 | G76: 2,700 | H76: 2,720 | I76: 2,720 | J76: ["A1V", "A0G"], | K76: 3,310 | L76: 7.05 | M76: -27% | N76: -15% | O76: -10% | P76: -7% | Q76: 1% | R76: 0%
A77: Ste-Catherine-De-La-J-Cartier | B77: 9,942 | C77: 1,700 | D77: 930 | E77: 680 | F77: 540 | G77: 440 | H77: 350 | I77: 270 | J77: ["G3N"], | K77: 701 | L77: 7.06 | M77: -45% | N77: -27% | O77: -21% | P77: -19% | Q77: -20% | R77: -23%
A78: Grand Falls | B78: 25,684 | C78: 2,710 | D78: 2,060 | E78: 1,750 | F78: 1,640 | G78: 1,500 | H78: 1,610 | I78: 1,460 | J78: ["A0H", "A0J"], | K78: 1,819 | L78: 7.08 | M78: -24% | N78: -15% | O78: -6% | P78: -9% | Q78: 7% | R78: -9%
A79: Kapuskasing | B79: 8,467 | C79: 1,170 | D79: 720 | E79: 620 | F79: 520 | G79: 430 | H79: 400 | I79: 340 | J79: ["P5N"], | K79: 600 | L79: 7.09 | M79: -38% | N79: -14% | O79: -16% | P79: -17% | Q79: -7% | R79: -15%
A80: Varennes | B80: 21,257 | C80: 3,490 | D80: 1,970 | E80: 1,510 | F80: 1,180 | G80: 980 | H80: 780 | I80: 640 | J80: ["J3X"], | K80: 1,507 | L80: 7.09 | M80: -44% | N80: -23% | O80: -22% | P80: -17% | Q80: -20% | R80: -18%
A81: Becancour | B81: 13,028 | C81: 2,060 | D81: 1,190 | E81: 910 | F81: 780 | G81: 620 | H81: 510 | I81: 400 | J81: ["G9H"], | K81: 924 | L81: 7.09 | M81: -42% | N81: -24% | O81: -14% | P81: -21% | Q81: -18% | R81: -22%
A82: Deer Lake | B82: 32,959 | C82: 3,240 | D82: 2,780 | E82: 2,320 | F82: 2,120 | G82: 1,950 | H82: 2,010 | I82: 1,950 | J82: ["A8A", "A0K"], | K82: 2,339 | L82: 7.10 | M82: -14% | N82: -17% | O82: -9% | P82: -8% | Q82: 3% | R82: -3%
A83: Central Saanich | B83: 16,168 | C83: 2,180 | D83: 1,400 | E83: 1,210 | F83: 1,040 | G83: 830 | H83: 770 | I83: 650 | J83: ["V8M"], | K83: 1,154 | L83: 7.14 | M83: -36% | N83: -14% | O83: -14% | P83: -20% | Q83: -7% | R83: -16%
A84: Baie-Comeau | B84: 32,170 | C84: 4,560 | D84: 2,890 | E84: 2,310 | F84: 1,890 | G84: 1,690 | H84: 1,480 | I84: 1,260 | J84: ["G4Z", "G5C", "G0H"], | K84: 2,297 | L84: 7.14 | M84: -37% | N84: -20% | O84: -18% | P84: -11% | Q84: -12% | R84: -15%
A85: Mont-Joli | B85: 87,927 | C85: 10,990 | D85: 7,680 | E85: 6,260 | F85: 5,400 | G85: 4,990 | H85: 4,650 | I85: 4,340 | J85: ["G5H", "G0C", "G0E", "G0J"], | K85: 6,330 | L85: 7.20 | M85: -30% | N85: -18% | O85: -14% | P85: -8% | Q85: -7% | R85: -7%
A86: Sainte-Julie | B86: 29,847 | C86: 5,040 | D86: 2,930 | E86: 2,190 | F86: 1,690 | G86: 1,330 | H86: 1,050 | I86: 820 | J86: ["J3E"], | K86: 2,150 | L86: 7.20 | M86: -42% | N86: -25% | O86: -23% | P86: -21% | Q86: -21% | R86: -22%
A87: La Tuque | B87: 10,745 | C87: 1,400 | D87: 990 | E87: 940 | F87: 650 | G87: 550 | H87: 490 | I87: 410 | J87: ["G9X"], | K87: 776 | L87: 7.22 | M87: -29% | N87: -5% | O87: -31% | P87: -15% | Q87: -11% | R87: -16%
A88: Hampton | B88: 11,668 | C88: 1,620 | D88: 1,020 | E88: 840 | F88: 740 | G88: 590 | H88: 580 | I88: 510 | J88: ["E5N"], | K88: 843 | L88: 7.22 | M88: -37% | N88: -18% | O88: -12% | P88: -20% | Q88: -2% | R88: -12%
A89: Enfield | B89: 16,980 | C89: 2,440 | D89: 1,540 | E89: 1,280 | F89: 1,080 | G89: 840 | H89: 780 | I89: 630 | J89: ["B2T"], | K89: 1,227 | L89: 7.23 | M89: -37% | N89: -17% | O89: -16% | P89: -22% | Q89: -7% | R89: -19%
A90: Chelsea | B90: 6,898 | C90: 940 | D90: 670 | E90: 540 | F90: 440 | G90: 340 | H90: 320 | I90: 250 | J90: ["J9B"], | K90: 500 | L90: 7.25 | M90: -29% | N90: -19% | O90: -19% | P90: -23% | Q90: -6% | R90: -22%
A91: Saint-Basile-Le-Grand | B91: 17,059 | C91: 2,820 | D91: 1,580 | E91: 1,270 | F91: 1,010 | G91: 800 | H91: 670 | I91: 510 | J91: ["J3N"], | K91: 1,237 | L91: 7.25 | M91: -44% | N91: -20% | O91: -20% | P91: -21% | Q91: -16% | R91: -24%
A92: Selkirk | B92: 21,642 | C92: 2,610 | D92: 1,910 | E92: 1,620 | F92: 1,470 | G92: 1,230 | H92: 1,160 | I92: 1,000 | J92: ["R1A", "R1B"], | K92: 1,571 | L92: 7.26 | M92: -27% | N92: -15% | O92: -9% | P92: -16% | Q92: -6% | R92: -14%
A93: Christmas Island | B93: 354 | C93: 30 | D93: 30 | E93: 30 | F93: 30 | G93: 20 | H93: 20 | I93: 20 | J93: ["B1T"], | K93: 26 | L93: 7.26 | M93: 0% | N93: 0% | O93: 0% | P93: -33% | Q93: 0% | R93: 0%
A94: Bathurst | B94: 17,205 | C94: 2,320 | D94: 1,470 | E94: 1,230 | F94: 1,070 | G94: 920 | H94: 900 | I94: 880 | J94: ["E2A", "E0B"], | K94: 1,256 | L94: 7.30 | M94: -37% | N94: -16% | O94: -13% | P94: -14% | Q94: -2% | R94: -2%
A95: Quebec | B95: 800,198 | C95: 136,790 | D95: 74,610 | E95: 57,090 | F95: 45,240 | G95: 37,030 | H95: 31,560 | I95: 27,200 | J95: ["G1A", "G1B", "G1C", "G1E", "G1G", "G1H", "G1J", "G1K", "G1L", "G1M", "G1N", "G1P", "G1R", "G1S", "G1T", "G1V", "G1W", "G1X", "G1Y", "G2A", "G2B", "G2C", "G2E", "G2G", "G2J", "G2K", "G2L", "G2M", "G2N", "G3E", "G3G", "G3J", "G3K", "G3S", "G0A", "G0R", "G0S", "G0T"], | K95: 58,503 | L95: 7.31 | M95: -45% | N95: -23% | O95: -21% | P95: -18% | Q95: -15% | R95: -14%
A96: Kenora | B96: 14,009 | C96: 1,730 | D96: 1,330 | E96: 1,070 | F96: 940 | G96: 780 | H96: 720 | I96: 600 | J96: ["P9N"], | K96: 1,024 | L96: 7.31 | M96: -23% | N96: -20% | O96: -12% | P96: -17% | Q96: -8% | R96: -17%
A97: Vermilion | B97: 5,841 | C97: 760 | D97: 580 | E97: 440 | F97: 390 | G97: 310 | H97: 290 | I97: 220 | J97: ["T9X"], | K97: 427 | L97: 7.31 | M97: -24% | N97: -24% | O97: -11% | P97: -21% | Q97: -6% | R97: -24%
A98: Caraquet | B98: 6,935 | C98: 830 | D98: 580 | E98: 480 | F98: 430 | G98: 450 | H98: 400 | I98: 390 | J98: ["E1W"], | K98: 509 | L98: 7.33 | M98: -30% | N98: -17% | O98: -10% | P98: 5% | Q98: -11% | R98: -3%
A99: Trail | B99: 10,021 | C99: 1,330 | D99: 830 | E99: 730 | F99: 660 | G99: 580 | H99: 560 | I99: 460 | J99: ["V1R"], | K99: 736 | L99: 7.34 | M99: -38% | N99: -12% | O99: -10% | P99: -12% | Q99: -3% | R99: -18%
A100: Plessisville | B100: 15,172 | C100: 3,010 | D100: 1,480 | E100: 1,030 | F100: 730 | G100: 620 | H100: 530 | I100: 410 | J100: ["G6L"], | K100: 1,116 | L100: 7.35 | M100: -51% | N100: -30% | O100: -29% | P100: -15% | Q100: -15% | R100: -23%
A101: Terrace | B101: 19,144 | C101: 2,800 | D101: 1,680 | E101: 1,390 | F101: 1,200 | G101: 1,030 | H101: 940 | I101: 820 | J101: ["V8G"], | K101: 1,409 | L101: 7.36 | M101: -40% | N101: -17% | O101: -14% | P101: -14% | Q101: -9% | R101: -13%
A102: Thetford Mines | B102: 46,338 | C102: 8,220 | D102: 4,430 | E102: 3,290 | F102: 2,500 | G102: 2,090 | H102: 1,800 | I102: 1,570 | J102: ["G6G", "G6H", "G0N"], | K102: 3,414 | L102: 7.37 | M102: -46% | N102: -26% | O102: -24% | P102: -16% | Q102: -14% | R102: -13%
A103: Corner Brook | B103: 33,735 | C103: 4,410 | D103: 2,960 | E103: 2,490 | F103: 2,210 | G103: 1,860 | H103: 1,840 | I103: 1,710 | J103: ["A2H", "A0L"], | K103: 2,497 | L103: 7.40 | M103: -33% | N103: -16% | O103: -11% | P103: -16% | Q103: -1% | R103: -7%
A104: Sussex Area | B104: 6,376 | C104: 760 | D104: 550 | E104: 490 | F104: 440 | G104: 360 | H104: 380 | I104: 330 | J104: ["E4B", "E4C"], | K104: 473 | L104: 7.42 | M104: -28% | N104: -11% | O104: -10% | P104: -18% | Q104: 6% | R104: -13%
A105: Navan | B105: 4,793 | C105: 670 | D105: 480 | E105: 390 | F105: 340 | G105: 260 | H105: 190 | I105: 160 | J105: ["K4B"], | K105: 356 | L105: 7.42 | M105: -28% | N105: -19% | O105: -13% | P105: -24% | Q105: -27% | R105: -16%
A106: Clarenville | B106: 42,992 | C106: 5,000 | D106: 3,770 | E106: 3,080 | F106: 2,840 | G106: 2,520 | H106: 2,670 | I106: 2,500 | J106: ["A5A", "A0C", "A0E"], | K106: 3,197 | L106: 7.44 | M106: -25% | N106: -18% | O106: -8% | P106: -11% | Q106: 6% | R106: -6%
A107: Strathroy | B107: 17,880 | C107: 2,840 | D107: 1,650 | E107: 1,340 | F107: 1,170 | G107: 870 | H107: 790 | I107: 660 | J107: ["N7G"], | K107: 1,331 | L107: 7.45 | M107: -42% | N107: -19% | O107: -13% | P107: -26% | Q107: -9% | R107: -16%
A108: Asbestos | B108: 7,693 | C108: 1,190 | D108: 710 | E108: 570 | F108: 460 | G108: 390 | H108: 370 | I108: 320 | J108: ["J1T"], | K108: 573 | L108: 7.45 | M108: -40% | N108: -20% | O108: -19% | P108: -15% | Q108: -5% | R108: -14%
A109: Paradise | B109: 21,376 | C109: 3,050 | D109: 1,960 | E109: 1,640 | F109: 1,430 | G109: 1,130 | H109: 1,040 | I109: 900 | J109: ["A1L"], | K109: 1,593 | L109: 7.45 | M109: =(D109-C109)/C109 -> -36% | N109: -16% | O109: -13% | P109: -21% | Q109: -8% | R109: -13%
A110: Dunnville | B110: 12,000 | C110: 1,700 | D110: 1,150 | E110: 930 | F110: 800 | G110: 640 | H110: 570 | I110: 480 | J110: ["N1A"], | K110: 896 | L110: 7.46 | M110: -32% | N110: -19% | O110: -14% | P110: -20% | Q110: -11% | R110: -16%
A111: Kentville | B111: 57,799 | C111: 7,700 | D111: 5,290 | E111: 4,530 | F111: 3,950 | G111: 3,210 | H111: 2,970 | I111: 2,610 | J111: ["B4N", "B0P"], | K111: 4,323 | L111: 7.48 | M111: -31% | N111: -14% | O111: -13% | P111: -19% | Q111: -7% | R111: -12%
A112: Tor Ext-Kingston | B112: 44,019 | C112: 6,020 | D112: 4,210 | E112: 3,470 | F112: 3,060 | G112: 2,410 | H112: 2,130 | I112: 1,770 | J112: ["K0H"], | K112: 3,296 | L112: 7.49 | M112: -30% | N112: -18% | O112: -12% | P112: -21% | Q112: -12% | R112: -17%
A113: Chicoutimi | B113: 65,088 | C113: 10,160 | D113: 6,410 | E113: 4,940 | F113: 3,910 | G113: 3,390 | H113: 2,820 | I113: 2,490 | J113: ["G7P", "G8J", "G0V", "G0W"], | K113: 4,874 | L113: 7.49 | M113: -37% | N113: -23% | O113: -21% | P113: -13% | Q113: -17% | R113: -12%
A114: Tillsonburg | B114: 19,389 | C114: 3,340 | D114: 1,730 | E114: 1,380 | F114: 1,210 | G114: 950 | H114: 860 | I114: 720 | J114: ["N4G"], | K114: 1,456 | L114: 7.51 | M114: -48% | N114: -20% | O114: -12% | P114: -21% | Q114: -9% | R114: -16%
A115: Sorel-Tracy | B115: 39,176 | C115: 5,990 | D115: 3,620 | E115: 2,940 | F115: 2,400 | G115: 2,140 | H115: 1,890 | I115: 1,640 | J115: ["J3P", "J3R"], | K115: 2,946 | L115: 7.52 | M115: -40% | N115: -19% | O115: -18% | P115: -11% | Q115: -12% | R115: -13%
A116: Stanley | B116: 1,590 | C116: 190 | D116: 130 | E116: 110 | F116: 110 | G116: 100 | H116: 110 | I116: 90 | J116: ["E6B"], | K116: 120 | L116: 7.55 | M116: -32% | N116: -15% | O116: 0% | P116: -9% | Q116: 10% | R116: -18%
A117: Bridgewater | B117: 25,946 | C117: 3,640 | D117: 2,540 | E117: 2,010 | F117: 1,720 | G117: 1,380 | H117: 1,290 | I117: 1,160 | J117: ["B4V", "B0R"], | K117: 1,963 | L117: 7.57 | M117: -30% | N117: -21% | O117: -14% | P117: -20% | Q117: -7% | R117: -10%
A118: Tantallon | B118: 16,905 | C118: 2,240 | D118: 1,630 | E118: 1,420 | F118: 1,180 | G118: 940 | H118: 850 | I118: 700 | J118: ["B3Z"], | K118: 1,280 | L118: 7.57 | M118: -27% | N118: -13% | O118: -17% | P118: -20% | Q118: -10% | R118: -18%
A119: Estevan | B119: 12,481 | C119: 1,830 | D119: 1,160 | E119: 920 | F119: 830 | G119: 690 | H119: 640 | I119: 550 | J119: ["S4A"], | K119: 946 | L119: 7.58 | M119: -37% | N119: -21% | O119: -10% | P119: -17% | Q119: -7% | R119: -14%
A120: Espanola | B120: 5,229 | C120: 680 | D120: 490 | E120: 430 | F120: 370 | G120: 320 | H120: 260 | I120: 230 | J120: ["P5E"], | K120: 397 | L120: 7.60 | M120: -28% | N120: -12% | O120: -14% | P120: -14% | Q120: -19% | R120: -12%
A121: Tracadie-Sheila | B121: 14,040 | C121: 1,760 | D121: 1,220 | E121: 1,010 | F121: 930 | G121: 880 | H121: 870 | I121: 800 | J121: ["E1X"], | K121: 1,067 | L121: 7.60 | M121: -31% | N121: -17% | O121: -8% | P121: -5% | Q121: -1% | R121: -8%
A122: Yorkton | B122: 18,658 | C122: 2,560 | D122: 1,720 | E122: 1,440 | F122: 1,250 | G122: 1,080 | H122: 1,010 | I122: 880 | J122: ["S3N"], | K122: 1,420 | L122: 7.61 | M122: -33% | N122: -16% | O122: -13% | P122: -14% | Q122: -6% | R122: -13%
A123: Delhi | B123: 7,772 | C123: 1,300 | D123: 710 | E123: 560 | F123: 500 | G123: 410 | H123: 350 | I123: 320 | J123: ["N4B"], | K123: 593 | L123: 7.63 | M123: -45% | N123: -21% | O123: -11% | P123: -18% | Q123: -15% | R123: -9%
A124: Ott Ext-Brockville | B124: 38,903 | C124: 5,270 | D124: 3,780 | E124: 3,080 | F124: 2,690 | G124: 2,190 | H124: 2,030 | I124: 1,740 | J124: ["K0E"], | K124: 2,969 | L124: 7.63 | M124: -28% | N124: -19% | O124: -13% | P124: -19% | Q124: -7% | R124: -14%
A125: Campbellton | B125: 13,533 | C125: 1,700 | D125: 1,120 | E125: 1,010 | F125: 950 | G125: 780 | H125: 830 | I125: 840 | J125: ["E3N", "E0K"], | K125: 1,033 | L125: 7.63 | M125: -34% | N125: -10% | O125: -6% | P125: -18% | Q125: 6% | R125: 1%
A126: Antigonish | B126: 24,314 | C126: 3,230 | D126: 2,290 | E126: 1,870 | F126: 1,610 | G126: 1,520 | H126: 1,360 | I126: 1,110 | J126: ["B2G", "B0H"], | K126: 1,856 | L126: 7.63 | M126: -29% | N126: -18% | O126: -14% | P126: -6% | Q126: -11% | R126: -18%
A127: Flin Flon | B127: 5,300 | C127: 580 | D127: 480 | E127: 390 | F127: 390 | G127: 350 | H127: 340 | I127: 310 | J127: ["R8A"], | K127: 406 | L127: 7.65 | M127: -17% | N127: -19% | O127: 0% | P127: -10% | Q127: -3% | R127: -9%
A128: Saint-Georges | B128: 75,745 | C128: 16,310 | D128: 7,470 | E128: 5,190 | F128: 3,830 | G128: 3,240 | H128: 2,460 | I128: 2,100 | J128: ["G5Y", "G5Z", "G6A", "G0M", "G0Y"], | K128: 5,800 | L128: 7.66 | M128: -54% | N128: -31% | O128: -26% | P128: -15% | Q128: -24% | R128: -15%
A129: Ott Ext-Smiths Falls | B129: 37,097 | C129: 5,300 | D129: 3,670 | E129: 3,020 | F129: 2,590 | G129: 2,010 | H129: 1,800 | I129: 1,500 | J129: ["K0G"], | K129: 2,841 | L129: 7.66 | M129: -31% | N129: -18% | O129: -14% | P129: -22% | Q129: -10% | R129: -17%
A130: Manuels | B130: 11,209 | C130: 1,600 | D130: 1,070 | E130: 860 | F130: 790 | G130: 620 | H130: 580 | I130: 500 | J130: ["A1W"], | K130: =AVERAGE(C130:I130) -> 860 | L130: =(K130/B130)*100 -> 7.67 | M130: -33% | N130: -20% | O130: -8% | P130: -22% | Q130: -6% | R130: -14%
A131: Barrhead | B131: 7,795 | C131: 940 | D131: 780 | E131: 620 | F131: 570 | G131: 490 | H131: 430 | I131: 360 | J131: ["T7N"], | K131: 599 | L131: 7.68 | M131: -17% | N131: -21% | O131: -8% | P131: -14% | Q131: -12% | R131: -16%
A132: Fredericton | B132: 92,038 | C132: 13,770 | D132: 8,510 | E132: 7,020 | F132: 6,000 | G132: 5,010 | H132: 4,790 | I132: 4,390 | J132: ["E3A", "E3B", "E3C", "E3E", "E3G", "E6C", "E0H"], | K132: 7,070 | L132: 7.68 | M132: -38% | N132: -18% | O132: -15% | P132: -17% | Q132: -4% | R132: -8%
A133: Sorel | B133: 18,556 | C133: 2,960 | D133: 1,830 | E133: 1,460 | F133: 1,170 | G133: 1,000 | H133: 860 | I133: 700 | J133: ["J0G"], | K133: 1,426 | L133: 7.68 | M133: -38% | N133: -20% | O133: -20% | P133: -15% | Q133: -14% | R133: -19%
A134: Essex | B134: 11,110 | C134: 2,010 | D134: 1,020 | E134: 790 | F134: 710 | G134: 550 | H134: 490 | I134: 410 | J134: ["N8M"], | K134: 854 | L134: 7.69 | M134: -49% | N134: -23% | O134: -10% | P134: -23% | Q134: -11% | R134: -16%
A135: Cumberland | B135: 4,530 | C135: 600 | D135: 470 | E135: 390 | F135: 330 | G135: 260 | H135: 210 | I135: 180 | J135: ["K4C"], | K135: 349 | L135: 7.69 | M135: -22% | N135: -17% | O135: -15% | P135: -21% | Q135: -19% | R135: -14%
A136: Perth | B136: 15,009 | C136: 2,170 | D136: 1,490 | E136: 1,240 | F136: 1,050 | G136: 800 | H136: 720 | I136: 620 | J136: ["K7H"], | K136: 1,156 | L136: 7.70 | M136: -31% | N136: -17% | O136: -15% | P136: -24% | Q136: -10% | R136: -14%
A137: Sussex | B137: 11,643 | C137: 1,670 | D137: 1,070 | E137: 900 | F137: 820 | G137: 640 | H137: 610 | I137: 570 | J137: ["E4E", "E4G", "E0E"], | K137: 897 | L137: 7.71 | M137: -36% | N137: -16% | O137: -9% | P137: -22% | Q137: -5% | R137: -7%
A138: Rockland | B138: 15,368 | C138: 2,220 | D138: 1,520 | E138: 1,310 | F138: 1,150 | G138: 870 | H138: 660 | I138: 560 | J138: ["K4K"], | K138: 1,184 | L138: 7.71 | M138: -32% | N138: -14% | O138: -12% | P138: -24% | Q138: -24% | R138: -15%
A139: Hanover | B139: 9,901 | C139: 1,580 | D139: 920 | E139: 760 | F139: 660 | G139: 530 | H139: 480 | I139: 420 | J139: ["N4N"], | K139: 764 | L139: 7.72 | M139: -42% | N139: -17% | O139: -13% | P139: -20% | Q139: -9% | R139: -13%
A140: Val-D'Or | B140: 62,205 | C140: 12,000 | D140: 6,030 | E140: 4,450 | F140: 3,520 | G140: 2,950 | H140: 2,580 | I140: 2,160 | J140: ["J9P", "J0Y"], | K140: 4,813 | L140: 7.74 | M140: -50% | N140: -26% | O140: -21% | P140: -16% | Q140: -13% | R140: -16%
A141: Fergus | B141: 15,998 | C141: 2,620 | D141: 1,590 | E141: 1,260 | F141: 1,080 | G141: 810 | H141: 720 | I141: 590 | J141: ["N1M"], | K141: 1,239 | L141: 7.74 | M141: -39% | N141: -21% | O141: -14% | P141: -25% | Q141: -11% | R141: -18%
A142: Kingsville | B142: 14,814 | C142: 2,270 | D142: 1,390 | E142: 1,150 | F142: 1,000 | G142: 900 | H142: 740 | I142: 580 | J142: ["N9Y"], | K142: 1,147 | L142: 7.74 | M142: -39% | N142: -17% | O142: -13% | P142: -10% | Q142: -18% | R142: -22%
A143: Sherbrooke | B143: 242,520 | C143: 44,110 | D143: 24,590 | E143: 18,600 | F143: 14,470 | G143: 11,710 | H143: 10,050 | I143: 8,330 | J143: ["J1C", "J1E", "J1G", "J1H", "J1J", "J1K", "J1L", "J1M", "J1N", "J1R", "J0A", "J0B"], | K143: 18,837 | L143: 7.77 | M143: -44% | N143: -24% | O143: -22% | P143: -19% | Q143: -14% | R143: -17%
A144: Saint-Isidore | B144: 2,059 | C144: 280 | D144: 200 | E144: 170 | F144: 130 | G144: 120 | H144: 120 | I144: 100 | J144: ["E8M"], | K144: 160 | L144: 7.77 | M144: -29% | N144: -15% | O144: -24% | P144: -8% | Q144: 0% | R144: -17%
A145: Renfrew | B145: 13,438 | C145: 1,890 | D145: 1,280 | E145: 1,070 | F145: 950 | G145: 770 | H145: 700 | I145: 660 | J145: ["K7V"], | K145: 1,046 | L145: 7.78 | M145: -32% | N145: -16% | O145: -11% | P145: -19% | Q145: -9% | R145: -6%
A146: Weyburn | B146: 11,193 | C146: 1,700 | D146: 1,130 | E146: 890 | F146: 760 | G146: 610 | H146: 560 | I146: 450 | J146: ["S4H"], | K146: 871 | L146: 7.79 | M146: -34% | N146: -21% | O146: -15% | P146: -20% | Q146: -8% | R146: -20%
A147: Beauceville | B147: 6,290 | C147: 1,320 | D147: 650 | E147: 450 | F147: 350 | G147: 270 | H147: 210 | I147: 180 | J147: ["G5X"], | K147: 490 | L147: 7.79 | M147: -51% | N147: -31% | O147: -22% | P147: -23% | Q147: -22% | R147: -14%
A148: Napanee | B148: 14,406 | C148: 2,050 | D148: 1,380 | E148: 1,160 | F148: 1,040 | G148: 820 | H148: 740 | I148: 670 | J148: ["K7R"], | K148: 1,123 | L148: 7.79 | M148: -33% | N148: -16% | O148: -10% | P148: -21% | Q148: -10% | R148: -9%
A149: Torbay | B149: 12,253 | C149: 1,770 | D149: 1,190 | E149: 980 | F149: 890 | G149: 670 | H149: 610 | I149: 580 | J149: ["A1K"], | K149: 956 | L149: 7.80 | M149: -33% | N149: -18% | O149: -9% | P149: -25% | Q149: -9% | R149: -5%
A150: Sackville | B150: 7,009 | C150: 970 | D150: 660 | E150: 550 | F150: 470 | G150: 400 | H150: 390 | I150: 390 | J150: ["E4L"], | K150: 547 | L150: 7.81 | M150: -32% | N150: -17% | O150: -15% | P150: -15% | Q150: -3% | R150: 0%
A151: Miramichi | B151: 24,888 | C151: 3,410 | D151: 2,290 | E151: 1,900 | F151: 1,700 | G151: 1,410 | H151: 1,430 | I151: 1,460 | J151: ["E1N", "E1V", "E0C"], | K151: 1,943 | L151: 7.81 | M151: -33% | N151: -17% | O151: -11% | P151: =(G151-F151)/F151 -> -17% | Q151: 1% | R151: 2%
A152: Lantz | B152: 7,583 | C152: 1,250 | D152: 680 | E152: 560 | F152: 520 | G152: 400 | H152: 380 | I152: 360 | J152: ["B2S"], | K152: 593 | L152: 7.82 | M152: =(D152-C152)/C152 -> -46% | N152: -18% | O152: -7% | P152: -23% | Q152: -5% | R152: -5%
A153: Stittsville | B153: 32,061 | C153: 4,530 | D153: 3,230 | E153: 2,670 | F153: 2,350 | G153: 1,800 | H153: 1,620 | I153: 1,360 | J153: ["K2S"], | K153: 2,509 | L153: 7.82 | M153: -29% | N153: -17% | O153: -12% | P153: -23% | Q153: -10% | R153: -16%
A154: Marieville | B154: 10,751 | C154: 2,030 | D154: 1,080 | E154: 790 | F154: 630 | G154: 560 | H154: 440 | I154: 360 | J154: ["J3M"], | K154: 841 | L154: 7.83 | M154: -47% | N154: -27% | O154: -20% | P154: -11% | Q154: -21% | R154: -18%
A155: Saint-Constant | B155: 27,312 | C155: 5,030 | D155: 2,730 | E155: 2,130 | F155: 1,660 | G155: 1,410 | H155: 1,120 | I155: 910 | J155: ["J5A"], | K155: 2,141 | L155: 7.84 | M155: -46% | N155: -22% | O155: -22% | P155: -15% | Q155: -21% | R155: -19%
A156: Trois-Rivieres | B156: 193,192 | C156: 32,480 | D156: 19,230 | E156: 15,280 | F156: 12,260 | G156: 10,330 | H156: 9,000 | I156: 7,700 | J156: ["G8T", "G8V", "G8W", "G8Y", "G8Z", "G9A", "G9B", "G9C", "G0X"], | K156: 15,183 | L156: 7.86 | M156: -41% | N156: -21% | O156: -20% | P156: -16% | Q156: -13% | R156: -14%
A157: Taber | B157: 10,339 | C157: 1,410 | D157: 1,020 | E157: 850 | F157: 750 | G157: 630 | H157: 580 | I157: 450 | J157: ["T1G"], | K157: 813 | L157: 7.86 | M157: -28% | N157: -17% | O157: -12% | P157: -16% | Q157: -8% | R157: -22%
A158: Saint-Hyacinthe | B158: 107,916 | C158: 19,360 | D158: 11,210 | E158: 8,400 | F158: 6,430 | G158: 5,610 | H158: 4,630 | I158: 3,850 | J158: ["J2R", "J2S", "J2T", "J0H"], | K158: 8,499 | L158: 7.88 | M158: -42% | N158: -25% | O158: -23% | P158: -13% | Q158: -17% | R158: -17%
A159: Salisbury | B159: 4,840 | C159: 780 | D159: 430 | E159: 370 | F159: 330 | G159: 270 | H159: 250 | I159: 240 | J159: ["E4J"], | K159: 381 | L159: 7.88 | M159: -45% | N159: -14% | O159: -11% | P159: -18% | Q159: -7% | R159: -4%
A160: Victoriaville | B160: 64,563 | C160: 12,300 | D160: 6,770 | E160: 4,930 | F160: 3,750 | G160: 3,150 | H160: 2,620 | I160: 2,130 | J160: ["G6P", "G6R", "G6S", "G6T", "G0P", "G0Z"], | K160: 5,093 | L160: 7.89 | M160: -45% | N160: -27% | O160: -24% | P160: -16% | Q160: -17% | R160: -19%
A161: Shawinigan | B161: 45,620 | C161: 7,440 | D161: 4,420 | E161: 3,600 | F161: 2,910 | G161: 2,560 | H161: 2,270 | I161: 2,020 | J161: ["G9N", "G9P", "G9R", "G9T"] | K161: 3,603 | L161: 7.90 | M161: -41% | N161: -19% | O161: -19% | P161: -12% | Q161: -11% | R161: -11%
A162: Summerside | B162: 45,038 | C162: 5,780 | D162: 4,110 | E162: 3,320 | F162: 3,140 | G162: 2,920 | H162: 2,730 | I162: 2,910 | J162: ["C1N", "C0B"], | K162: 3,559 | L162: 7.90 | M162: -29% | N162: -19% | O162: -5% | P162: -7% | Q162: -7% | R162: 7%
A163: Moncton Area | B163: 66,765 | C163: 9,050 | D163: 6,080 | E163: 5,120 | F163: 4,720 | G163: 4,120 | H163: 3,910 | I163: 3,970 | J163: ["E4H", "E4K", "E4M", "E4N", "E4P", "E4R", "E4S", "E4T", "E4V", "E4W", "E4X", "E4Z"], | K163: 5,281 | L163: 7.91 | M163: -33% | N163: -16% | O163: -8% | P163: -13% | Q163: -5% | R163: 2%
A164: Kanata | B164: 91,163 | C164: 12,360 | D164: 8,860 | E164: 7,530 | F164: 6,910 | G164: 5,490 | H164: 5,010 | I164: 4,340 | J164: ["K2K", "K2L", "K2M", "K2T", "K2V", "K2W"], | K164: 7,214 | L164: 7.91 | M164: -28% | N164: -15% | O164: -8% | P164: -21% | Q164: -9% | R164: -13%
A165: Simcoe | B165: 22,419 | C165: 3,540 | D165: 2,170 | E165: 1,770 | F165: 1,550 | G165: 1,280 | H165: 1,170 | I165: 940 | J165: ["N3Y"], | K165: 1,774 | L165: 7.91 | M165: -39% | N165: -18% | O165: -12% | P165: -17% | Q165: -9% | R165: -20%
A166: Port Hawkesbury | B166: 30,373 | C166: 3,610 | D166: 2,750 | E166: 2,290 | F166: 2,120 | G166: 2,090 | H166: 2,120 | I166: 1,860 | J166: ["B9A", "B0E"], | K166: 2,406 | L166: 7.92 | M166: -24% | N166: -17% | O166: -7% | P166: -1% | Q166: 1% | R166: -12%
A167: Baie-Saint-Paul | B167: 7,142 | C167: 1,290 | D167: 820 | E167: 630 | F167: 450 | G167: 300 | H167: 250 | I167: 220 | J167: ["G3Z"], | K167: 566 | L167: 7.92 | M167: -36% | N167: -23% | O167: -29% | P167: -33% | Q167: -17% | R167: -12%
A168: Sainte-Catherine | B168: 17,047 | C168: 3,150 | D168: 1,690 | E168: 1,310 | F168: 1,080 | G168: 910 | H168: 720 | I168: 600 | J168: ["J5C"], | K168: 1,351 | L168: 7.93 | M168: -46% | N168: -22% | O168: -18% | P168: -16% | Q168: -21% | R168: -17%
A169: Garson | B169: 8,036 | C169: 1,180 | D169: 760 | E169: 660 | F169: 590 | G169: 500 | H169: 430 | I169: 350 | J169: ["P3L"], | K169: 639 | L169: 7.95 | M169: -36% | N169: -13% | O169: -11% | P169: -15% | Q169: -14% | R169: -19%
A170: Moose Jaw | B170: 34,203 | C170: 4,870 | D170: 3,300 | E170: 2,700 | F170: 2,520 | G170: 2,090 | H170: 1,920 | I170: 1,640 | J170: ["S6H", "S6J", "S6K"], | K170: 2,720 | L170: 7.95 | M170: -32% | N170: -18% | O170: -7% | P170: -17% | Q170: -8% | R170: -15%
A171: Ott Ext-Cornwall | B171: 53,356 | C171: 7,380 | D171: 5,260 | E171: 4,520 | F171: 4,120 | G171: 3,250 | H171: 2,870 | I171: 2,440 | J171: ["H0M", "K0C"], | K171: 4,263 | L171: 7.99 | M171: -29% | N171: -14% | O171: -9% | P171: -21% | Q171: -12% | R171: -15%
A172: Saint-Raymond | B172: 10,309 | C172: 1,990 | D172: 1,050 | E172: 780 | F172: 610 | G172: 530 | H172: 450 | I172: 360 | J172: ["G3L"], | K172: 824 | L172: 8.00 | M172: -47% | N172: -26% | O172: -22% | P172: -13% | Q172: -15% | R172: -20%
A173: Grand Falls-Windsor | B173: 14,519 | C173: 2,010 | D173: 1,370 | E173: 1,160 | F173: 1,000 | G173: 890 | H173: 870 | I173: 830 | J173: ["A2A", "A2B"], | K173: 1,161 | L173: 8.00 | M173: -32% | N173: -15% | O173: -14% | P173: -11% | Q173: -2% | R173: -5%
A174: Cranbrook | B174: 58,493 | C174: 8,820 | D174: 5,910 | E174: 4,870 | F174: 4,250 | G174: 3,340 | H174: 3,030 | I174: 2,620 | J174: ["V1C", "V0B"], | K174: 4,691 | L174: 8.02 | M174: -33% | N174: -18% | O174: -13% | P174: -21% | Q174: -9% | R174: -14%
A175: Lakeside | B175: 16,884 | C175: 2,540 | D175: 1,650 | E175: 1,390 | F175: 1,230 | G175: 990 | H175: 900 | I175: 780 | J175: ["B3T"], | K175: 1,354 | L175: 8.02 | M175: -35% | N175: -16% | O175: -12% | P175: -20% | Q175: -9% | R175: -13%
A176: Sherwood | B176: 96,569 | C176: 13,940 | D176: 9,660 | E176: 7,990 | F176: 7,160 | G176: 5,830 | H176: 5,320 | I176: 4,390 | J176: ["T8A", "T8B", "T8C", "T8E", "T8G", "T8H"], | K176: 7,756 | L176: 8.03 | M176: -31% | N176: -17% | O176: -10% | P176: -19% | Q176: -9% | R176: -17%
A177: Sainte-Anne-Des-Monts | B177: 6,616 | C177: 830 | D177: 640 | E177: 560 | F177: 490 | G177: 430 | H177: 400 | I177: 370 | J177: ["G4V"], | K177: 531 | L177: 8.03 | M177: -23% | N177: -13% | O177: -13% | P177: -12% | Q177: -7% | R177: -8%
A178: Ingersoll | B178: 14,856 | C178: 2,640 | D178: 1,420 | E178: 1,180 | F178: 990 | G178: 790 | H178: 740 | I178: 610 | J178: ["N5C"], | K178: 1,196 | L178: 8.05 | M178: -46% | N178: -17% | O178: -16% | P178: -20% | Q178: -6% | R178: -18%
A179: Leamington | B179: 25,905 | C179: 3,750 | D179: 2,440 | E179: 2,080 | F179: 1,970 | G179: 1,680 | H179: 1,470 | I179: 1,210 | J179: ["N8H"], | K179: 2,086 | L179: 8.05 | M179: -35% | N179: -15% | O179: -5% | P179: -15% | Q179: -13% | R179: -18%
A180: Westlock | B180: 7,536 | C180: 1,050 | D180: 750 | E180: 610 | F180: 550 | G180: 470 | H180: 440 | I180: 390 | J180: ["T7P"], | K180: 609 | L180: 8.08 | M180: -29% | N180: -19% | O180: -10% | P180: -15% | Q180: -6% | R180: -11%
A181: Lethbridge | B181: 151,764 | C181: 20,760 | D181: 14,980 | E181: 12,580 | F181: 11,150 | G181: 9,810 | H181: 9,020 | I181: 7,560 | J181: ["T1H", "T1J", "T1K", "T0K"], | K181: 12,266 | L181: 8.08 | M181: -28% | N181: -16% | O181: -11% | P181: -12% | Q181: -8% | R181: -16%
A182: St. Albert | B182: 72,564 | C182: 10,560 | D182: 7,390 | E182: 6,070 | F182: 5,360 | G182: 4,420 | H182: 4,110 | I182: 3,470 | J182: ["T8N", "T8T"], | K182: 5,911 | L182: 8.15 | M182: -30% | N182: -18% | O182: -12% | P182: -18% | Q182: -7% | R182: -16%
A183: Woodstock Area | B183: 22,091 | C183: 2,710 | D183: 2,260 | E183: 1,800 | F183: 1,640 | G183: 1,430 | H183: 1,430 | I183: 1,330 | J183: ["E7G", "E7H", "E7J", "E7K", "E7L", "E7N"], | K183: 1,800 | L183: 8.15 | M183: -17% | N183: -20% | O183: -9% | P183: -13% | Q183: 0% | R183: -7%
A184: Stephenville | B184: 22,719 | C184: 2,740 | D184: 2,170 | E184: 1,830 | F184: 1,700 | G184: 1,570 | H184: 1,540 | I184: 1,460 | J184: ["A2N", "A0N", "A0Z"], | K184: 1,859 | L184: 8.18 | M184: -21% | N184: -16% | O184: -7% | P184: -8% | Q184: -2% | R184: -5%
A185: La Malbaie | B185: 8,332 | C185: 1,440 | D185: 890 | E185: 740 | F185: 610 | G185: 430 | H185: 340 | I185: 330 | J185: ["G5A"], | K185: 683 | L185: 8.20 | M185: -38% | N185: -17% | O185: -18% | P185: -30% | Q185: -21% | R185: -3%
A186: Saint John | B186: 133,939 | C186: 19,660 | D186: 13,000 | E186: 11,060 | F186: 9,940 | G186: 8,250 | H186: 7,870 | I186: 7,220 | J186: ["E2E", "E2G", "E2H", "E2J", "E2K", "E2L", "E2M", "E2N", "E2P", "E2R", "E2S", "E5C", "E5E", "E5G", "E5H", "E5J", "E5K", "E5L", "E5M", "E5P", "E5S", "E5T", "E5V", "E0G"], | K186: 11,000 | L186: 8.21 | M186: -34% | N186: -15% | O186: -10% | P186: -17% | Q186: -5% | R186: -8%
A187: Innisfail | B187: 12,696 | C187: 1,820 | D187: 1,310 | E187: 1,090 | F187: 930 | G187: 780 | H187: 750 | I187: 630 | J187: ["T4G"], | K187: 1,044 | L187: 8.23 | M187: -28% | N187: -17% | O187: -15% | P187: -16% | Q187: -4% | R187: -16%
A188: Beaconsfield | B188: 29,026 | C188: 4,370 | D188: 3,120 | E188: 2,560 | F188: 2,110 | G188: 1,730 | H188: 1,560 | I188: 1,280 | J188: ["H9W", "H9X"], | K188: 2,390 | L188: 8.23 | M188: -29% | N188: -18% | O188: -18% | P188: -18% | Q188: -10% | R188: -18%
A189: Drummondville | B189: 98,667 | C189: 19,160 | D189: 10,410 | E189: 7,930 | F189: 6,110 | G189: 5,210 | H189: 4,370 | I189: 3,680 | J189: ["J2A", "J2B", "J2C", "J2E", "J0C"], | K189: 8,124 | L189: 8.23 | M189: -46% | N189: -24% | O189: -23% | P189: -15% | Q189: -16% | R189: -16%
A190: Camrose | B190: 20,843 | C190: 3,130 | D190: 2,160 | E190: 1,740 | F190: 1,490 | G190: 1,290 | H190: 1,190 | I190: 1,020 | J190: ["T4V"], | K190: 1,717 | L190: 8.24 | M190: -31% | N190: -19% | O190: -14% | P190: -13% | Q190: -8% | R190: -14%
A191: Pembroke | B191: 26,213 | C191: 3,780 | D191: 2,710 | E191: 2,250 | F191: 1,990 | G191: 1,600 | H191: 1,480 | I191: 1,310 | J191: ["K8A", "K8B"], | K191: 2,160 | L191: 8.24 | M191: -28% | N191: -17% | O191: -12% | P191: -20% | Q191: -8% | R191: -11%
A192: Gatineau | B192: 293,338 | C192: 46,180 | D192: 29,940 | E192: 24,770 | F192: 21,000 | G192: 17,470 | H192: 16,060 | I192: 13,900 | J192: ["J8L", "J8M", "J8P", "J8R", "J8T", "J8V", "J8X", "J8Y", "J8Z", "J9A", "J9H", "J9J"], | K192: 24,189 | L192: 8.25 | M192: -35% | N192: -17% | O192: -15% | P192: -17% | Q192: -8% | R192: -13%
A193: Beloeil | B193: 57,797 | C193: 10,580 | D193: 6,290 | E193: 4,930 | F193: 3,940 | G193: 3,040 | H193: 2,550 | I193: 2,070 | J193: ["J3G", "J3H"], | K193: 4,771 | L193: 8.26 | M193: -41% | N193: -22% | O193: -20% | P193: -23% | Q193: -16% | R193: -19%
A194: Repentigny | B194: 90,198 | C194: 16,390 | D194: 9,330 | E194: 7,430 | F194: 6,010 | G194: 5,070 | H194: 4,310 | I194: 3,590 | J194: ["J5Y", "J5Z", "J6A"], | K194: =AVERAGE(C194:I194) -> 7,447 | L194: =(K194/B194)*100 -> 8.26 | M194: -43% | N194: -20% | O194: -19% | P194: -16% | Q194: -15% | R194: -17%
A195: Vegreville | B195: 6,831 | C195: 910 | D195: 690 | E195: 580 | F195: 520 | G195: 440 | H195: 430 | I195: 380 | J195: ["T9C"], | K195: 564 | L195: 8.26 | M195: -24% | N195: -16% | O195: -10% | P195: -15% | Q195: -2% | R195: -12%
A196: Carbonear | B196: 5,669 | C196: 760 | D196: 530 | E196: 470 | F196: 410 | G196: 360 | H196: 400 | I196: 350 | J196: ["A1Y"], | K196: 469 | L196: 8.27 | M196: -30% | N196: -11% | O196: -13% | P196: -12% | Q196: 11% | R196: -13%
A197: Arnprior | B197: 12,986 | C197: 2,020 | D197: 1,290 | E197: 1,120 | F197: 970 | G197: 800 | H197: 710 | I197: 610 | J197: ["K7S"], | K197: 1,074 | L197: 8.27 | M197: -36% | N197: -13% | O197: -13% | P197: -18% | Q197: -11% | R197: -14%
A198: Cowansville | B198: 16,665 | C198: 3,140 | D198: 1,830 | E198: 1,380 | F198: 1,070 | G198: 890 | H198: 770 | I198: 590 | J198: ["J2K"], | K198: 1,381 | L198: 8.29 | M198: -42% | N198: -25% | O198: -22% | P198: -17% | Q198: -13% | R198: -23%
A199: Portugal Cove-St Philips | B199: 8,058 | C199: 1,190 | D199: 810 | E199: 690 | F199: 650 | G199: 480 | H199: 470 | I199: 390 | J199: ["A1M"], | K199: 669 | L199: 8.30 | M199: -32% | N199: -15% | O199: -6% | P199: -26% | Q199: -2% | R199: -17%
A200: Ott Ext-Hawkesbury | B200: 20,945 | C200: 3,240 | D200: 2,200 | E200: 1,920 | F200: 1,680 | G200: 1,310 | H200: 1,010 | I200: 810 | J200: ["K0B"], | K200: 1,739 | L200: 8.30 | M200: -32% | N200: -13% | O200: -13% | P200: -22% | Q200: -23% | R200: -20%
... 284 more rows
